Workbook

Sheet Instructions
A1: The North-East Environmental Flow Needs (EFN) Tool (Interim) was developed as a component of the agreement between the Blueberry River First Nation (BRFN) and the Province of British Columbia.
A2: It is intended to provide a transparent, quantitative Environmental Flow Needs (EFN) framework to support water withdrawals from rivers and streams while ensuring that BRFN's rights and interests are protected.
A3: The NE EFN Tool (Interim) is built using the biological and ecological rationale, and the hydrologic processes and calculations developed by Alberta Environment and detailed in:
B4: - A Desk-top Method for Establishing Environmental Flows in Alberta Rivers and Streams (Alberta Environment, 2010)
B5: - Surface Water Allocation Directive (Alberta Environment, 2019)
A7: The NE EFN Tool (Interim) uses information extracted from the North-East Water Tool (NEWT). For any Point of Diversion (POD) on a river or stream in north-east BC, the EFN Tool will:
B8: -correct monthly discharge estimates to be as close to the observational record as possible
B9: -determine an Ecosystem Base Flow (EBF) value for each month, as either the 5% or 20% low flow value based on daily flow frequency (large water sources, with MAD >10 m3/s, do not have an EBF).
B10: -calculate the potential Maximum Water Allocation at the POD for each month, incoporating information of currently authorized water allocation, and the discharge of the river at the time of diversion.
A12: The NE EFN Tool (Interim) is an Excel-based system, utilizing a series of linked worksheets with "lookup" data:
B13: -the four worksheets with blue tabs, named "annual", "monthly", "variability" and "allocations"are used to contain data output from NEWT as .csv files.
B14: -the six worksheets with white tabs, named "WSA-adjust, "Q-data", EBF Calculation", "lookup", "WSC", and "thresholds" contain the central data used to run the tool. These sheets are locked. Best advice is to not mess around with them.
B15: -the worksheet "WSA-adjust" allows users to enter adjustments to WSA authorizations, where they know the NEWT data to be incorrect.
B16: -the two worksheets with orange tabs, named "Output" and "Diversion Schedule" contain the results of the tool that will be used by BRFN staff and BC government water officers. These sheets are locked.
A18: To run the NE EFN Tool (Interim) do the following:
B19: - go to NEWT
B20: -run NEWT for a user-selected POD
B21: -download the NEWT PDF results for your record.
B22: -download and save four .CSV files from the NEWT output. These are:
C23: -annual-hydrology.csv
C24: -monthly-hydrology.csv
C25: -allocations.csv
C26: -hydrologic-variability.csv
B27: - open each of the four NEWT .csv files in turn, select and copy the entire content, and then paste into cell "A1" of the corresponding worksheet in the NE EFN Tool (Interim):
C28: -annual
C29: -monthly
C30: -allocations
C31: -variability
B32: -go to the worksheet named "Output". Click the box labelled "Run WSA Authorizations Macro" to load the current Water Sustainability Act (WSA) water licence and use approval data into the Tool.
A34: The "Output" and "Diversion Schedule" worksheets are locked. Users can only enter information into the cells shown with blue shading.
A36: The NE EFN Tool (Interim) uses a reference stream flow gauge for each user-selected POD, using the similarity metric used by NEWT to estimate flow variability. In most cases, the "default" reference flow gauge
A37: extracted from NEWT will be the best and most appropriate to use. In some cases, though, the user may want to select a different flow gauge. To do this, in the worksheet named "Output" click on the box to the right
A38: of "WSC Reference Gauge" labelled "User Selected". This has a drop-down list of real-time flow gauges that can be used in the Tool. At the present time, a POD on the Upper Beaton River mainstem channel will default
A39: to the Kiskatinaw River near Farmington as the refernce gauge. I suggest changing this to either the Beaton River near Fort St Johm (07FC001) or the Blueberry River below Aitken Creek (07FC003).
A41: The Tool presents EFN (EBF and MWA) information based on current WSA authorizations. The user can also test the effects of adding additional water withdrawal associated with a WSA application by inputing the
A42: application amounts as m3/s, m3/day or m3/year. The Tool will convert these values to m3/s, add them to the WSA authorization volumes, and generate new output showing the EFN effect of the application, if approved.
A44: The worksheet named "Diversion Schedule" contains detailed information on the "no diversion" flow values, and the maximum water withdrawal volume (m3/day) and diversion rate (m3/s) associated with
A45: an application you have evaluated. This "Diversion Schedule" could be attached to a WSA water authorization specifying the conditions of an approval, or it could be used to inform the content of an authorization.
A47: Good luck.

Sheet annual

Sheet monthly

Sheet variability

Sheet allocations

Sheet WSA-adjust
A1: This worksheet allows adjustments to be made to the NEWT-derived WSA authorizations. Adjustments made here are incorporated into the "Output" and "Diversion Schedule" worksheets.
A3: This allows adjustments to be made to the WSA authorization by a Water Officer, when the water officer understands the data from NEWT to be incorrect with respect to determining EFN.
A4: This can be common in old water licences, and in licenses where NEWT is calculating from a m3/year value rather than from an authorized m3/s or m3/day value.
A5: In Table 1 Part B, the water officer can insert adjustment values for up to 10 specified licences or authorizations.
A7: Table 1.
A8: Month | B8: Total Adjustment for POD (m3/s | D8: Adjustment to WSA authorizations made by Water Officer, by WSA licence or authorization #, (m3/s). Enter a positive number to increase the average monthly water allocation, or a negative number to decrease it.
A10: Jan | B10: =SUM(C10:L10) -> 0
A11: Feb | B11: 0
A12: Mar | B12: 0
A13: Apr | B13: 0
A14: May | B14: 0
A15: Jun | B15: 0
A16: Jul | B16: 0
A17: Aug | B17: 0
A18: Sep | B18: 0
A19: Oct | B19: 0
A20: Nov | B20: 0
A21: Dec | B21: 0

Sheet Q-data
A1: Blueberry (07FC003) | L1: NEWT | P1: Ratio NEWT:Data
B2: Mean | C2: Median | D2: 40th %tile | E2: 30th %tile | F2: 25th %tile | G2: 20th %tile | H2: 10th %tile | I2: 5th %tile | J2: Mean | K2: 0.5 | L2: 0.25 | M2: 0.1 | N2: Mean | O2: 50th % | P2: 25th % | Q2: 10th %
A3: Jan | B3: 0.08908797654 | C3: 0.078 | D3: 0.0636 | E3: 0.051 | F3: 0.04 | G3: 0.031 | H3: 0.01 | I3: 0.003 | J3: 0.32 | K3: 0.290043649 | L3: 0.1297563693 | M3: 0.02289818282 | N3: =J3/B3 -> 3.591954969 | O3: 3.718508321 | P3: =L3/F3 -> 3.243909233 | Q3: =M3/H3 -> 2.289818282
A4: Feb | B4: 0.07286038961 | C4: 0.07 | D4: 0.06 | E4: 0.045 | F4: 0.037 | G4: 0.028 | H4: 0.004 | I4: 0.00095 | J4: 0.29 | K4: 0.2838641581 | L4: 0.1013800565 | M4: 0.01216560678 | N4: 3.980214785 | O4: 4.055202259 | P4: 2.740001526 | Q4: 3.041401694
A5: Mar | B5: 0.1969008798 | C5: 0.094 | D5: 0.08 | E5: 0.064 | F5: 0.051 | G5: 0.035 | H5: 0.012 | I5: 0.002 | J5: 0.5 | K5: 0.1594101151 | L5: 0.07839123791 | M5: 0.01226231654 | N5: 2.539348735 | O5: 1.695852288 | P5: 1.537083096 | Q5: 1.021859712
A6: Apr | B6: 10.91070382 | C6: 2.95 | D6: 1.38 | E6: 0.6 | F6: 0.4195 | G6: 0.29 | H6: 0.145 | I6: 0.082 | J6: 3.05 | K6: 0.6407711206 | L6: 0.09739721032 | M6: 0.03401213108 | N6: 0.2795420031 | O6: 0.2172105493 | P6: 0.2321745181 | Q6: 0.2345664212
A7: May | B7: 21.51899334 | C7: 11.4 | D7: 9.206 | E7: 7.08 | F7: 6.03 | G7: 4.812 | H7: 2.612 | I7: 1.811 | J7: 19.19 | K7: 10.14451218 | L7: 5.55522308 | M7: 2.599641511 | N7: 0.8917703396 | O7: 0.8898694891 | P7: 0.9212641924 | Q7: 0.9952685725
A8: Jun | B8: 13.40128571 | C8: 4.67 | D8: 3.54 | E8: 2.73 | F8: 2.2925 | G8: 1.84 | H8: 1.1 | I8: 0.71395 | J8: 15.88 | K8: 4.880389277 | L8: 2.389410151 | M8: 1.116243042 | N8: 1.184960931 | O8: 1.045051237 | P8: 1.042272694 | Q8: 1.014766401
A9: Jul | B9: 8.48161777 | C9: 2.83 | D9: 1.994 | E9: 1.38 | F9: 1.18 | G9: 0.9292 | H9: 0.5232 | I9: 0.2574 | J9: 10.85 | K9: 2.887097855 | L9: 1.198047409 | M9: 0.5210524223 | N9: 1.279237086 | O9: 1.02017592 | P9: 1.015294414 | Q9: 0.9958953026
A10: Aug | B10: 4.233004776 | C10: 0.742 | D10: 0.4892 | E10: 0.322 | F10: 0.265 | G10: 0.213 | H10: 0.125 | I10: 0.0617 | J10: 5.99 | K10: 0.7623277541 | L10: 0.2647665201 | M10: 0.124889868 | N10: 1.415070456 | O10: 1.027395895 | P10: 0.9991189437 | Q10: 0.9991189437
A11: Sep | B11: 3.462853086 | C11: 0.5765 | D11: 0.37 | E11: 0.215 | F11: 0.173 | G11: 0.1398 | H11: 0.0749 | I11: 0.025 | J11: 4.55 | K11: 0.6680014525 | L11: 0.1900105569 | M11: 0.08006982753 | N11: 1.313945434 | O11: 1.158718912 | P11: 1.098326918 | Q11: 1.069023065
A12: Oct | B12: 1.226103327 | C12: 0.502 | D12: 0.4096 | E12: 0.329 | F12: 0.292 | G12: 0.2344 | H12: 0.161 | I12: 0.113 | J12: 2.26 | K12: 0.8803768306 | L12: 0.5256493857 | M12: 0.2714137351 | N12: 1.8432378 | O12: 1.753738706 | P12: 1.800169129 | Q12: 1.685799597
A13: Nov | B13: 0.4447410714 | C13: 0.23 | D13: 0.178 | E13: 0.145 | F13: 0.129 | G13: 0.11 | H13: 0.0799 | I13: 0.057 | J13: 1.06 | K13: 0.4886629925 | L13: 0.2549546048 | M13: 0.1550973846 | N13: 2.383409287 | O13: 2.124621707 | P13: 1.976392285 | Q13: 1.941143737
A14: Dec | B14: 0.1546357919 | C14: 0.129 | D14: 0.105 | E14: 0.083 | F14: 0.065 | G14: 0.054 | H14: 0.037 | I14: 0.022 | J14: 0.58 | K14: 0.5094861231 | L14: 0.2341992663 | M14: 0.1396978079 | N14: 3.75074873 | O14: 3.94950483 | P14: 3.603065635 | Q14: 3.775616431
A15: Annual | B15: 5.399488907 | C15: 0.376 | D15: 0.201 | E15: 0.135 | F15: 0.109 | G15: 0.088 | H15: 0.047 | I15: 0.017 | J15: 5.45 | N15: =J15/B15 -> 1.009354792
A17: Sikanni Chief (10CB001) | L17: NEWT | P17: Ratio NEWT:Data
B18: Mean | C18: Median | D18: 40th %tile | E18: 30th %tile | F18: 25th %tile | G18: 20th %tile | H18: 10th %tile | I18: 5th %tile | J18: Mean | K18: 0.5 | L18: 0.25 | M18: 0.1 | N18: Mean | O18: 50th % | P18: 25th % | Q18: 10th %
A19: Jan | B19: 5.318899431 | C19: 5.3 | D19: 5.1 | E19: 4.84 | F19: 4.66 | G19: 4.54 | H19: 3.8 | I19: 3.09 | J19: 5.95 | K19: 5.982035241 | L19: 5.153753438 | M19: 4.021768308 | N19: =J19/B19 -> 1.118652473 | O19: 1.128685894 | P19: =L19/F19 -> 1.105955673 | Q19: =M19/H19 -> 1.058360081
A20: Feb | B20: 4.769533469 | C20: 4.65 | D20: 4.45 | E20: 4.28 | F20: 4.2 | G20: 4.106 | H20: 3.86 | I20: 3.4 | J20: 5.14 | K20: 5.111731937 | L20: 4.528666168 | M20: 3.639915432 | N20: 1.077673536 | O20: 1.099297191 | P20: 1.078253849 | Q20: 0.9429832726
A21: Mar | B21: 4.61254902 | C21: 4.39 | D21: 4.2 | E21: 4.05 | F21: 4 | G21: 3.95 | H21: 3.72 | I21: 3.48 | J21: 4.5 | K21: 4.346379196 | L21: 3.892125788 | M21: 3.210745677 | N21: 0.9755993879 | O21: 0.9900635982 | P21: 0.9730314471 | Q21: 0.8631036766
A22: Apr | B22: 8.757124183 | C22: 5.95 | D22: 5.35 | E22: 4.9 | F22: 4.65 | G22: 4.478 | H22: 4.12 | I22: 3.93 | J22: 9.43 | K22: 5.358078064 | L22: 4.219795121 | M22: 3.466701199 | N22: 1.076837533 | O22: 0.9005173217 | P22: 0.9074828216 | Q22: 0.8414323299
A23: May | B23: 40.11209361 | C23: 31.6 | D23: 25.9 | E23: 21.3 | F23: 19 | G23: 15.9 | H23: 11.9 | I23: 9.45 | J23: 30.82 | K23: 22.43023186 | L23: 12.92621156 | M23: 7.811523532 | N23: 0.7683468307 | O23: 0.7098174638 | P23: 0.6803269242 | Q23: 0.6564305489
A24: Jun | B24: 82.84629981 | C24: 71.2 | D24: 63.4 | E24: 56 | F24: 52.1 | G24: 48.9 | H24: 42.2 | I24: 37 | J24: 91.07 | K24: 76.77134717 | L24: 55.10649522 | M24: 42.44088946 | N24: 1.099264544 | O24: 1.078249258 | P24: 1.057706242 | Q24: 1.005708281
A25: Jul | B25: 62.6512334 | C25: 54.1 | D25: 47.9 | E25: 41.7 | F25: 39 | G25: 36 | H25: 28.9 | I25: 24.6 | J25: 61.14 | K25: 51.2123816 | L25: 36.67724039 | M25: 26.86075371 | N25: 0.975878633 | O25: 0.9466244289 | P25: 0.9404420612 | Q25: 0.9294378448
A26: Aug | B26: 36.37330803 | C26: 29.6 | D26: 26 | E26: 23.6 | F26: 22.2 | G26: 20.7 | H26: 17.3 | I26: 14.8 | J26: 36.26 | K26: 27.86373262 | L26: 20.34341724 | M26: 15.71553086 | N26: 0.9968848576 | O26: 0.9413423183 | P26: 0.916370146 | Q26: 0.9084121882
A27: Sep | B27: 26.03182353 | C27: 21.6 | D27: 19.5 | E27: 17.6 | F27: 16.5 | G27: 15.6 | H27: 12.69 | I27: 11 | J27: 25.75 | K27: 20.94009901 | L27: 15.73012222 | M27: 12.22340708 | N27: 0.9891738845 | O27: 0.9694490281 | P27: 0.9533407407 | Q27: 0.9632314481
A28: Oct | B28: 16.74418114 | C28: 14.8 | D28: 13.2 | E28: 12.1 | F28: 11.5 | G28: 10.7 | H28: 9.301 | I28: 8.3355 | J28: 20.22 | K28: 18.11562315 | L28: 14.13018606 | M28: 11.14714678 | N28: 1.207583687 | O28: 1.224028591 | P28: 1.228711831 | Q28: 1.198489063
A29: Nov | B29: 9.047647436 | C29: 8.63 | D29: 7.65 | E29: 6.907 | F29: 6.65 | G29: 6.398 | H29: 5.75 | I29: 5.1895 | J29: 9.87 | K29: 8.720696839 | L29: 6.738496711 | M29: 5.803960671 | N29: 1.090891314 | O29: 1.010509483 | P29: 1.013307776 | Q29: 1.009384465
A30: Dec | B30: 6.784647171 | C30: 6.51 | D30: 6.09 | E30: 5.61 | F30: 5.45 | G30: 5.214 | H30: 4.62 | I30: 4.02 | J30: 7.85 | K30: 7.491655483 | L30: 6.346285378 | M30: 5.376227023 | N30: 1.157024058 | O30: 1.150791933 | P30: 1.164456033 | Q30: 1.163685503
A31: Annual | B31: 25.43727722 | C31: 11.6 | D31: 7.81 | E31: 6 | F31: 5.52 | G31: 5.1 | H31: 4.36 | I31: 4
A33: Beatton (FC001) | L33: NEWT | P33: Ratio NEWT:Data
B34: Mean | C34: Median | D34: 40th %tile | E34: 30th %tile | F34: 25th %tile | G34: 20th %tile | H34: 10th %tile | I34: 5th %tile | J34: Mean | K34: 0.5 | L34: 0.25 | M34: 0.1 | N34: Mean | O34: 50th % | P34: 25th % | Q34: 10th %
A35: Jan | B35: 1.380390323 | C35: 1.25 | D35: 1.05 | E35: 0.8628 | F35: 0.70275 | G35: 0.58 | H35: 0.3399 | I35: 0.272 | J35: 3.2 | K35: 2.871939376 | L35: 1.459902516 | M35: 0.7993564595 | N35: =J35/B35 -> 2.318184899 | O35: 2.2975515 | P35: =L35/F35 -> 2.077413754 | Q35: =M35/H35 -> 2.351740099
A36: Feb | B36: 1.048347143 | C36: 0.95 | D36: 0.8176 | E36: 0.66 | F36: 0.58075 | G36: 0.52 | H36: 0.29 | I36: 0.16965 | J36: 2.69 | K36: 2.437327426 | L36: 1.429280594 | M36: 0.5563464777 | N36: 2.565943942 | O36: 2.565607817 | P36: 2.461094436 | Q36: 1.91843613
A37: Mar | B37: 2.525425161 | C37: 1.04 | D37: 0.9036 | E37: 0.717 | F37: 0.6585 | G37: 0.605 | H37: 0.38 | I37: 0.26845 | J37: 4.76 | K37: 2.170155248 | L37: 1.348445979 | M37: 0.7585008634 | N37: 1.884831146 | O37: 2.086687738 | P37: 2.047753955 | Q37: 1.996054904
A38: Apr | B38: 79.944002 | C38: 26.75 | D38: 13.8 | E38: 6.679 | F38: 4.415 | G38: 3.074 | H38: 1.387 | I38: 0.956 | J38: 26.99 | K38: 6.901024179 | L38: 1.103379661 | M38: 0.4077877924 | N38: 0.3376113195 | O38: 0.2579822123 | P38: 0.2499161181 | Q38: 0.2940070601
A39: May | B39: 192.6684551 | C39: 136 | D39: 111.4 | E39: 83.18 | F39: 69.5 | G39: 57.56 | H39: 35 | I39: 23.3 | J39: 181.69 | K39: 127.8789874 | L39: 69.6327363 | M39: 36.03384618 | N39: 0.9430189282 | O39: 0.9402866722 | P39: 1.001909875 | Q39: 1.029538462
A40: Jun | B40: 133.8815329 | C40: 80.65 | D40: 64.9 | E40: 50.81 | F40: 43.7 | G40: 37.16 | H40: 25.3 | I40: 16.3 | J40: 151.73 | K40: 86.97944971 | L40: 48.54141905 | M40: 28.18788915 | N40: 1.133315378 | O40: 1.078480468 | P40: 1.110787621 | Q40: 1.114145816
A41: Jul | B41: 102.8405398 | C41: 64.5 | D41: 46.4 | E41: 33.4 | F41: 28.6 | G41: 23.76 | H41: 16 | I41: 10.89 | J41: 113.4 | K41: 62.52220068 | L41: 27.00538752 | M41: 15.65682 | N41: 1.102677992 | O41: 0.9693364446 | P41: 0.9442443189 | Q41: 0.9785512501
A42: Aug | B42: 55.81641596 | C42: 26 | D42: 20.02 | E42: 14.94 | F42: 12.8 | G42: 10.8 | H42: 7.26 | I42: 5.398 | J42: 62.23 | K42: 22.63173812 | L42: 10.43181679 | M42: 5.610195707 | N42: 1.114904978 | O42: 0.8704514661 | P42: 0.8149856866 | Q42: 0.7727542296
A43: Sep | B43: 41.62491333 | C43: 17.4 | D43: 12 | E43: 8.2 | F43: 6.8675 | G43: 5.696 | H43: 3.5 | I43: 2.7285 | J43: 46.62 | K43: 18.67110946 | L43: 7.590695094 | M43: 3.620861584 | N43: 1.120002332 | O43: 1.073052268 | P43: 1.105306894 | Q43: 1.034531881
A44: Oct | B44: 19.24020746 | C44: 10 | D44: 7.85 | E44: 6.44 | F44: 5.79 | G44: 4.97 | H44: 3.62 | I44: 3.02 | J44: 23.41 | K44: 11.32301137 | L44: 6.497503722 | M44: 3.974694459 | N44: 1.216722847 | O44: 1.132301137 | P44: 1.12219408 | Q44: 1.097981895
A45: Nov | B45: 6.618747712 | C45: 4.55 | D45: 3.77 | E45: 3.107 | F45: 2.8325 | G45: 2.6 | H45: 1.94 | I45: 1.5245 | J45: 11.59 | K45: 7.360625382 | L45: 4.62932414 | M45: 3.163371495 | N45: 1.751086535 | O45: 1.617719864 | P45: 1.634359802 | Q45: 1.630603864
A46: Dec | B46: 2.885531473 | C46: 2.38 | D46: 1.92 | E46: 1.55 | F46: 1.46 | G46: 1.3 | H46: 0.878 | I46: 0.59 | J46: 6.19 | K46: 5.468888789 | L46: 3.376444383 | M46: 1.86346441 | N46: 2.145185404 | O46: 2.297852432 | P46: 2.312633139 | Q46: 2.122396823
A47: Annual | B47: 53.50164178 | C47: 8.74 | D47: 4.36 | E47: 2.46 | F47: 1.87 | G47: 1.44 | H47: 0.85 | I47: 0.538 | J47: 53.18 | N47: =J47/B47 -> 0.9939881886
A49: Adsett (10CD005) | L49: NEWT | P49: Ratio NEWT:Data
B50: Mean | C50: Median | D50: 40th %tile | E50: 30th %tile | F50: 25th %tile | G50: 20th %tile | H50: 10th %tile | I50: 5th %tile | J50: Mean | K50: 0.5 | L50: 0.25 | M50: 0.1 | N50: Mean | O50: 50th % | P50: 25th % | Q50: 10th %
A51: Jan | B51: 0.008439407149 | C51: 0 | D51: 0 | E51: 0 | F51: 0 | G51: 0 | H51: 0 | I51: 0 | J51: 0.02 | K51: 0 | L51: 0 | M51: 0 | N51: =J51/B51 -> 2.369834711 | P51: =L51/F51 ->  | Q51: =M51/H51 -> 
A52: Feb | B52: 0.004670083877 | C52: 0.001 | D52: 0 | E52: 0 | F52: 0 | G52: 0 | H52: 0 | I52: 0 | J52: 0.02 | K52: 0 | L52: 0 | M52: 0 | N52: 4.282578328 | O52: 0
A53: Mar | B53: 0.01188927637 | C53: 0.002 | D53: 0.001 | E53: 0 | F53: 0 | G53: 0 | H53: 0 | I53: 0 | J53: 0.04 | K53: 0.002921553903 | L53: 0 | M53: 0 | N53: 3.364376329 | O53: 1.460776951
A54: Apr | B54: 0.4466054054 | C54: 0.063 | D54: 0.0216 | E54: 0.009 | F54: 0.00425 | G54: 0.003 | H54: 0.001 | I54: 0 | J54: 0.4 | K54: 0.02820851879 | L54: 0.001849738937 | M54: 0 | N54: 0.8956452277 | O54: 0.4477542666 | P54: 0.4352326911 | Q54: 0
A55: May | B55: 2.250465562 | C55: 1.47 | D55: 1.19 | E55: 0.9558 | F55: 0.85 | G55: 0.77 | H55: 0.5276 | I55: 0.3673 | J55: 3.12 | K55: 1.940333108 | L55: 1.087157226 | M55: 0.6087319553 | N55: 1.386379802 | O55: 1.319954495 | P55: 1.279008502 | Q55: 1.153775503
A56: Jun | B56: 2.33907585 | C56: 1.26 | D56: 0.9832 | E56: 0.771 | F56: 0.675 | G56: 0.5666 | H56: 0.3862 | I56: 0.2732 | J56: 2.13 | K56: 1.274313505 | L56: 0.6581394246 | M56: 0.3883329669 | N56: 0.9106160452 | O56: 1.011359924 | P56: 0.9750213698 | Q56: 1.005522959
A57: Jul | B57: 2.445523976 | C57: 0.98 | D57: 0.7834 | E57: 0.576 | F57: 0.502 | G57: 0.406 | H57: 0.2492 | I57: 0.1576 | J57: 2 | K57: 0.4923828505 | L57: 0.2517669734 | M57: 0.1196388728 | N57: 0.817820647 | O57: 0.5024314801 | P57: 0.5015278354 | Q57: 0.4800917849
A58: Aug | B58: 1.245997384 | C58: 0.409 | D58: 0.2864 | E58: 0.218 | F58: 0.1815 | G58: 0.151 | H58: 0.092 | I58: 0.068 | J58: 1.14 | K58: 0.2652760241 | L58: 0.1155717216 | M58: 0.05874396832 | N58: 0.9149296894 | O58: 0.648596636 | P58: 0.6367587965 | Q58: 0.6385213948
A59: Sep | B59: 0.9428054054 | C59: 0.3075 | D59: 0.2222 | E59: 0.156 | F59: 0.138 | G59: 0.118 | H59: 0.07 | I59: 0.061 | J59: 0.79 | K59: 0.2720747682 | L59: 0.1293733906 | M59: 0.06985703509 | N59: 0.8379247674 | O59: 0.8847959943 | P59: 0.937488338 | Q59: 0.9979576442
A60: Oct | B60: 0.293975382 | C60: 0.1895 | D60: 0.155 | E60: 0.1151 | F60: 0.103 | G60: 0.093 | H60: 0.068 | I60: 0.04285 | J60: 0.42 | K60: 0.2612829691 | L60: 0.1443932198 | M60: 0.08938627889 | N60: 1.42869106 | O60: 1.378801948 | P60: 1.40187592 | Q60: 1.314504101
A61: Nov | B61: 0.07720350877 | C61: 0.048 | D61: 0.033 | E61: 0.022 | F61: 0.018 | G61: 0.014 | H61: 0.006 | I61: 0.003 | J61: 0.15 | K61: 0.0842046529 | L61: 0.03329021161 | M61: 0.01174948645 | N61: 1.942916875 | O61: 1.754263602 | P61: 1.849456201 | Q61: 1.958247742
A62: Dec | B62: 0.02488685814 | C62: 0.009 | D62: 0.004 | E62: 0.002 | F62: 0.001 | G62: 0 | H62: 0 | I62: 0 | J62: 0.06 | K62: 0.01923045608 | L62: 0 | M62: 0 | N62: 2.410910998 | O62: 2.136717342 | P62: 0
A63: Annual | B63: 0.8433912239 | C63: 0.122 | D63: 0.053 | E63: 0.013 | F63: 0.006 | G63: 0.002 | H63: 0 | I63: 0 | J63: 0.864 | N63: =J63/B63 -> 1.024435607
A65: Bougie (10CD004) | L65: NEWT | P65: Ratio NEWT:Data
B66: Mean | C66: Median | D66: 40th %tile | E66: 30th %tile | F66: 25th %tile | G66: 20th %tile | H66: 10th %tile | I66: 5th %tile | J66: Mean | K66: 0.5 | L66: 0.25 | M66: 0.1 | N66: Mean | O66: 50th % | P66: 25th % | Q66: 10th %
A67: Jan | B67: 0.003577249576 | C67: 0 | D67: 0 | E67: 0 | F67: 0 | G67: 0 | H67: 0 | I67: 0 | J67: 0.1 | K67: 0 | L67: 0 | M67: 0 | N67: =J67/B67 -> 27.95443759 | P67: =L67/F67 ->  | Q67: =M67/H67 -> 
A68: Feb | B68: 0.003577132486 | C68: 0 | D68: 0 | E68: 0 | F68: 0 | G68: 0 | H68: 0 | I68: 0 | J68: 0.09 | K68: 0 | L68: 0 | M68: 0 | N68: 25.15981735
A69: Mar | B69: 0.02316129032 | C69: 0.001 | D69: 0 | E69: 0 | F69: 0 | G69: 0 | H69: 0 | I69: 0 | J69: 0.16 | K69: 0 | L69: 0 | M69: 0 | N69: 6.908077994 | O69: 0
A70: Apr | B70: 1.459447368 | C70: 0.12 | D70: 0.0286 | E70: 0.01 | F70: 0.007 | G70: 0.004 | H70: 0.001 | I70: 0 | J70: 1.31 | K70: 0.05361618819 | L70: 0.003574412546 | M70: 0.0008936031365 | N70: 0.8976000289 | O70: 0.4468015683 | P70: 0.5106303637 | Q70: 0.8936031365
A71: May | B71: 7.620757216 | C71: 4.975 | D71: 3.82 | E71: 3.04 | F71: 2.6925 | G71: 2.28 | H71: 1.44 | I71: 0.71685 | J71: 9.61 | K71: 6.031707225 | L71: 3.204515353 | M71: 1.520230833 | N71: 1.261029544 | O71: 1.212403462 | P71: 1.190163548 | Q71: 1.055715856
A72: Jun | B72: 7.799525467 | C72: 3.87 | D72: 2.94 | E72: 2.16 | F72: 1.8425 | G72: 1.53 | H72: 0.9609 | I72: 0.603 | J72: 6.93 | K72: 3.261706237 | L72: 1.514676754 | M72: 0.8522522749 | N72: 0.8885155936 | O72: 0.8428181491 | P72: 0.8220769356 | Q72: 0.8869312882
A73: Jul | B73: 6.95346678 | C73: 3.03 | D73: 2.372 | E73: 1.728 | F73: 1.43 | G73: 1.176 | H73: 0.6806 | I73: 0.37025 | J73: 6.11 | K73: 2.468691575 | L73: 1.060494268 | M73: 0.4633142991 | N73: 0.8786983807 | O73: 0.8147496946 | P73: 0.7416043832 | Q73: 0.6807439011
A74: Aug | B74: 3.622821429 | C74: 1.1 | D74: 0.7436 | E74: 0.4873 | F74: 0.39575 | G74: 0.312 | H74: 0.166 | I74: 0.07935 | J74: 3.33 | K74: 0.6424377664 | L74: 0.2304962527 | M74: 0.09613415586 | N74: 0.9191730991 | O74: 0.5840343331 | P74: 0.5824289392 | Q74: 0.5791214208
A75: Sep | B75: 2.534221137 | C75: 0.6655 | D75: 0.41 | E75: 0.2885 | F75: 0.236 | G75: 0.201 | H75: 0.1045 | I75: 0.06225 | J75: 2.42 | K75: 0.7219295046 | L75: 0.2627222253 | M75: 0.1213420447 | N75: 0.9549285044 | O75: 1.084792644 | P75: 1.113229768 | Q75: 1.161167892
A76: Oct | B76: 0.7034450042 | C76: 0.388 | D76: 0.314 | E76: 0.225 | F76: 0.184 | G76: 0.142 | H76: 0.071 | I76: 0.01 | J76: 1.23 | K76: 0.6477139125 | L76: 0.2945556126 | M76: 0.134323528 | N76: 1.748537544 | O76: 1.669365754 | P76: 1.600845721 | Q76: 1.891880677
A77: Nov | B77: 0.1161614005 | C77: 0.062 | D77: 0.039 | E77: 0.022 | F77: 0.013 | G77: 0.009 | H77: 0.003 | I77: 0.001 | J77: 0.44 | K77: 0.2725581774 | L77: 0.07646771088 | M77: 0.01817054516 | N77: 3.787833119 | O77: 4.396099636 | P77: 5.882131606 | Q77: 6.056848387
A78: Dec | B78: 0.01868429752 | C78: 0.002 | D78: 0.001 | E78: 0 | F78: 0 | G78: 0 | H78: 0 | I78: 0 | J78: 0.22 | K78: 0.03510510729 | L78: 0 | M78: 0 | N78: 11.77459306 | O78: 17.55255364
A79: Annual | B79: 2.572885879 | C79: 0.212 | D79: 0.05 | E79: 0.006 | F79: 0.003 | G79: 0.001 | H79: 0 | I79: 0 | J79: 2.68 | N79: =J79/B79 -> 1.041631897
L81: NEWT | P81: Ratio NEWT:Data
A82: Raspberry (10CD003) | B82: Mean | C82: Median | D82: 40th %tile | E82: 30th %tile | F82: 25th %tile | G82: 20th %tile | H82: 10th %tile | I82: 5th %tile | J82: Mean | K82: 0.5 | L82: 0.25 | M82: 0.1 | N82: Mean | O82: 50th % | P82: 25th % | Q82: 10th %
A83: Jan | B83: 0.001669551534 | C83: 0 | D83: 0 | E83: 0 | F83: 0 | G83: 0 | H83: 0 | I83: 0 | J83: 0.02 | K83: 0 | L83: 0 | M83: 0 | N83: =J83/B83 -> 11.97926484 | P83: =L83/F83 ->  | Q83: =M83/H83 -> 
A84: Feb | B84: 0.0003010933558 | C84: 0 | D84: 0 | E84: 0 | F84: 0 | G84: 0 | H84: 0 | I84: 0 | J84: 0.01 | K84: 0 | L84: 0 | M84: 0 | N84: 33.2122905
A85: Mar | B85: 0.004726550079 | C85: 0 | D85: 0 | E85: 0 | F85: 0 | G85: 0 | H85: 0 | I85: 0 | J85: 0.03 | K85: 0 | L85: 0 | M85: 0 | N85: 6.347124117
A86: Apr | B86: 0.9927283333 | C86: 0.0575 | D86: 0.025 | E86: 0.007 | F86: 0.003 | G86: 0.002 | H86: 0 | I86: 0 | J86: 0.57 | K86: 0.01971127475 | L86: 0.001314084983 | M86: 0 | N86: 0.5741752107 | O86: 0.3428047782 | P86: 0.4380283277
A87: May | B87: 6.12863285 | C87: 3.565 | D87: 2.658 | E87: 1.943 | F87: 1.6725 | G87: 1.412 | H87: 0.9453 | I87: 0.6924 | J87: 5.3 | K87: 2.815607121 | L87: 1.31335598 | M87: 0.6998387524 | N87: 0.8647931977 | O87: 0.7897916189 | P87: 0.78526516 | Q87: 0.7403350813
A88: Jun | B88: 2.836171813 | C88: 1.35 | D88: 1.04 | E88: 0.8186 | F88: 0.714 | G88: 0.6114 | H88: 0.4 | I88: 0.2881 | J88: 2.77 | K88: 1.185969433 | L88: 0.648047583 | M88: 0.3684129331 | N88: 0.9766686162 | O88: 0.8784958763 | P88: 0.9076296681 | Q88: 0.9210323329
A89: Jul | B89: 1.80838867 | C89: 0.9 | D89: 0.661 | E89: 0.407 | F89: 0.326 | G89: 0.263 | H89: 0.152 | I89: 0.088 | J89: 2.77 | K89: 1.125925765 | L89: 0.4098110205 | M89: 0.1933866732 | N89: 1.531750362 | O89: 1.251028628 | P89: 1.25708902 | Q89: 1.272280745
A90: Aug | B90: 1.224025177 | C90: 0.403 | D90: 0.294 | E90: 0.19 | F90: 0.159 | G90: 0.122 | H90: 0.047 | I90: 0.014 | J90: 1.61 | K90: 0.4417481797 | L90: 0.1849960651 | M90: 0.04652931334 | N90: 1.315332421 | O90: 1.096149329 | P90: 1.163497265 | Q90: 0.9899853903
A91: Sep | B91: 1.12835935 | C91: 0.332 | D91: 0.249 | E91: 0.1517 | F91: 0.11425 | G91: 0.091 | H91: 0.045 | I91: 0.014 | J91: 1.17 | K91: 0.320419374 | L91: 0.1081541735 | M91: 0.04851776009 | N91: 1.036903714 | O91: 0.9651185962 | P91: 0.946644845 | Q91: 1.078172447
A92: Oct | B92: 0.5469116743 | C92: 0.26 | D92: 0.207 | E92: 0.149 | F92: 0.13 | G92: 0.108 | H92: 0.07 | I92: 0.02705 | J92: 0.66 | K92: 0.2858921565 | L92: 0.1462448339 | M92: 0.08796681739 | N92: 1.206776214 | O92: 1.099585217 | P92: 1.124960261 | Q92: 1.25666882
A93: Nov | B93: 0.1134214286 | C93: 0.046 | D93: 0.03 | E93: 0.017 | F93: 0.011 | G93: 0.0078 | H93: 0.002 | I93: 0 | J93: 0.19 | K93: 0.07212651556 | L93: 0.01697094484 | M93: 0.004242736209 | N93: 1.675168461 | O93: 1.56796773 | P93: 1.542813167 | Q93: 2.121368105
A94: Dec | B94: 0.01630527144 | C94: 0.001 | D94: 0.001 | E94: 0 | F94: 0 | G94: 0 | H94: 0 | I94: 0 | J94: 0.05 | K94: 0.002663417989 | L94: 0 | M94: 0 | N94: 3.066492955 | O94: 2.663417989
A95: Annual | B95: 1.235710459 | C95: 0.1175 | D95: 0.028 | E95: 0.003 | F95: 0.001 | G95: 0 | H95: 0 | I95: 0 | J95: 1.27 | N95: =J95/B95 -> 1.027748847
A97: Graham (07FA005) | L97: NEWT | P97: Ratio NEWT:Data
B98: Mean | C98: Median | D98: 40th %tile | E98: 30th %tile | F98: 25th %tile | G98: 20th %tile | H98: 10th %tile | I98: 5th %tile | J98: Mean | K98: 0.5 | L98: 0.25 | M98: 0.1 | N98: Mean | O98: 50th % | P98: 25th % | Q98: 10th %
A99: Jan | B99: 5.281570458 | C99: 5.21 | D99: 4.88 | E99: 4.6 | F99: 4.4025 | G99: 4.3 | H99: 4.04 | I99: 3.7885 | J99: 5.35 | K99: 5.258019989 | L99: 4.459205414 | M99: 4.096199803 | N99: =J99/B99 -> 1.012956287 | O99: 1.009216888 | P99: =L99/F99 -> 1.012880276 | Q99: =M99/H99 -> 1.013910842
A100: Feb | B100: 4.675021779 | C100: 4.65 | D100: 4.52 | E100: 4.283 | F100: 4.2 | G100: 4.17 | H100: 3.9 | I100: 3.61 | J100: 4.94 | K100: 4.772757179 | L100: 4.356046818 | M100: 4.048043507 | N100: 1.056679569 | O100: 1.026399393 | P100: 1.037154004 | Q100: 1.037959874
A101: Mar | B101: 4.626315789 | C101: 4.49 | D101: 4.37 | E101: 4.2 | F101: 4.1 | G101: 4.03 | H101: 3.71 | I101: 3.4185 | J101: 4.56 | K101: 4.375960575 | L101: 4.015358033 | M101: 3.664501506 | N101: 0.985665529 | O101: 0.9746014643 | P101: 0.9793556178 | Q101: 0.9877362549
A102: Apr | B102: 7.520473684 | C102: 6.25 | D102: 5.546 | E102: 5.02 | F102: 4.74 | G102: 4.508 | H102: 3.759 | I102: 3.128 | J102: 11.29 | K102: 8.99736558 | L102: 6.943138905 | M102: 5.728273667 | N102: 1.501235225 | O102: 1.439578493 | P102: 1.464797237 | Q102: 1.523882327
A103: May | B103: 47.05474533 | C103: 36 | D103: 27.46 | E103: 19.61 | F103: 17.6 | G103: 14.6 | H103: 10.27 | I103: 8.8085 | J103: 32.36 | K103: 22.63519648 | L103: 11.39156947 | M103: 7.061293648 | N103: 0.6877095981 | O103: 0.6287554579 | P103: 0.6472482655 | Q103: 0.6875651069
A104: Jun | B104: 87.09162393 | C104: 76 | D104: 68.1 | E104: 59.6 | F104: 55.325 | G104: 51.9 | H104: 43.78 | I104: 38.3 | J104: 90.53 | K104: 78.51276923 | L104: 57.08236314 | M104: 43.43948219 | N104: 1.039479986 | O104: 1.033062753 | P104: 1.031764359 | Q104: 0.9922220692
A105: Jul | B105: 50.38116827 | C105: 42.5 | D105: 37.7 | E105: 32.78 | F105: 30.35 | G105: 27.4 | H105: 21.2 | I105: 16.93 | J105: 65.36 | K105: 56.38913826 | L105: 40.01809812 | M105: 27.2850669 | N105: 1.297310131 | O105: 1.326803253 | P105: 1.31855348 | Q105: 1.287031458
A106: Aug | B106: 26.03439024 | C106: 22.05 | D106: 19.3 | E106: 17 | F106: 16 | G106: 14.8 | H106: 11.7 | I106: 9.32 | J106: 37.37 | K106: 31.81267687 | L106: 22.10711444 | M106: 15.09754157 | N106: 1.435409074 | O106: 1.442751786 | P106: 1.381694652 | Q106: 1.290388168
A107: Sep | B107: 19.91285841 | C107: 16.55 | D107: 15 | E107: 13.6 | F107: 12.8 | G107: 12.1 | H107: 9.798 | I107: 7.2545 | J107: 25.56 | K107: 21.36275901 | L107: 16.41285143 | M107: 11.80162174 | N107: 1.283592716 | O107: 1.290801148 | P107: 1.282254018 | Q107: 1.204492932
A108: Oct | B108: 15.40709677 | C108: 14.1 | D108: 13 | E108: 11.9 | F108: 11.3 | G108: 10.9 | H108: 9.156 | I108: 6.796 | J108: 21.31 | K108: 19.40101673 | L108: 15.6546135 | M108: 12.28552659 | N108: 1.383128847 | O108: 1.375958633 | P108: 1.385364027 | Q108: 1.341800633
A109: Nov | B109: 8.767623932 | C109: 8.325 | D109: 7.696 | E109: 7.1 | F109: 6.8 | G109: 6.47 | H109: 5.518 | I109: 5.1445 | J109: 9.21 | K109: 8.810066924 | L109: 7.172167646 | M109: 5.697040967 | N109: 1.050455639 | O109: 1.058266297 | P109: 1.054730536 | Q109: 1.032446714
A110: Dec | B110: 6.637777778 | C110: 6.5 | D110: 6.262 | E110: 5.728 | F110: 5.4 | G110: 5.146 | H110: 4.358 | I110: 4.18 | J110: 6.97 | K110: 6.76351835 | L110: 5.41081468 | M110: 4.492834861 | N110: 1.050050218 | O110: 1.040541285 | P110: 1.002002718 | Q110: 1.030939619
A111: Annual | B111: 23.6359216 | C111: 10.3 | D111: 7.35 | E111: 6.04 | F111: 5.42 | G111: 4.98 | H111: 4.34 | I111: 4.02 | J111: 26.3 | N111: =J111/B111 -> 1.112713117
A113: Halfway (07FA003) | L113: NEWT | P113: Ratio NEWT:Data
B114: Mean | C114: Median | D114: 40th %tile | E114: 30th %tile | F114: 25th %tile | G114: 20th %tile | H114: 10th %tile | I114: 5th %tile | J114: Mean | K114: 0.5 | L114: 0.25 | M114: 0.1 | N114: Mean | O114: 50th % | P114: 25th % | Q114: 10th %
A115: Jan | B115: 6.212497013 | C115: 5.75 | D115: 5.21 | E115: 4.9 | F115: 4.73 | G115: 4.4 | H115: 3.886 | I115: 3.46 | J115: 6.76 | K115: 6.164306684 | L115: 5.013272427 | M115: 4.046621857 | N115: =J115/B115 -> 1.088129296 | O115: 1.072053336 | P115: =L115/F115 -> 1.059888462 | Q115: =M115/H115 -> 1.041333468
A116: Feb | B116: 5.42761175 | C116: 4.93 | D116: 4.716 | E116: 4.42 | F116: 4.25 | G116: 4.008 | H116: 3.702 | I116: 2.932 | J116: 6.2 | K116: 5.283656718 | L116: 4.746521491 | M116: 4.074554361 | N116: 1.142307204 | O116: 1.071735643 | P116: 1.116828586 | Q116: 1.10063597
A117: Mar | B117: 5.581170848 | C117: 5.2 | D117: 4.9 | E117: 4.638 | F117: 4.47 | G117: 4.25 | H117: 3.71 | I117: 3.466 | J117: 5.87 | K117: 5.282370787 | L117: 4.542838877 | M117: 3.803306967 | N117: 1.051750638 | O117: 1.015840536 | P117: 1.016295051 | Q117: 1.025150126
A118: Apr | B118: 14.30462963 | C118: 10.4 | D118: 8.6 | E118: 7.461 | F118: 6.8 | G118: 6.09 | H118: 5.1 | I118: 4.6235 | J118: 15.16 | K118: 9.98401603 | L118: 6.820264456 | M118: 5.461811125 | N118: 1.059796751 | O118: 0.9600015414 | P118: 1.002980067 | Q118: 1.070943358
A119: May | B119: 69.2248626 | C119: 57.4 | D119: 48.06 | E119: 39.18 | F119: 34.6 | G119: 28.6 | H119: 19.6 | I119: 13.18 | J119: 58.46 | K119: 48.86278172 | L119: 26.99064422 | M119: 15.25125428 | N119: 0.8444942727 | O119: 0.8512679743 | P119: 0.7800764226 | Q119: 0.7781252182
A120: Jun | B120: 113.4125448 | C120: 88.9 | D120: 78.26 | E120: 69.5 | F120: 65.5 | G120: 61.22 | H120: 54.16 | I120: 46.68 | J120: 123.45 | K120: 93.74027503 | L120: 66.00132716 | M120: 54.23143105 | N120: 1.088503924 | O120: 1.054446288 | P120: 1.00765385 | Q120: 1.001318889
A121: Jul | B121: 82.97980884 | C121: 65.4 | D121: 55 | E121: 47.44 | F121: 42.4 | G121: 38.24 | H121: 27.1 | I121: 22.78 | J121: 80.7 | K121: 62.78096696 | L121: 40.87489385 | M121: 26.51150548 | N121: 0.97252574 | O121: 0.9599536232 | P121: 0.9640305152 | Q121: 0.9782843349
A122: Aug | B122: 45.68782557 | C122: 30.8 | D122: 26.5 | E122: 22.98 | F122: 21.3 | G122: 19.8 | H122: 15.06 | I122: 11.68 | J122: 46.38 | K122: 28.29143925 | L122: 19.47010532 | M122: 12.35437969 | N122: 1.015150085 | O122: 0.9185532224 | P122: 0.9140894517 | Q122: 0.820343937
A123: Sep | B123: 32.14452528 | C123: 25.7 | D123: 22.3 | E123: 19.9 | F123: 18.8 | G123: 17.6 | H123: 12.9 | I123: 9.945 | J123: 35.12 | K123: 29.21003794 | L123: 19.64568923 | M123: 13.23499064 | N123: 1.092565521 | O123: 1.136577352 | P123: 1.04498347 | Q123: 1.025968267
A124: Oct | B124: 20.92291435 | C124: 18.8 | D124: 17.32 | E124: 15.24 | F124: 13.75 | G124: 12.8 | H124: 11 | I124: 9.138 | J124: 25.84 | K124: 22.55768742 | L124: 17.79034111 | M124: 13.13927154 | N124: 1.235009596 | O124: 1.199876991 | P124: 1.29384299 | Q124: 1.194479231
A125: Nov | B125: 11.03241379 | C125: 10.3 | D125: 9.496 | E125: 8.45 | F125: 7.9 | G125: 7.574 | H125: 6.178 | I125: 4.2645 | J125: 11.8 | K125: 10.92600712 | L125: 8.605439232 | M125: 7.246940117 | N125: 1.069575545 | O125: 1.06077739 | P125: 1.089296105 | Q125: 1.173023651
A126: Dec | B126: 8.31369863 | C126: 7.85 | D126: 7.25 | E126: 6.75 | F126: 6.3475 | G126: 5.8 | H126: 4.975 | I126: 4.28 | J126: 9.15 | K126: 8.398909743 | L126: 7.120362839 | M126: 5.594422307 | N126: 1.100593178 | O126: 1.069924808 | P126: 1.12175862 | Q126: 1.124506996
A127: Annual | B127: 34.47840249 | C127: 14.8 | D127: 9.83 | E127: 7.36 | F127: 6.53 | G127: 5.724 | H127: 4.76 | I127: 4.07 | J127: 35.5 | N127: =J127/B127 -> 1.029630071
L129: NEWT | P129: Ratio NEWT:Data
A130: Kiskatinaw (07FD001) | B130: Mean | C130: Median | D130: 40th %tile | E130: 30th %tile | F130: 25th %tile | G130: 20th %tile | H130: 10th %tile | I130: 5th %tile | J130: Mean | K130: 0.5 | L130: 0.25 | M130: 0.1 | N130: Mean | O130: 50th % | P130: 25th % | Q130: 10th %
A131: Jan | B131: 1.009918757 | C131: 0.8 | D131: 0.687 | E131: 0.538 | F131: 0.47125 | G131: 0.4336 | H131: 0.2213 | I131: 0.14 | J131: 0.95 | K131: 0.7659703368 | L131: 0.4718377275 | M131: 0.2287698072 | N131: =J131/B131 -> 0.9406697251 | O131: 0.957462921 | P131: =L131/F131 -> 1.001247167 | Q131: =M131/H131 -> 1.033754213
A132: Feb | B132: 0.9163237548 | C132: 0.6845 | D132: 0.605 | E132: 0.501 | F132: 0.46 | G132: 0.392 | H132: 0.2125 | I132: 0.13425 | J132: 0.75 | K132: 0.541819952 | L132: 0.3164916545 | M132: 0.139067121 | N132: 0.8184880028 | O132: 0.79155581 | P132: 0.6880253358 | Q132: 0.6544335106
A133: Mar | B133: 1.499596177 | C133: 0.9115 | D133: 0.7706 | E133: 0.63 | F133: 0.555 | G133: 0.4806 | H133: 0.2863 | I133: 0.161 | J133: 1.38 | K133: 0.7924723517 | L133: 0.4272891677 | M133: 0.1828400159 | N133: 0.9202477449 | O133: 0.8694156355 | P133: 0.7698903922 | Q133: 0.6386308625
A134: Apr | B134: 21.63076605 | C134: 8.96 | D134: 5.296 | E134: 2.95 | F134: 2.295 | G134: 1.73 | H134: 1.029 | I134: 0.6986 | J134: 6.38 | K134: 2.436931667 | L134: 0.5640886287 | M134: 0.240150415 | N134: 0.2949502568 | O134: 0.2719789807 | P134: 0.2457902522 | Q134: 0.2333823275
A135: May | B135: 34.49068698 | C135: 24.9 | D135: 19.6 | E135: 14.69 | F135: 12.4 | G135: 10.6 | H135: 7.003 | I135: 5.1995 | J135: 37.62 | K135: 25.37708972 | L135: 12.06451806 | M135: 6.365073322 | N135: 1.090729217 | O135: 1.01916023 | P135: 0.972945005 | Q135: 0.9089066575
A136: Jun | B136: 25.47491338 | C136: 12.1 | D136: 9.422 | E136: 7.298 | F136: 6.2075 | G136: 5.31 | H136: 3.293 | I136: 2.2665 | J136: 29.78 | K136: 9.759800788 | L136: 5.074658751 | M136: 2.53492225 | N136: 1.16899318 | O136: 0.8065951064 | P136: 0.8175044302 | Q136: 0.7697911477
A137: Jul | B137: 21.60677338 | C137: 7.45 | D137: 5.338 | E137: 3.91 | F137: 3.1075 | G137: 2.4 | H137: 1.35 | I137: 0.84915 | J137: 21.24 | K137: 5.924345705 | L137: 2.508779048 | M137: 1.217110478 | N137: 0.9830250739 | O137: 0.7952141885 | P137: 0.8073303454 | Q137: 0.9015633171
A138: Aug | B138: 7.376142174 | C138: 3.165 | D138: 2.182 | E138: 1.45 | F138: 1.22 | G138: 0.946 | H138: 0.5276 | I138: 0.276 | J138: 10.8 | K138: 3.418935039 | L138: 1.25188278 | M138: 0.4794567151 | N138: 1.46418002 | O138: 1.08023224 | P138: 1.026133426 | Q138: 0.9087504077
A139: Sep | B139: 6.753160494 | C139: 2.66 | D139: 1.76 | E139: 1.21 | F139: 0.94275 | G139: 0.8128 | H139: 0.5488 | I139: 0.33265 | J139: 7.28 | K139: 2.415007075 | L139: 0.9099020021 | M139: 0.413543247 | N139: 1.07801377 | O139: 0.9078973968 | P139: 0.9651572549 | Q139: 0.7535409019
A140: Oct | B140: 5.078554839 | C140: 2.85 | D140: 2.006 | E140: 1.58 | F140: 1.37 | G140: 1.188 | H140: 0.795 | I140: 0.652 | J140: 4.58 | K140: 2.198194914 | L140: 1.179289117 | M140: 0.7185172731 | N140: 0.9018313566 | O140: 0.771296461 | P140: 0.8607949758 | Q140: 0.9037953121
A141: Nov | B141: 2.703444242 | C141: 1.9 | D141: 1.55 | E141: 1.19 | F141: 1.02 | G141: 0.8892 | H141: 0.603 | I141: 0.48 | J141: 2.25 | K141: 1.679177888 | L141: 0.8565503366 | M141: 0.5011243504 | N141: 0.8322716499 | O141: 0.8837778356 | P141: 0.8397552319 | Q141: 0.8310519907
A142: Dec | B142: 1.512472356 | C142: 1.19 | D142: 1.01 | E142: 0.8327 | F142: 0.7 | G142: 0.59 | H142: 0.4 | I142: 0.271 | J142: 1.33 | K142: 1.104946821 | L142: 0.6253627595 | M142: 0.3602683752 | N142: 0.8793549151 | O142: 0.9285267402 | P142: 0.8933753707 | Q142: 0.900670938
A143: Annual | B143: 10.90620824 | C143: 2.36 | D143: 1.59 | E143: 1.12 | F143: 0.92825 | G143: 0.772 | H143: 0.48 | I143: 0.272 | J143: 10.4 | N143: =J143/B143 -> 0.9535853135
L145: NEWT | P145: Ratio NEWT:Data
A146: Alces (07FD004) | B146: Mean | C146: Median | D146: 40th %tile | E146: 30th %tile | F146: 25th %tile | G146: 20th %tile | H146: 10th %tile | I146: 5th %tile | J146: Mean | K146: 0.5 | L146: 0.25 | M146: 0.1 | N146: Mean | O146: 50th % | P146: 25th % | Q146: 10th %
A147: Jan | B147: 0.01637263626 | C147: 0.013 | D147: 0.008 | E147: 0.004 | F147: 0.003 | G147: 0.001 | H147: 0 | I147: 0 | J147: 0.04 | K147: 0.03043550071 | L147: 0.009364769449 | M147: 0 | N147: =J147/B147 -> 2.443100754 | O147: 2.341192362 | P147: =L147/F147 -> 3.121589816 | Q147: =M147/H147 -> 
A148: Feb | B148: 0.01706896552 | C148: 0.012 | D148: 0.0084 | E148: 0.004 | F148: 0.002 | G148: 0.001 | H148: 0 | I148: 0 | J148: 0.03 | K148: 0.01891833968 | L148: 0.006306113227 | M148: 0.000472958492 | N148: 1.757575758 | O148: 1.576528307 | P148: 3.153056614
A149: Mar | B149: 0.07891991101 | C149: 0.02 | D149: 0.017 | E149: 0.011 | F149: 0.006 | G149: 0.004 | H149: 0.002 | I149: 0 | J149: 0.06 | K149: 0.01790931762 | L149: 0.006268261168 | M149: 0.001790931762 | N149: 0.7602644153 | O149: 0.8954658811 | P149: 1.044710195 | Q149: 0.8954658811
A150: Apr | B150: 1.555224138 | C150: 0.5955 | D150: 0.33 | E150: 0.1474 | F150: 0.09725 | G150: 0.059 | H150: 0.0229 | I150: 0.006 | J150: 0.35 | K150: 0.0960882052 | L150: 0.01931288265 | M150: 0.004444608611 | N150: 0.2250479474 | O150: 0.1613571876 | P150: 0.198590053 | Q150: 0.1940877123
A151: May | B151: 2.269396552 | C151: 1.405 | D151: 0.9646 | E151: 0.6361 | F151: 0.5385 | G151: 0.4312 | H151: 0.2314 | I151: 0.1039 | J151: 2.36 | K151: 1.388255578 | L151: 0.5403210558 | M151: 0.2906348008 | N151: 1.039924027 | O151: 0.9880822618 | P151: 1.003381719 | Q151: 1.255984446
A152: Jun | B152: 1.325786207 | C152: 0.669 | D152: 0.5052 | E152: 0.375 | F152: 0.30225 | G152: 0.2396 | H152: 0.1085 | I152: 0.023 | J152: 1.91 | K152: 0.894026873 | L152: 0.4233107076 | M152: 0.1532999029 | N152: 1.440654602 | O152: 1.336363039 | P152: 1.400531704 | Q152: 1.412902331
A153: Jul | B153: 0.8936774194 | C153: 0.44 | D153: 0.316 | E153: 0.214 | F153: 0.15 | G153: 0.0752 | H153: 0.01 | I153: 0.002 | J153: 1.31 | K153: 0.6316058507 | L153: 0.2309443162 | M153: 0.01704333248 | N153: 1.465853306 | O153: 1.435467843 | P153: 1.539628774 | Q153: 1.704333248
A154: Aug | B154: 0.3003848721 | C154: 0.079 | D154: 0.0292 | E154: 0.006 | F154: 0.002 | G154: 0.001 | H154: 0 | I154: 0 | J154: 0.77 | K154: 0.1709063533 | L154: 0.004143184323 | M154: 0 | N154: 2.563378091 | O154: 2.163371561 | P154: 2.071592162
A155: Sep | B155: 0.6036574713 | C155: 0.075 | D155: 0.0286 | E155: 0.003 | F155: 0.002 | G155: 0.001 | H155: 0 | I155: 0 | J155: 0.53 | K155: 0.05520472924 | L155: 0.001472126113 | M155: 0 | N155: 0.8779813474 | O155: 0.7360630566 | P155: 0.7360630566
A156: Oct | B156: 0.2201010753 | C156: 0.094 | D156: 0.0626 | E156: 0.023 | F156: 0.017 | G156: 0.004 | H156: 0.0009 | I156: 0 | J156: 0.29 | K156: 0.1222202588 | L156: 0.02304152421 | M156: 0.001335740534 | N156: 1.31757648 | O156: 1.300215519 | P156: 1.355383777 | Q156: 1.484156149
A157: Nov | B157: 0.1117511111 | C157: 0.0495 | D157: 0.035 | E157: 0.016 | F157: 0.012 | G157: 0.008 | H157: 0.001 | I157: 0 | J157: 0.14 | K157: 0.07750136585 | L157: 0.02214324739 | M157: 0.001581660528 | N157: 1.252783964 | O157: 1.565684159 | P157: 1.845270615 | Q157: 1.581660528
A158: Dec | B158: 0.03634140969 | C158: 0.02 | D158: 0.014 | E158: 0.01 | F158: 0.00575 | G158: 0.003 | H158: 0 | I158: 0 | J158: 0.07 | K158: 0.04728477886 | L158: 0.01810906424 | M158: 0 | N158: 1.926177344 | O158: 2.364238943 | P158: 3.149402477
A159: Annual | B159: 0.6252528638 | C159: 0.061 | D159: 0.032 | E159: 0.017 | F159: 0.012 | G159: 0.006 | H159: 0.001 | I159: 0 | J159: 0.659 | N159: =J159/B159 -> 1.053973581
L161: NEWT | P161: Ratio NEWT:Data
A162: St John (07FC002) | B162: Mean | C162: Median | D162: 40th %tile | E162: 30th %tile | F162: 25th %tile | G162: 20th %tile | H162: 10th %tile | I162: 5th %tile | J162: Mean | K162: 0.5 | L162: 0.25 | M162: 0.1 | N162: Mean | O162: 50th % | P162: 25th % | Q162: 10th %
A163: Jan | B163: 0.004634538153 | C163: 0.002 | D163: 0 | E163: 0 | F163: 0 | G163: 0 | H163: 0 | I163: 0 | J163: 0.03 | K163: 0.007042450351 | L163: 0 | M163: 0 | N163: =J163/B163 -> 6.473136915 | O163: 3.521225176 | P163: =L163/F163 ->  | Q163: =M163/H163 -> 
A164: Feb | B164: 0.003 | C164: 0 | D164: 0 | E164: 0 | F164: 0 | G164: 0 | H164: 0 | I164: 0 | J164: 0.02 | K164: 0.01068486584 | L164: 0 | M164: 0 | N164: 6.666666667
A165: Mar | B165: 0.2462217742 | C165: 0.008 | D165: 0.003 | E165: 0.002 | F165: 0 | G165: 0 | H165: 0 | I165: 0 | J165: 0.05 | K165: 0.001061676747 | L165: 0.0004246706987 | M165: 0 | N165: 0.2030689616 | O165: 0.1327095933
A166: Apr | B166: 3.578781481 | C166: 1.73 | D166: 0.9968 | E166: 0.6084 | F166: 0.501 | G166: 0.4038 | H166: 0.0197 | I166: 0.008 | J166: 0.3 | K166: 0.1368948261 | L166: 0.03354219548 | M166: 0.004438711028 | N166: 0.08382741488 | O166: 0.07912995728 | P166: 0.06695048999 | Q166: 0.2253152806
A167: May | B167: 2.052177778 | C167: 0.596 | D167: 0.4348 | E167: 0.2851 | F167: 0.2305 | G167: 0.195 | H167: 0.144 | I167: 0.1047 | J167: 1.97 | K167: 0.6459339093 | L167: 0.2669341336 | M167: 0.1255290838 | N167: 0.9599558193 | O167: 1.083781727 | P167: 1.158065656 | Q167: 0.8717297487
A168: Jun | B168: 0.4218111111 | C168: 0.1235 | D168: 0.088 | E168: 0.062 | F168: 0.045 | G168: 0.0278 | H168: 0.005 | I168: 0.002 | J168: 1.52 | K168: 0.4556744545 | L168: 0.2223566067 | M168: 0.03444961512 | N168: 3.60350868 | O168: 3.689671696 | P168: 4.941257926 | Q168: 6.889923023
A169: Jul | B169: 0.5086272401 | C169: 0.088 | D169: 0.051 | E169: 0.028 | F169: 0.023 | G169: 0.0166 | H169: 0.0038 | I169: 0 | J169: 1.11 | K169: 0.1805555639 | L169: 0.07183393402 | M169: 0.0198028683 | N169: 2.182344775 | O169: 2.051767771 | P169: 3.123214523 | Q169: 5.211281131
A170: Aug | B170: 0.1368673835 | C170: 0.011 | D170: 0.007 | E170: 0.002 | F170: 0.001 | G170: 0.001 | H170: 0 | I170: 0 | J170: 0.63 | K170: 0.04166731779 | L170: 0.00595247397 | M170: 0 | N170: 4.602995862 | O170: 3.787937981 | P170: 5.95247397
A171: Sep | B171: 0.1341851852 | C171: 0.014 | D171: 0.006 | E171: 0.003 | F171: 0.001 | G171: 0.001 | H171: 0 | I171: 0 | J171: 0.41 | K171: 0.07838116293 | L171: 0.003265881789 | M171: 0 | N171: 3.055478885 | O171: 5.598654495 | P171: 3.265881789
A172: Oct | B172: 0.07637419355 | C172: 0.0185 | D172: 0.011 | E172: 0.003 | F172: 0.003 | G172: 0.001 | H172: 0 | I172: 0 | J172: 0.21 | K172: 0.05347331241 | L172: 0.008020996862 | M172: 0 | N172: 2.749619868 | O172: 2.890449319 | P172: 2.673665621
A173: Nov | B173: 0.03566538462 | C173: 0.01 | D173: 0.007 | E173: 0.006 | F173: 0.004 | G173: 0.0018 | H173: 0 | I173: 0 | J173: 0.09 | K173: 0.02265678449 | L173: 0 | M173: 0 | N173: 2.523455192 | O173: 2.265678449 | P173: 0
A174: Dec | B174: 0.01027016129 | C174: 0.004 | D174: 0.003 | E174: 0 | F174: 0 | G174: 0 | H174: 0 | I174: 0 | J174: 0.06 | K174: 0.01962941499 | L174: 0 | M174: 0 | N174: 5.842167256 | O174: 4.907353747
A175: Annual | B175: 0.6331785601 | C175: 0.018 | D175: 0.008 | E175: 0.003 | F175: 0.002 | G175: 0 | H175: 0 | I175: 0 | J175: 0.538 | N175: =J175/B175 -> 0.8496813283
A178: Clear (07FD009) | B178: Mean | C178: Median | D178: 40th %tile | E178: 30th %tile | F178: 25th %tile | G178: 20th %tile | H178: 10th %tile | I178: 5th %tile
A179: Jan
A180: Feb | B180: 0.062 | C180: 0.058 | D180: 0.032 | E180: 0 | F180: 0 | G180: 0 | H180: 0 | I180: 0
A181: Mar | B181: 0.4326253602 | C181: 0.01 | D181: 0 | E181: 0 | F181: 0 | G181: 0 | H181: 0 | I181: 0
A182: Apr | B182: 18.32726237 | C182: 7.385 | D182: 3.964 | E182: 1.7 | F182: 0.878 | G182: 0.4902 | H182: 0.1 | I182: 0.014
A183: May | B183: 17.32557911 | C183: 11.6 | D183: 8.59 | E183: 6.29 | F183: 5.23 | G183: 4.19 | H183: 2.93 | I183: 1.97
A184: Jun | B184: 6.683736563 | C184: 3.4 | D184: 2.48 | E184: 1.89 | F184: 1.56 | G184: 1.3 | H184: 0.794 | I184: 0.535
A185: Jul | B185: 5.557229437 | C185: 1.765 | D185: 1.06 | E185: 0.688 | F185: 0.54025 | G185: 0.413 | H185: 0.198 | I185: 0.1145
A186: Aug | B186: 1.947732616 | C186: 0.497 | D186: 0.2886 | E186: 0.143 | F186: 0.102 | G186: 0.068 | H186: 0.021 | I186: 0.01
A187: Sep | B187: 1.789845185 | C187: 0.2755 | D187: 0.178 | E187: 0.0977 | F187: 0.0585 | G187: 0.033 | H187: 0.014 | I187: 0.00045
A188: Oct | B188: 0.9516633941 | C188: 0.3635 | D188: 0.242 | E188: 0.1745 | F188: 0.14825 | G188: 0.12 | H188: 0.061 | I188: 0.024
A189: Nov | B189: 1.246263158 | C189: 0.3385 | D189: 0.2334 | E189: 0.2012 | F189: 0.15025 | G189: 0.1074 | H189: 0.0828 | I189: 0.02955
A190: Dec
A191: Annual
A195: Hines (07FD011) | B195: Mean | C195: Median | D195: 40th %tile | E195: 30th %tile | F195: 25th %tile | G195: 20th %tile | H195: 10th %tile | I195: 5th %tile
A196: Jan
A197: Feb | B197: 0.009788461538 | C197: 0 | D197: 0 | E197: 0 | F197: 0 | G197: 0 | H197: 0 | I197: 0
A198: Mar | B198: 0.0197541502 | C198: 0 | D198: 0 | E198: 0 | F198: 0 | G198: 0 | H198: 0 | I198: 0
A199: Apr | B199: 0.9122780488 | C199: 0.2345 | D199: 0.1236 | E199: 0.033 | F199: 0.015 | G199: 0.006 | H199: 0 | I199: 0
A200: May | B200: 2.214210569 | C200: 1.11 | D200: 0.7242 | E200: 0.4554 | F200: 0.34975 | G200: 0.218 | H200: 0.032 | I200: 0.00745
A201: Jun | B201: 0.9211772358 | C201: 0.38 | D201: 0.2506 | E201: 0.1237 | F201: 0.074 | G201: 0.0418 | H201: 0.014 | I201: 0.002
A202: Jul | B202: 0.8148646735 | C202: 0.096 | D202: 0.054 | E202: 0.024 | F202: 0.015 | G202: 0.007 | H202: 0 | I202: 0
A203: Aug | B203: 0.1907718332 | C203: 0.016 | D203: 0.006 | E203: 0.001 | F203: 0 | G203: 0 | H203: 0 | I203: 0
A204: Sep | B204: 0.1693788618 | C204: 0.014 | D204: 0.005 | E204: 0.001 | F204: 0.001 | G204: 0 | H204: 0 | I204: 0
A205: Oct | B205: 0.09538095238 | C205: 0.02 | D205: 0.013 | E205: 0.003 | F205: 0.001 | G205: 0 | H205: 0 | I205: 0
A206: Nov | B206: 0.07532352941 | C206: 0.0075 | D206: 0.0052 | E206: 0.0049 | F206: 0.00325 | G206: 0 | H206: 0 | I206: 0
A207: Dec
A208: Annual
L211: NEWT | P211: Ratio NEWT:Data
A212: Halfway (07FA001) | B212: Mean | C212: Median | D212: 40th %tile | E212: 30th %tile | F212: 25th %tile | G212: 20th %tile | H212: 10th %tile | I212: 5th %tile | J212: Mean | K212: 0.5 | L212: 0.25 | M212: 0.1 | N212: Mean | O212: 50th % | P212: 25th % | Q212: 10th %
A213: Jan | B213: 12.36495161 | C213: 12.45 | D213: 10.5 | E213: 9.63 | F213: 9.3625 | G213: 8.774 | H213: 7.08 | I213: 6.5495 | J213: 13 | K213: 13.07211961 | L213: 9.830338946 | M213: 7.433783683 | N213: =J213/B213 -> 1.051358744 | O213: 1.049969447 | P213: =L213/F213 -> 1.049969447 | Q213: =M213/H213 -> 1.049969447
A214: Feb | B214: 10.52479501 | C214: 11 | D214: 9.91 | E214: 8.89 | F214: 8.21 | G214: 7.79 | H214: 5.8 | I214: 5.2 | J214: 11.94 | K214: 12.21938272 | L214: 10.19353769 | M214: 6.271544587 | N214: 1.134463901 | O214: 1.110852975 | P214: 1.241600206 | Q214: 1.081300791
A215: Mar | B215: 10.18363929 | C215: 10.4 | D215: 9.9 | E215: 9.05 | F215: 8.21 | G215: 7.65 | H215: 6.51 | I215: 5.25 | J215: 11.78 | K215: 11.98398079 | L215: 9.538211635 | M215: 7.501511053 | N215: 1.156757389 | O215: 1.152305845 | P215: 1.161779736 | Q215: 1.152305845
A216: Apr | B216: 35.9637 | C216: 17.2 | D216: 13.76 | E216: 11.8 | F216: 10.8 | G216: 10.2 | H216: 8.92 | I216: 8.2955 | J216: 34.05 | K216: 15.95635384 | L216: 9.654264507 | M216: 7.997843013 | N216: 0.9467880112 | O216: 0.9276949906 | P216: 0.8939133803 | Q216: 0.8966191719
A217: May | B217: 162.90336 | C217: 136 | D217: 117 | E217: 97.52 | F217: 89.5 | G217: 82.36 | H217: 48.1 | I217: 36.5 | J217: 137.19 | K217: 111.9561494 | L217: 73.86224633 | M217: 39.59625577 | N217: 0.8421557419 | O217: 0.8232069806 | P217: 0.8252764953 | Q217: 0.8232069806
... 173 more rows

Sheet EBF Calculation
B2: Discharge at Reference Gauge | E2: =Output!#REF! ->  | F2: =Output!F10 -> 
B3: 80% Frequency | D3: 70% Frequency | F3: 60% Frequency | H3: 50% Frequency | J3: 40% Frequency | L3: 30% Frequency | N3: 20% Frequency | P3: 5% Frequency
B4: m3/s | C4: L/S/km2 | D4: m3/s | E4: L/S/km2 | F4: m3/s | G4: L/S/km2 | H4: m3/s | I4: L/S/km2 | J4: m3/s | K4: L/S/km2 | L4: m3/s | M4: L/S/km2 | N4: m3/s | O4: L/S/km2 | P4: m3/s | Q4: L/S/km2
A5: Month | B5: Candidate 1 | C5: Candidate 1 | D5: Candidate 1 | E5: Candidate 1 | F5: Candidate 1 | G5: Candidate 1 | H5: Candidate 1 | I5: Candidate 1 | J5: Candidate 1 | K5: Candidate 1 | L5: Candidate 1 | M5: Candidate 1 | N5: Candidate 1 | O5: Candidate 1 | P5: Candidate 1 | Q5: Candidate 1
A6: Jan | B6: =VLOOKUP(Output!$G$9,lookup!$A$2:$Q$28,8,0) ->  | C6: =($B6*1000)/VLOOKUP(Output!$G$9,lookup!$A$2:$Q$28,4,0) ->  | D6: =VLOOKUP(Output!$G$9,lookup!$A$2:$Q$28,9,0) ->  | E6: =($D6*1000)/VLOOKUP(Output!$G$9,lookup!$A$2:$Q$28,4,0) ->  | F6: =VLOOKUP(Output!$G$9,lookup!$A$2:$Q$28,10,0) ->  | G6: =($F6*1000)/VLOOKUP(Output!$G$9,lookup!$A$2:$Q$28,4,0) ->  | H6: =VLOOKUP(Output!$G$9,lookup!$A$2:$Q$28,11,0) ->  | I6: =($H6*1000)/VLOOKUP(Output!$G$9,lookup!$A$2:$Q$28,4,0) ->  | J6: =VLOOKUP(Output!$G$9,lookup!$A$2:$Q$28,12,0) ->  | K6: =($J6*1000)/VLOOKUP(Output!$G$9,lookup!$A$2:$Q$28,4,0) ->  | L6: =VLOOKUP(Output!$G$9,lookup!$A$2:$Q$28,13,0) ->  | M6: =($L6*1000)/VLOOKUP(Output!$G$9,lookup!$A$2:$Q$28,4,0) ->  | N6: =VLOOKUP(Output!$G$9,lookup!$A$2:$Q$28,15,0) ->  | O6: =($N6*1000)/VLOOKUP(Output!$G$9,lookup!$A$2:$Q$28,4,0) ->  | P6: =VLOOKUP(Output!$G$9,lookup!$A$2:$Q$28,17,0) ->  | Q6: =($P6*1000)/VLOOKUP(Output!$G$9,lookup!$A$2:$Q$28,4,0) -> 
A7: Feb | B7: =VLOOKUP(Output!$G$9,lookup!$A$29:$Q$55,8,0) ->  | C7: =($B7*1000)/VLOOKUP(Output!$G$9,lookup!$A$29:$Q$55,4,0) ->  | D7: =VLOOKUP(Output!$G$9,lookup!$A$29:$Q$55,9,0) ->  | E7: =($D7*1000)/VLOOKUP(Output!$G$9,lookup!$A$29:$Q$55,4,0) ->  | F7: =VLOOKUP(Output!$G$9,lookup!$A$29:$Q$55,10,0) ->  | G7: =($F7*1000)/VLOOKUP(Output!$G$9,lookup!$A$29:$Q$55,4,0) ->  | H7: =VLOOKUP(Output!$G$9,lookup!$A$29:$Q$55,11,0) ->  | I7: =($H7*1000)/VLOOKUP(Output!$G$9,lookup!$A$29:$Q$55,4,0) ->  | J7: =VLOOKUP(Output!$G$9,lookup!$A$29:$Q$55,12,0) ->  | K7: =($J7*1000)/VLOOKUP(Output!$G$9,lookup!$A$29:$Q$55,4,0) ->  | L7: =VLOOKUP(Output!$G$9,lookup!$A$29:$Q$55,13,0) ->  | M7: =($L7*1000)/VLOOKUP(Output!$G$9,lookup!$A$29:$Q$55,4,0) ->  | N7: =VLOOKUP(Output!$G$9,lookup!$A$29:$Q$55,15,0) ->  | O7: =($N7*1000)/VLOOKUP(Output!$G$9,lookup!$A$29:$Q$55,4,0) ->  | P7: =VLOOKUP(Output!$G$9,lookup!$A$29:$Q$55,17,0) ->  | Q7: =($P7*1000)/VLOOKUP(Output!$G$9,lookup!$A$29:$Q$55,4,0) -> 
A8: Mar | B8: =VLOOKUP(Output!$G$9,lookup!$A$56:$Q$82,8,0) ->  | C8: =($B8*1000)/VLOOKUP(Output!$G$9,lookup!$A$56:$Q$82,4,0) ->  | D8: =VLOOKUP(Output!$G$9,lookup!$A$56:$Q$82,9,0) ->  | E8: =($D8*1000)/VLOOKUP(Output!$G$9,lookup!$A$56:$Q$82,4,0) ->  | F8: =VLOOKUP(Output!$G$9,lookup!$A$56:$Q$82,10,0) ->  | G8: =($F8*1000)/VLOOKUP(Output!$G$9,lookup!$A$56:$Q$82,4,0) ->  | H8: =VLOOKUP(Output!$G$9,lookup!$A$56:$Q$82,11,0) ->  | I8: =($H8*1000)/VLOOKUP(Output!$G$9,lookup!$A$56:$Q$82,4,0) ->  | J8: =VLOOKUP(Output!$G$9,lookup!$A$56:$Q$82,12,0) ->  | K8: =($J8*1000)/VLOOKUP(Output!$G$9,lookup!$A$56:$Q$82,4,0) ->  | L8: =VLOOKUP(Output!$G$9,lookup!$A$56:$Q$82,13,0) ->  | M8: =($L8*1000)/VLOOKUP(Output!$G$9,lookup!$A$56:$Q$82,4,0) ->  | N8: =VLOOKUP(Output!$G$9,lookup!$A$56:$Q$82,15,0) ->  | O8: =($N8*1000)/VLOOKUP(Output!$G$9,lookup!$A$56:$Q$82,4,0) ->  | P8: =VLOOKUP(Output!$G$9,lookup!$A$56:$Q$82,17,0) ->  | Q8: =($P8*1000)/VLOOKUP(Output!$G$9,lookup!$A$56:$Q$82,4,0) -> 
A9: Apr | B9: =VLOOKUP(Output!$G$9,lookup!$A$83:$Q$109,8,0) ->  | C9: =($B9*1000)/VLOOKUP(Output!$G$9,lookup!$A$83:$Q$109,4,0) ->  | D9: =VLOOKUP(Output!$G$9,lookup!$A$83:$Q$109,9,0) ->  | E9: =($D9*1000)/VLOOKUP(Output!$G$9,lookup!$A$83:$Q$109,4,0) ->  | F9: =VLOOKUP(Output!$G$9,lookup!$A$83:$Q$109,10,0) ->  | G9: =($F9*1000)/VLOOKUP(Output!$G$9,lookup!$A$83:$Q$109,4,0) ->  | H9: =VLOOKUP(Output!$G$9,lookup!$A$83:$Q$109,11,0) ->  | I9: =($H9*1000)/VLOOKUP(Output!$G$9,lookup!$A$83:$Q$109,4,0) ->  | J9: =VLOOKUP(Output!$G$9,lookup!$A$83:$Q$109,12,0) ->  | K9: =($J9*1000)/VLOOKUP(Output!$G$9,lookup!$A$83:$Q$109,4,0) ->  | L9: =VLOOKUP(Output!$G$9,lookup!$A$83:$Q$109,13,0) ->  | M9: =($L9*1000)/VLOOKUP(Output!$G$9,lookup!$A$83:$Q$109,4,0) ->  | N9: =VLOOKUP(Output!$G$9,lookup!$A$83:$Q$109,15,0) ->  | O9: =($N9*1000)/VLOOKUP(Output!$G$9,lookup!$A$83:$Q$109,4,0) ->  | P9: =VLOOKUP(Output!$G$9,lookup!$A$83:$Q$109,17,0) ->  | Q9: =($P9*1000)/VLOOKUP(Output!$G$9,lookup!$A$83:$Q$109,4,0) -> 
A10: May | B10: =VLOOKUP(Output!$G$9,lookup!$A$110:$Q$136,8,0) ->  | C10: =($B10*1000)/VLOOKUP(Output!$G$9,lookup!$A$110:$Q$136,4,0) ->  | D10: =VLOOKUP(Output!$G$9,lookup!$A$110:$Q$136,9,0) ->  | E10: =($D10*1000)/VLOOKUP(Output!$G$9,lookup!$A$110:$Q$136,4,0) ->  | F10: =VLOOKUP(Output!$G$9,lookup!$A$110:$Q$136,10,0) ->  | G10: =($F10*1000)/VLOOKUP(Output!$G$9,lookup!$A$110:$Q$136,4,0) ->  | H10: =VLOOKUP(Output!$G$9,lookup!$A$110:$Q$136,11,0) ->  | I10: =($H10*1000)/VLOOKUP(Output!$G$9,lookup!$A$110:$Q$136,4,0) ->  | J10: =VLOOKUP(Output!$G$9,lookup!$A$110:$Q$136,12,0) ->  | K10: =($J10*1000)/VLOOKUP(Output!$G$9,lookup!$A$110:$Q$136,4,0) ->  | L10: =VLOOKUP(Output!$G$9,lookup!$A$110:$Q$136,13,0) ->  | M10: =($L10*1000)/VLOOKUP(Output!$G$9,lookup!$A$110:$Q$136,4,0) ->  | N10: =VLOOKUP(Output!$G$9,lookup!$A$110:$Q$136,15,0) ->  | O10: =($N10*1000)/VLOOKUP(Output!$G$9,lookup!$A$110:$Q$136,4,0) ->  | P10: =VLOOKUP(Output!$G$9,lookup!$A$110:$Q$136,17,0) ->  | Q10: =($P10*1000)/VLOOKUP(Output!$G$9,lookup!$A$110:$Q$136,4,0) -> 
A11: Jun | B11: =VLOOKUP(Output!$G$9,lookup!$A$137:$Q$163,8,0) ->  | C11: =($B11*1000)/VLOOKUP(Output!$G$9,lookup!$A$137:$Q$163,4,0) ->  | D11: =VLOOKUP(Output!$G$9,lookup!$A$137:$Q$163,9,0) ->  | E11: =($D11*1000)/VLOOKUP(Output!$G$9,lookup!$A$137:$Q$163,4,0) ->  | F11: =VLOOKUP(Output!$G$9,lookup!$A$137:$Q$163,10,0) ->  | G11: =($F11*1000)/VLOOKUP(Output!$G$9,lookup!$A$137:$Q$163,4,0) ->  | H11: =VLOOKUP(Output!$G$9,lookup!$A$137:$Q$163,11,0) ->  | I11: =($H11*1000)/VLOOKUP(Output!$G$9,lookup!$A$137:$Q$163,4,0) ->  | J11: =VLOOKUP(Output!$G$9,lookup!$A$137:$Q$163,12,0) ->  | K11: =($J11*1000)/VLOOKUP(Output!$G$9,lookup!$A$137:$Q$163,4,0) ->  | L11: =VLOOKUP(Output!$G$9,lookup!$A$137:$Q$163,13,0) ->  | M11: =($L11*1000)/VLOOKUP(Output!$G$9,lookup!$A$137:$Q$163,4,0) ->  | N11: =VLOOKUP(Output!$G$9,lookup!$A$137:$Q$163,15,0) ->  | O11: =($N11*1000)/VLOOKUP(Output!$G$9,lookup!$A$137:$Q$163,4,0) ->  | P11: =VLOOKUP(Output!$G$9,lookup!$A$137:$Q$163,17,0) ->  | Q11: =($P11*1000)/VLOOKUP(Output!$G$9,lookup!$A$137:$Q$163,4,0) -> 
A12: Jul | B12: =VLOOKUP(Output!$G$9,lookup!$A$164:$Q$190,8,0) ->  | C12: =($B12*1000)/VLOOKUP(Output!$G$9,lookup!$A$164:$Q$190,4,0) ->  | D12: =VLOOKUP(Output!$G$9,lookup!$A$164:$Q$190,9,0) ->  | E12: =($D12*1000)/VLOOKUP(Output!$G$9,lookup!$A$164:$Q$190,4,0) ->  | F12: =VLOOKUP(Output!$G$9,lookup!$A$164:$Q$190,10,0) ->  | G12: =($F12*1000)/VLOOKUP(Output!$G$9,lookup!$A$164:$Q$190,4,0) ->  | H12: =VLOOKUP(Output!$G$9,lookup!$A$164:$Q$190,11,0) ->  | I12: =($H12*1000)/VLOOKUP(Output!$G$9,lookup!$A$164:$Q$190,4,0) ->  | J12: =VLOOKUP(Output!$G$9,lookup!$A$164:$Q$190,12,0) ->  | K12: =($J12*1000)/VLOOKUP(Output!$G$9,lookup!$A$164:$Q$190,4,0) ->  | L12: =VLOOKUP(Output!$G$9,lookup!$A$164:$Q$190,13,0) ->  | M12: =($L12*1000)/VLOOKUP(Output!$G$9,lookup!$A$164:$Q$190,4,0) ->  | N12: =VLOOKUP(Output!$G$9,lookup!$A$164:$Q$190,15,0) ->  | O12: =($N12*1000)/VLOOKUP(Output!$G$9,lookup!$A$164:$Q$190,4,0) ->  | P12: =VLOOKUP(Output!$G$9,lookup!$A$164:$Q$190,17,0) ->  | Q12: =($P12*1000)/VLOOKUP(Output!$G$9,lookup!$A$164:$Q$190,4,0) -> 
A13: Aug | B13: =VLOOKUP(Output!$G$9,lookup!$A$191:$Q$217,8,0) ->  | C13: =($B13*1000)/VLOOKUP(Output!$G$9,lookup!$A$191:$Q$217,4,0) ->  | D13: =VLOOKUP(Output!$G$9,lookup!$A$191:$Q$217,9,0) ->  | E13: =($D13*1000)/VLOOKUP(Output!$G$9,lookup!$A$191:$Q$217,4,0) ->  | F13: =VLOOKUP(Output!$G$9,lookup!$A$191:$Q$217,10,0) ->  | G13: =($F13*1000)/VLOOKUP(Output!$G$9,lookup!$A$191:$Q$217,4,0) ->  | H13: =VLOOKUP(Output!$G$9,lookup!$A$191:$Q$217,11,0) ->  | I13: =($H13*1000)/VLOOKUP(Output!$G$9,lookup!$A$191:$Q$217,4,0) ->  | J13: =VLOOKUP(Output!$G$9,lookup!$A$191:$Q$217,12,0) ->  | K13: =($J13*1000)/VLOOKUP(Output!$G$9,lookup!$A$191:$Q$217,4,0) ->  | L13: =VLOOKUP(Output!$G$9,lookup!$A$191:$Q$217,13,0) ->  | M13: =($L13*1000)/VLOOKUP(Output!$G$9,lookup!$A$191:$Q$217,4,0) ->  | N13: =VLOOKUP(Output!$G$9,lookup!$A$191:$Q$217,15,0) ->  | O13: =($N13*1000)/VLOOKUP(Output!$G$9,lookup!$A$191:$Q$217,4,0) ->  | P13: =VLOOKUP(Output!$G$9,lookup!$A$191:$Q$217,17,0) ->  | Q13: =($P13*1000)/VLOOKUP(Output!$G$9,lookup!$A$191:$Q$217,4,0) -> 
A14: Sep | B14: =VLOOKUP(Output!$G$9,lookup!$A$218:$Q$244,8,0) ->  | C14: =($B14*1000)/VLOOKUP(Output!$G$9,lookup!$A$218:$Q$244,4,0) ->  | D14: =VLOOKUP(Output!$G$9,lookup!$A$218:$Q$244,9,0) ->  | E14: =($D14*1000)/VLOOKUP(Output!$G$9,lookup!$A$218:$Q$244,4,0) ->  | F14: =VLOOKUP(Output!$G$9,lookup!$A$218:$Q$244,10,0) ->  | G14: =($F14*1000)/VLOOKUP(Output!$G$9,lookup!$A$218:$Q$244,4,0) ->  | H14: =VLOOKUP(Output!$G$9,lookup!$A$218:$Q$244,11,0) ->  | I14: =($H14*1000)/VLOOKUP(Output!$G$9,lookup!$A$218:$Q$244,4,0) ->  | J14: =VLOOKUP(Output!$G$9,lookup!$A$218:$Q$244,12,0) ->  | K14: =($J14*1000)/VLOOKUP(Output!$G$9,lookup!$A$218:$Q$244,4,0) ->  | L14: =VLOOKUP(Output!$G$9,lookup!$A$218:$Q$244,13,0) ->  | M14: =($L14*1000)/VLOOKUP(Output!$G$9,lookup!$A$218:$Q$244,4,0) ->  | N14: =VLOOKUP(Output!$G$9,lookup!$A$218:$Q$244,15,0) ->  | O14: =($N14*1000)/VLOOKUP(Output!$G$9,lookup!$A$218:$Q$244,4,0) ->  | P14: =VLOOKUP(Output!$G$9,lookup!$A$218:$Q$244,17,0) ->  | Q14: =($P14*1000)/VLOOKUP(Output!$G$9,lookup!$A$218:$Q$244,4,0) -> 
A15: Oct | B15: =VLOOKUP(Output!$G$9,lookup!$A$245:$Q$271,8,0) ->  | C15: =($B15*1000)/VLOOKUP(Output!$G$9,lookup!$A$245:$Q$271,4,0) ->  | D15: =VLOOKUP(Output!$G$9,lookup!$A$245:$Q$271,9,0) ->  | E15: =($D15*1000)/VLOOKUP(Output!$G$9,lookup!$A$245:$Q$271,4,0) ->  | F15: =VLOOKUP(Output!$G$9,lookup!$A$245:$Q$271,10,0) ->  | G15: =($F15*1000)/VLOOKUP(Output!$G$9,lookup!$A$245:$Q$271,4,0) ->  | H15: =VLOOKUP(Output!$G$9,lookup!$A$245:$Q$271,11,0) ->  | I15: =($H15*1000)/VLOOKUP(Output!$G$9,lookup!$A$245:$Q$271,4,0) ->  | J15: =VLOOKUP(Output!$G$9,lookup!$A$245:$Q$271,12,0) ->  | K15: =($J15*1000)/VLOOKUP(Output!$G$9,lookup!$A$245:$Q$271,4,0) ->  | L15: =VLOOKUP(Output!$G$9,lookup!$A$245:$Q$271,13,0) ->  | M15: =($L15*1000)/VLOOKUP(Output!$G$9,lookup!$A$245:$Q$271,4,0) ->  | N15: =VLOOKUP(Output!$G$9,lookup!$A$245:$Q$271,15,0) ->  | O15: =($N15*1000)/VLOOKUP(Output!$G$9,lookup!$A$245:$Q$271,4,0) ->  | P15: =VLOOKUP(Output!$G$9,lookup!$A$245:$Q$271,17,0) ->  | Q15: =($P15*1000)/VLOOKUP(Output!$G$9,lookup!$A$245:$Q$271,4,0) -> 
A16: Nov | B16: =VLOOKUP(Output!$G$9,lookup!$A$272:$Q$298,8,0) ->  | C16: =($B16*1000)/VLOOKUP(Output!$G$9,lookup!$A$272:$Q$298,4,0) ->  | D16: =VLOOKUP(Output!$G$9,lookup!$A$272:$Q$298,9,0) ->  | E16: =($D16*1000)/VLOOKUP(Output!$G$9,lookup!$A$272:$Q$298,4,0) ->  | F16: =VLOOKUP(Output!$G$9,lookup!$A$272:$Q$298,10,0) ->  | G16: =($F16*1000)/VLOOKUP(Output!$G$9,lookup!$A$272:$Q$298,4,0) ->  | H16: =VLOOKUP(Output!$G$9,lookup!$A$272:$Q$298,11,0) ->  | I16: =($H16*1000)/VLOOKUP(Output!$G$9,lookup!$A$272:$Q$298,4,0) ->  | J16: =VLOOKUP(Output!$G$9,lookup!$A$272:$Q$298,12,0) ->  | K16: =($J16*1000)/VLOOKUP(Output!$G$9,lookup!$A$272:$Q$298,4,0) ->  | L16: =VLOOKUP(Output!$G$9,lookup!$A$272:$Q$298,13,0) ->  | M16: =($L16*1000)/VLOOKUP(Output!$G$9,lookup!$A$272:$Q$298,4,0) ->  | N16: =VLOOKUP(Output!$G$9,lookup!$A$272:$Q$298,15,0) ->  | O16: =($N16*1000)/VLOOKUP(Output!$G$9,lookup!$A$272:$Q$298,4,0) ->  | P16: =VLOOKUP(Output!$G$9,lookup!$A$272:$Q$298,17,0) ->  | Q16: =($P16*1000)/VLOOKUP(Output!$G$9,lookup!$A$272:$Q$298,4,0) -> 
A17: Dec | B17: =VLOOKUP(Output!$G$9,lookup!$A$299:$Q$325,8,0) ->  | C17: =($B17*1000)/VLOOKUP(Output!$G$9,lookup!$A$299:$Q$325,4,0) ->  | D17: =VLOOKUP(Output!$G$9,lookup!$A$299:$Q$325,9,0) ->  | E17: =($D17*1000)/VLOOKUP(Output!$G$9,lookup!$A$299:$Q$325,4,0) ->  | F17: =VLOOKUP(Output!$G$9,lookup!$A$299:$Q$325,10,0) ->  | G17: =($F17*1000)/VLOOKUP(Output!$G$9,lookup!$A$299:$Q$325,4,0) ->  | H17: =VLOOKUP(Output!$G$9,lookup!$A$299:$Q$325,11,0) ->  | I17: =($H17*1000)/VLOOKUP(Output!$G$9,lookup!$A$299:$Q$325,4,0) ->  | J17: =VLOOKUP(Output!$G$9,lookup!$A$299:$Q$325,12,0) ->  | K17: =($J17*1000)/VLOOKUP(Output!$G$9,lookup!$A$299:$Q$325,4,0) ->  | L17: =VLOOKUP(Output!$G$9,lookup!$A$299:$Q$325,13,0) ->  | M17: =($L17*1000)/VLOOKUP(Output!$G$9,lookup!$A$299:$Q$325,4,0) ->  | N17: =VLOOKUP(Output!$G$9,lookup!$A$299:$Q$325,15,0) ->  | O17: =($N17*1000)/VLOOKUP(Output!$G$9,lookup!$A$299:$Q$325,4,0) ->  | P17: =VLOOKUP(Output!$G$9,lookup!$A$299:$Q$325,17,0) ->  | Q17: =($P17*1000)/VLOOKUP(Output!$G$9,lookup!$A$299:$Q$325,4,0) -> 
E20: Discharge at POD (m3/s) | L20: Comparison Gauges (from NEWT)
A21: Month | B21: 0.8 | C21: 0.7 | D21: 0.6 | E21: 0.5 | F21: 0.4 | G21: 0.3 | H21: 0.2 | I21: 0.05 | K21: Month | L21: Candidate 1 | M21: Candidate 2 | N21: Candidate 3
A22: Jan | B22: =(C6/1000)*annual!$A$3 ->  | C22: =(E6/1000)*annual!$A$3 ->  | D22: =(G6/1000)*annual!$A$3 ->  | E22: =(I6/1000)*annual!$A$3 ->  | F22: =(K6/1000)*annual!$A$3 ->  | G22: =(M6/1000)*annual!$A$3 ->  | H22: =(O6/1000)*annual!$A$3 ->  | I22: =(Q6/1000)*annual!$A$3 ->  | K22: Jan | L22: =VLOOKUP(variability!$C$3,lookup!$A$2:$Q$28,3,0) ->  | M22: =VLOOKUP(variability!$C$9,lookup!$A$2:$Q$28,3,0) ->  | N22: =VLOOKUP(variability!$C$15,lookup!$A$2:$Q$28,3,0) -> 
A23: Feb | B23: =(C7/1000)*annual!$A$3 ->  | C23: =(E7/1000)*annual!$A$3 ->  | D23: =(G7/1000)*annual!$A$3 ->  | E23: =(I7/1000)*annual!$A$3 ->  | F23: =(K7/1000)*annual!$A$3 ->  | G23: =(M7/1000)*annual!$A$3 ->  | H23: =(O7/1000)*annual!$A$3 ->  | I23: =(Q7/1000)*annual!$A$3 ->  | K23: Feb | L23: =VLOOKUP(variability!$D$3,lookup!$A$29:$Q$55,3,0) ->  | M23: =VLOOKUP(variability!$D$9,lookup!$A$29:$Q$55,3,0) ->  | N23: =VLOOKUP(variability!$D$15,lookup!$A$29:$Q$55,3,0) -> 
A24: Mar | B24: =(C8/1000)*annual!$A$3 ->  | C24: =(E8/1000)*annual!$A$3 ->  | D24: =(G8/1000)*annual!$A$3 ->  | E24: =(I8/1000)*annual!$A$3 ->  | F24: =(K8/1000)*annual!$A$3 ->  | G24: =(M8/1000)*annual!$A$3 ->  | H24: =(O8/1000)*annual!$A$3 ->  | I24: =(Q8/1000)*annual!$A$3 ->  | K24: Mar | L24: =VLOOKUP(variability!$E$3,lookup!$A$56:$Q$82,3,0) ->  | M24: =VLOOKUP(variability!$E$9,lookup!$A$56:$Q$82,3,0) ->  | N24: =VLOOKUP(variability!$E$15,lookup!$A$56:$Q$82,3,0) -> 
A25: Apr | B25: =(C9/1000)*annual!$A$3 ->  | C25: =(E9/1000)*annual!$A$3 ->  | D25: =(G9/1000)*annual!$A$3 ->  | E25: =(I9/1000)*annual!$A$3 ->  | F25: =(K9/1000)*annual!$A$3 ->  | G25: =(M9/1000)*annual!$A$3 ->  | H25: =(O9/1000)*annual!$A$3 ->  | I25: =(Q9/1000)*annual!$A$3 ->  | K25: Apr | L25: =VLOOKUP(variability!$F$3,lookup!$A$83:$Q$109,3,0) ->  | M25: =VLOOKUP(variability!$F$9,lookup!$A$83:$Q$109,3,0) ->  | N25: =VLOOKUP(variability!$F$15,lookup!$A$83:$Q$109,3,0) -> 
A26: May | B26: =(C10/1000)*annual!$A$3 ->  | C26: =(E10/1000)*annual!$A$3 ->  | D26: =(G10/1000)*annual!$A$3 ->  | E26: =(I10/1000)*annual!$A$3 ->  | F26: =(K10/1000)*annual!$A$3 ->  | G26: =(M10/1000)*annual!$A$3 ->  | H26: =(O10/1000)*annual!$A$3 ->  | I26: =(Q10/1000)*annual!$A$3 ->  | K26: May | L26: =VLOOKUP(variability!$G$3,lookup!$A$110:$Q$136,3,0) ->  | M26: =VLOOKUP(variability!$G$9,lookup!$A$110:$Q$136,3,0) ->  | N26: =VLOOKUP(variability!$G$15,lookup!$A$110:$Q$136,3,0) -> 
A27: Jun | B27: =(C11/1000)*annual!$A$3 ->  | C27: =(E11/1000)*annual!$A$3 ->  | D27: =(G11/1000)*annual!$A$3 ->  | E27: =(I11/1000)*annual!$A$3 ->  | F27: =(K11/1000)*annual!$A$3 ->  | G27: =(M11/1000)*annual!$A$3 ->  | H27: =(O11/1000)*annual!$A$3 ->  | I27: =(Q11/1000)*annual!$A$3 ->  | K27: Jun | L27: =VLOOKUP(variability!$H$3,lookup!$A$137:$Q$163,3,0) ->  | M27: =VLOOKUP(variability!$H$9,lookup!$A$137:$Q$163,3,0) ->  | N27: =VLOOKUP(variability!$H$15,lookup!$A$137:$Q$163,3,0) -> 
A28: Jul | B28: =(C12/1000)*annual!$A$3 ->  | C28: =(E12/1000)*annual!$A$3 ->  | D28: =(G12/1000)*annual!$A$3 ->  | E28: =(I12/1000)*annual!$A$3 ->  | F28: =(K12/1000)*annual!$A$3 ->  | G28: =(M12/1000)*annual!$A$3 ->  | H28: =(O12/1000)*annual!$A$3 ->  | I28: =(Q12/1000)*annual!$A$3 ->  | K28: Jul | L28: =VLOOKUP(variability!$I$3,lookup!$A$164:$Q$190,3,0) ->  | M28: =VLOOKUP(variability!$I$9,lookup!$A$164:$Q$190,3,0) ->  | N28: =VLOOKUP(variability!$I$15,lookup!$A$164:$Q$190,3,0) -> 
A29: Aug | B29: =(C13/1000)*annual!$A$3 ->  | C29: =(E13/1000)*annual!$A$3 ->  | D29: =(G13/1000)*annual!$A$3 ->  | E29: =(I13/1000)*annual!$A$3 ->  | F29: =(K13/1000)*annual!$A$3 ->  | G29: =(M13/1000)*annual!$A$3 ->  | H29: =(O13/1000)*annual!$A$3 ->  | I29: =(Q13/1000)*annual!$A$3 ->  | K29: Aug | L29: =VLOOKUP(variability!$J$3,lookup!$A$191:$Q$217,3,0) ->  | M29: =VLOOKUP(variability!$J$9,lookup!$A$191:$Q$217,3,0) ->  | N29: =VLOOKUP(variability!$J$15,lookup!$A$191:$Q$217,3,0) -> 
A30: Sep | B30: =(C14/1000)*annual!$A$3 ->  | C30: =(E14/1000)*annual!$A$3 ->  | D30: =(G14/1000)*annual!$A$3 ->  | E30: =(I14/1000)*annual!$A$3 ->  | F30: =(K14/1000)*annual!$A$3 ->  | G30: =(M14/1000)*annual!$A$3 ->  | H30: =(O14/1000)*annual!$A$3 ->  | I30: =(Q14/1000)*annual!$A$3 ->  | K30: Sep | L30: =VLOOKUP(variability!$K$3,lookup!$A$218:$Q$244,3,0) ->  | M30: =VLOOKUP(variability!$K$9,lookup!$A$218:$Q$244,3,0) ->  | N30: =VLOOKUP(variability!$K$15,lookup!$A$218:$Q$244,3,0) -> 
A31: Oct | B31: =(C15/1000)*annual!$A$3 ->  | C31: =(E15/1000)*annual!$A$3 ->  | D31: =(G15/1000)*annual!$A$3 ->  | E31: =(I15/1000)*annual!$A$3 ->  | F31: =(K15/1000)*annual!$A$3 ->  | G31: =(M15/1000)*annual!$A$3 ->  | H31: =(O15/1000)*annual!$A$3 ->  | I31: =(Q15/1000)*annual!$A$3 ->  | K31: Oct | L31: =VLOOKUP(variability!$L$3,lookup!$A$245:$Q$271,3,0) ->  | M31: =VLOOKUP(variability!$L$9,lookup!$A$245:$Q$271,3,0) ->  | N31: =VLOOKUP(variability!$L$15,lookup!$A$245:$Q$271,3,0) -> 
A32: Nov | B32: =(C16/1000)*annual!$A$3 ->  | C32: =(E16/1000)*annual!$A$3 ->  | D32: =(G16/1000)*annual!$A$3 ->  | E32: =(I16/1000)*annual!$A$3 ->  | F32: =(K16/1000)*annual!$A$3 ->  | G32: =(M16/1000)*annual!$A$3 ->  | H32: =(O16/1000)*annual!$A$3 ->  | I32: =(Q16/1000)*annual!$A$3 ->  | K32: Nov | L32: =VLOOKUP(variability!$M$3,lookup!$A$272:$Q$298,3,0) ->  | M32: =VLOOKUP(variability!$M$9,lookup!$A$272:$Q$298,3,0) ->  | N32: =VLOOKUP(variability!$M$15,lookup!$A$272:$Q$298,3,0) -> 
A33: Dec | B33: =(C17/1000)*annual!$A$3 ->  | C33: =(E17/1000)*annual!$A$3 ->  | D33: =(G17/1000)*annual!$A$3 ->  | E33: =(I17/1000)*annual!$A$3 ->  | F33: =(K17/1000)*annual!$A$3 ->  | G33: =(M17/1000)*annual!$A$3 ->  | H33: =(O17/1000)*annual!$A$3 ->  | I33: =(Q17/1000)*annual!$A$3 ->  | K33: Dec | L33: =VLOOKUP(variability!$N$3,lookup!$A$299:$Q$325,3,0) ->  | M33: =VLOOKUP(variability!$N$9,lookup!$A$299:$Q$325,3,0) ->  | N33: =VLOOKUP(variability!$N$15,lookup!$A$299:$Q$325,3,0) -> 

Sheet lookup
A1: WSC | B1: Month | C1: Name | D1: Drainage Area (km2) | E1: NEWT Mean (m3/s) | F1: Adjustment NEWT:WSC | G1: Mean | H1: 80th %tile | I1: 70th %tile | J1: 60th %tile | K1: Median | L1: 40th %tile | M1: 30th %tile | N1: 25th %tile | O1: 20th %tile | P1: 10th %tile | Q1: 5th %tile
A2: 07FA001 | B2: Jan | C2: Halfway (FA001) | D2: 9400 | E2: 13 | F2: =G2/E2 -> 0.9511501241 | G2: 12.36495161 | H2: 15.82 | I2: 14.4 | J2: 13.7 | K2: 12.45 | L2: 10.5 | M2: 9.63 | N2: 9.3625 | O2: 8.774 | P2: 7.08 | Q2: 6.5495
A3: 07FA003 | B3: Jan | C3: Halfway | D3: 3764 | E3: 6.76 | F3: 0.9190084339 | G3: 6.212497013 | H3: 7.22 | I3: 6.76 | J3: 6.232 | K3: 5.75 | L3: 5.21 | M3: 4.9 | N3: 4.73 | O3: 4.4 | P3: 3.886 | Q3: 3.46
A4: 07FA005 | B4: Jan | C4: Graham | D4: 2142 | E4: 5.35 | F4: 0.9872094315 | G4: 5.281570458 | H4: 6.15 | I4: 5.859 | J4: 5.46 | K4: 5.21 | L4: 4.88 | M4: 4.6 | N4: 4.4025 | O4: 4.3 | P4: 4.04 | Q4: 3.7885
A5: 07FA006 | B5: Jan | C5: Halfway (FA006) | D5: 9340 | E5: 13 | F5: 0.9459721011 | G5: 12.29763731 | H5: 15.3 | I5: 14.2 | J5: 13 | K5: 12 | L5: 11.2 | M5: 10.6 | N5: 10.2 | O5: 9.68 | P5: 8.5 | Q5: 7.74
A6: 07FB001 | B6: Jan | C6: Pine | D6: 12147 | E6: 41.66 | F6: 0.8989144604 | G6: 37.44877642 | H6: 47.02 | I6: 42.2 | J6: 39 | K6: 35.4 | L6: 33.2 | M6: 30.2 | N6: 29.2 | O6: 27.9 | P6: 24.3 | Q6: 21.5
A7: 07FB003 | B7: Jan | C7: Sukunka | D7: 2590 | E7: 12.19 | F7: 0.8189137532 | G7: 9.982558651 | H7: 12.6 | I7: 11.1 | J7: 10.2 | K7: 9.035 | L7: 8.206 | M7: 7.61 | N7: 7.42 | O7: 7.23 | P7: 6.4 | Q7: 5.6975
A8: 07FB004 | B8: Jan | C8: Dickebusch | D8: 82.4 | E8: 0.08 | F8: 0.5855113636 | G8: 0.04684090909 | H8: 0.086 | I8: 0.059 | J8: 0.0448 | K8: 0.034 | L8: 0.022 | M8: 0.014 | N8: 0.01 | O8: 0.007 | P8: 0.003 | Q8: 0.001
A9: 07FB005 | B9: Jan | C9: Quality | D9: 29.5 | E9: 0.02 | F9: 1.20743338 | G9: 0.0241486676 | H9: 0.042 | I9: 0.034 | J9: 0.0284 | K9: 0.018 | L9: 0.015 | M9: 0.012 | N9: 0.00925 | O9: 0.007 | P9: 0.002 | Q9: 0.001
A10: 07FB008 | B10: Jan | C10: Moberly | D10: 1520 | E10: 2.02 | F10: 0.963852641 | G10: 1.946982335 | H10: 2.632 | I10: 2.15 | J10: 1.99 | K10: 1.85 | L10: 1.626 | M10: 1.39 | N10: 1.31 | O10: 1.12 | P10: 0.6527 | Q10: 0.50775
A11: 07FB009 | B11: Jan | C11: Flatbed | D11: 486 | E11: 0.53 | F11: 1.206837607 | G11: 0.6396239316 | H11: 0.8596 | I11: 0.72 | J11: 0.6192 | K11: 0.559 | L11: 0.5054 | M11: 0.441 | N11: 0.424 | O11: 0.3902 | P11: 0.315 | Q11: 0.1891
A12: 07FB011 | B12: Jan | C12: Windrem | D12: 22.9 | E12: 0.01
A13: 07FC001 | B13: Jan | C13: Beatton | D13: 15523 | E13: 3.2 | F13: =G13/E13 -> 0.4313719758 | G13: 1.380390323 | H13: 2.072 | I13: 1.7 | J13: 1.434 | K13: 1.25 | L13: 1.05 | M13: 0.8628 | N13: 0.70275 | O13: 0.58 | P13: 0.3399 | Q13: 0.272
A14: 07FC002 | B14: Jan | C14: St John | D14: 213 | E14: 0.03 | F14: 0.1544846051 | G14: 0.004634538153 | H14: 0.006 | I14: 0.0046 | J14: 0.003 | K14: 0.002 | L14: 0 | M14: 0 | N14: 0 | O14: 0 | P14: 0 | Q14: 0
A15: 07FC003 | B15: Jan | C15: Blueberry | D15: 1774 | E15: 0.32 | F15: 0.27843822 | G15: 0.08910023041 | H15: 0.141 | I15: 0.119 | J15: 0.103 | K15: 0.08 | L15: 0.065 | M15: 0.051 | N15: 0.041 | O15: 0.031 | P15: 0.01 | Q15: 0.003
A16: 07FD001 | B16: Jan | C16: Kiskatinaw | D16: 3597 | E16: 0.95 | F16: 1.063072376 | G16: 1.009918757 | H16: 1.474 | I16: 1.19 | J16: 1.02 | K16: 0.8 | L16: 0.687 | M16: 0.538 | N16: 0.47125 | O16: 0.4336 | P16: 0.2213 | Q16: 0.14
A17: 07FD002 | B17: Jan | C17: Peace | D17: 100853 | E17: 1448 | F17: 0.8978327845 | G17: 1300.061872 | H17: 1720 | I17: 1630 | J17: 1560 | K17: 1480 | L17: 1370 | M17: 1170 | N17: 994 | O17: 820 | P17: 342.7 | Q17: 311
A18: 07FD004 | B18: Jan | C18: Alces | D18: 339 | E18: 0.04 | F18: 0.4093159066 | G18: 0.01637263626 | H18: 0.029 | I18: 0.025 | J18: 0.018 | K18: 0.013 | L18: 0.008 | M18: 0.004 | N18: 0.003 | O18: 0.001 | P18: 0 | Q18: 0
A19: 07FD007 | B19: Jan | C19: Pouce Coupe | D19: 2860 | E19: 0.49 | F19: 0.5640202821 | G19: 0.2763699382 | H19: 0.46 | I19: 0.2973 | J19: 0.2184 | K19: 0.14 | L19: 0.1 | M19: 0.085 | N19: 0.076 | O19: 0.054 | P19: 0.021 | Q19: 0.015
A20: 07FD009 | B20: Jan | C20: Clear | D20: 2880
A21: 07FD011 | B21: Jan | C21: Hines | D21: 374
A22: 07FD015 | B22: Jan | C22: Dawson | D22: 116 | E22: 0.02
A23: 10CA001 | B23: Jan | C23: Fontas | D23: 7400 | E23: 1.66 | F23: =G23/E23 -> 1.018007291 | G23: 1.689892102 | H23: 2.352 | I23: 1.92 | J23: 1.664 | K23: 1.51 | L23: 1.266 | M23: 1.15 | N23: 1.09 | O23: 0.987 | P23: 0.7197 | Q23: 0.6438
A24: 10CB001 | B24: Jan | C24: Sikanni Chief | D24: 2196 | E24: 5.95 | F24: 0.8939326774 | G24: 5.318899431 | H24: 6.25 | I24: 5.92 | J24: 5.55 | K24: 5.3 | L24: 5.1 | M24: 4.84 | N24: 4.66 | O24: 4.54 | P24: 3.8 | Q24: 3.09
A25: 10CD003 | B25: Jan | C25: Raspberry | D25: 288 | E25: 0.02 | F25: 0.08347757671 | G25: 0.001669551534 | H25: 0.001 | I25: 0 | J25: 0 | K25: 0 | L25: 0 | M25: 0 | N25: 0 | O25: 0 | P25: 0 | Q25: 0
A26: 10CD004 | B26: Jan | C26: Bougie | D26: 338 | E26: 0.1 | F26: 0.03577249576 | G26: 0.003577249576 | H26: 0.004 | I26: 0 | J26: 0 | K26: 0 | L26: 0 | M26: 0 | N26: 0 | O26: 0 | P26: 0 | Q26: 0
A27: 10CD005 | B27: Jan | C27: Adsett | D27: 112 | E27: 0.02 | F27: 0.4219703575 | G27: 0.008439407149 | H27: 0.014 | I27: 0.006 | J27: 0.002 | K27: 0 | L27: 0 | M27: 0 | N27: 0 | O27: 0 | P27: 0 | Q27: 0
A28: 10CD006 | B28: Jan | C28: Prophet | D28: 7320 | E28: 10.68 | F28: 0.6659072473 | G28: 7.111889401 | H28: 9.3 | I28: 8.879 | J28: 7.34 | K28: 6.8 | L28: 6.1 | M28: 5.641 | N28: 5.0925 | O28: 4.858 | P28: 4.6 | Q28: 4.5
A29: 07FA001 | B29: Feb | C29: Halfway (FA001) | D29: 9400 | E29: 11.94 | F29: 0.8814736188 | G29: 10.52479501 | H29: 12.4 | I29: 11.9 | J29: 11.4 | K29: 11 | L29: 9.91 | M29: 8.89 | N29: 8.21 | O29: 7.79 | P29: 5.8 | Q29: 5.2
A30: 07FA003 | B30: Feb | C30: Halfway | D30: 3764 | E30: 6.2 | F30: 0.8754212499 | G30: 5.42761175 | H30: 6.03 | I30: 5.538 | J30: 5.21 | K30: 4.93 | L30: 4.716 | M30: 4.42 | N30: 4.25 | O30: 4.008 | P30: 3.702 | Q30: 2.932
A31: 07FA005 | B31: Feb | C31: Graham | D31: 2142 | E31: 4.94 | F31: 0.9463606839 | G31: 4.675021779 | H31: 5.328 | I31: 5.02 | J31: 4.846 | K31: 4.65 | L31: 4.52 | M31: 4.283 | N31: 4.2 | O31: 4.17 | P31: 3.9 | Q31: 3.61
A32: 07FA006 | B32: Feb | C32: Halfway (FA006) | D32: 9340 | E32: 11.94 | F32: 0.9101718373 | G32: 10.86745174 | H32: 12.8 | I32: 12 | J32: 11.2 | K32: 10.5 | L32: 10 | M32: 9.72 | N32: 9.525 | O32: 9.2 | P32: 8.36 | Q32: 7.6
A33: 07FB001 | B33: Feb | C33: Pine | D33: 12147 | E33: 34.96 | F33: 0.9452657365 | G33: 33.04649015 | H33: 39.74 | I33: 35.7 | J33: 33 | K33: 30.6 | L33: 28.3 | M33: 26 | N33: 24.675 | O33: 23.5 | P33: 20.9 | Q33: 18.215
A34: 07FB003 | B34: Feb | C34: Sukunka | D34: 2590 | E34: 10.59 | F34: 0.8010267589 | G34: 8.482873377 | H34: 9.816 | I34: 9.1 | J34: 8.4 | K34: 7.6 | L34: 7.034 | M34: 6.443 | N34: 6.2 | O34: 5.8 | P34: 5.12 | Q34: 4.5165
A35: 07FB004 | B35: Feb | C35: Dickebusch | D35: 82.4 | E35: 0.07 | F35: 0.4966488868 | G35: 0.03476542208 | H35: 0.061 | I35: 0.044 | J35: 0.035 | K35: 0.022 | L35: 0.016 | M35: 0.01 | N35: 0.007 | O35: 0.0042 | P35: 0.002 | Q35: 0
A36: 07FB005 | B36: Feb | C36: Quality | D36: 29.5 | E36: 0.02 | F36: 0.9302795031 | G36: 0.01860559006 | H36: 0.031 | I36: 0.025 | J36: 0.02 | K36: 0.017 | L36: 0.014 | M36: 0.006 | N36: 0.005 | O36: 0.002 | P36: 0.001 | Q36: 0
A37: 07FB008 | B37: Feb | C37: Moberly | D37: 1520 | E37: 1.78 | F37: 0.8556026905 | G37: 1.522972789 | H37: 1.93 | I37: 1.8 | J37: 1.72 | K37: 1.555 | L37: 1.4 | M37: 1.24 | N37: 1.0275 | O37: 0.865 | P37: 0.632 | Q37: 0.45475
A38: 07FB009 | B38: Feb | C38: Flatbed | D38: 486 | E38: 0.48 | F38: 1.129468202 | G38: 0.5421447368 | H38: 0.7228 | I38: 0.6271 | J38: 0.541 | K38: 0.475 | L38: 0.426 | M38: 0.382 | N38: 0.368 | O38: 0.3526 | P38: 0.26 | Q38: 0.16215
A39: 07FB011 | B39: Feb | C39: Windrem | D39: 22.9 | E39: 0.01
A40: 07FC001 | B40: Feb | C40: Beatton | D40: 15523 | E40: 2.69 | F40: =G40/E40 -> 0.3897201275 | G40: 1.048347143 | H40: 1.56 | I40: 1.313 | J40: 1.12 | K40: 0.95 | L40: 0.8176 | M40: 0.66 | N40: 0.58075 | O40: 0.52 | P40: 0.29 | Q40: 0.16965
A41: 07FC002 | B41: Feb | C41: St John | D41: 213 | E41: 0.02 | F41: 0.15 | G41: 0.003 | H41: 0.006 | I41: 0.002 | J41: 0 | K41: 0 | L41: 0 | M41: 0 | N41: 0 | O41: 0 | P41: 0 | Q41: 0
A42: 07FC003 | B42: Feb | C42: Blueberry | D42: 1774 | E42: 0.29 | F42: 0.2514888283 | G42: 0.0729317602 | H42: 0.115 | I42: 0.095 | J42: 0.077 | K42: 0.071 | L42: 0.0608 | M42: 0.046 | N42: 0.037 | O42: 0.0284 | P42: 0.004 | Q42: 0.001
A43: 07FD001 | B43: Feb | C43: Kiskatinaw | D43: 3597 | E43: 0.75 | F43: 1.221765006 | G43: 0.9163237548 | H43: 1.39 | I43: 1.095 | J43: 0.9 | K43: 0.6845 | L43: 0.605 | M43: 0.501 | N43: 0.46 | O43: 0.392 | P43: 0.2125 | Q43: 0.13425
A44: 07FD002 | B44: Feb | C44: Peace | D44: 100853 | E44: 1411 | F44: 0.8948231278 | G44: 1262.595433 | H44: 1720 | I44: 1630 | J44: 1550 | K44: 1430 | L44: 1280 | M44: 1040 | N44: 946 | O44: 716.6 | P44: 334 | Q44: 283
A45: 07FD004 | B45: Feb | C45: Alces | D45: 339 | E45: 0.03 | F45: 0.5689655172 | G45: 0.01706896552 | H45: 0.0298 | I45: 0.022 | J45: 0.019 | K45: 0.012 | L45: 0.0084 | M45: 0.004 | N45: 0.002 | O45: 0.001 | P45: 0 | Q45: 0
A46: 07FD007 | B46: Feb | C46: Pouce Coupe | D46: 2860 | E46: 0.34 | F46: 0.8504179331 | G46: 0.2891420973 | H46: 0.481 | I46: 0.3085 | J46: 0.21 | K46: 0.168 | L46: 0.114 | M46: 0.082 | N46: 0.071 | O46: 0.056 | P46: 0.026 | Q46: 0.018
A47: 07FD009 | B47: Feb | C47: Clear | D47: 2880
A48: 07FD011 | B48: Feb | C48: Hines | D48: 374
A49: 07FD015 | B49: Feb | C49: Dawson | D49: 116 | E49: 0.02
A50: 10CA001 | B50: Feb | C50: Fontas | D50: 7400 | E50: 0.8 | F50: =G50/E50 -> 1.518392857 | G50: 1.214714286 | H50: 1.63 | I50: 1.43 | J50: 1.26 | K50: 1.16 | L50: 1.06 | M50: 1 | N50: 0.9075 | O50: 0.752 | P50: 0.55 | Q50: 0.4866
A51: 10CB001 | B51: Feb | C51: Sikanni Chief | D51: 2196 | E51: 5.14 | F51: 0.9279247993 | G51: 4.769533469 | H51: 5.5 | I51: 5.2 | J51: 4.9 | K51: 4.65 | L51: 4.45 | M51: 4.28 | N51: 4.2 | O51: 4.106 | P51: 3.86 | Q51: 3.4
A52: 10CD003 | B52: Feb | C52: Raspberry | D52: 288 | E52: 0.01 | F52: 0.03010933558 | G52: 0.0003010933558 | H52: 0 | I52: 0 | J52: 0 | K52: 0 | L52: 0 | M52: 0 | N52: 0 | O52: 0 | P52: 0 | Q52: 0
A53: 10CD004 | B53: Feb | C53: Bougie | D53: 338 | E53: 0.09 | F53: 0.03974591652 | G53: 0.003577132486 | H53: 0.002 | I53: 0.001 | J53: 0 | K53: 0 | L53: 0 | M53: 0 | N53: 0 | O53: 0 | P53: 0 | Q53: 0
A54: 10CD005 | B54: Feb | C54: Adsett | D54: 112 | E54: 0.02 | F54: 0.2335041938 | G54: 0.004670083877 | H54: 0.005 | I54: 0.003 | J54: 0.002 | K54: 0.001 | L54: 0 | M54: 0 | N54: 0 | O54: 0 | P54: 0 | Q54: 0
A55: 10CD006 | B55: Feb | C55: Prophet | D55: 7320 | E55: 9.66 | F55: 0.6174472895 | G55: 5.964540816 | H55: 7.3 | I55: 6.8 | J55: 6.4 | K55: 5.8 | L55: 4.8 | M55: 4.64 | N55: 4.57 | O55: 4.5 | P55: 4.335 | Q55: 4.25
A56: 07FA001 | B56: Mar | C56: Halfway (FA001) | D56: 9400 | E56: 11.78 | F56: 0.8644855086 | G56: 10.18363929 | H56: 12.5 | I56: 11.3 | J56: 10.8 | K56: 10.4 | L56: 9.9 | M56: 9.05 | N56: 8.21 | O56: 7.65 | P56: 6.51 | Q56: 5.25
A57: 07FA003 | B57: Mar | C57: Halfway | D57: 3764 | E57: 5.87 | F57: 0.9507957152 | G57: 5.581170848 | H57: 5.95 | I57: 5.602 | J57: 5.4 | K57: 5.2 | L57: 4.9 | M57: 4.638 | N57: 4.47 | O57: 4.25 | P57: 3.71 | Q57: 3.466
A58: 07FA005 | B58: Mar | C58: Graham | D58: 2142 | E58: 4.56 | F58: 1.014542936 | G58: 4.626315789 | H58: 5.03 | I58: 4.8 | J58: 4.6 | K58: 4.49 | L58: 4.37 | M58: 4.2 | N58: 4.1 | O58: 4.03 | P58: 3.71 | Q58: 3.4185
A59: 07FA006 | B59: Mar | C59: Halfway (FA006) | D59: 9340 | E59: 11.78 | F59: 0.9304334182 | G59: 10.96050567 | H59: 12.78 | I59: 11.62 | J59: 11.1 | K59: 10.4 | L59: 9.62 | M59: 9.3 | N59: 9.18 | O59: 9 | P59: 8 | Q59: 7.293
A60: 07FB001 | B60: Mar | C60: Pine | D60: 12147 | E60: 37.03 | F60: 0.9819113685 | G60: 36.36017798 | H60: 44.56 | I60: 38.5 | J60: 33.4 | K60: 30 | L60: 28.3 | M60: 25.8 | N60: 24.9 | O60: 24 | P60: 20.77 | Q60: 17.285
A61: 07FB003 | B61: Mar | C61: Sukunka | D61: 2590 | E61: 10.99 | F61: 0.8690204905 | G61: 9.550535191 | H61: 11.4 | I61: 9.83 | J61: 8.24 | K61: 7.345 | L61: 6.742 | M61: 6.1 | N61: 5.85 | O61: 5.626 | P61: 4.95 | Q61: 4.52
A62: 07FB004 | B62: Mar | C62: Dickebusch | D62: 82.4 | E62: 0.09 | F62: 0.6104512871 | G62: 0.05494061584 | H62: 0.075 | I62: 0.058 | J62: 0.045 | K62: 0.034 | L62: 0.024 | M62: 0.013 | N62: 0.011 | O62: 0.009 | P62: 0.003 | Q62: 0.001
A63: 07FB005 | B63: Mar | C63: Quality | D63: 29.5 | E63: 0.03 | F63: 0.9384759233 | G63: 0.0281542777 | H63: 0.0376 | I63: 0.033 | J63: 0.028 | K63: 0.022 | L63: 0.017 | M63: 0.01 | N63: 0.006 | O63: 0.005 | P63: 0.002 | Q63: 0.001
A64: 07FB008 | B64: Mar | C64: Moberly | D64: 1520 | E64: 2.02 | F64: 0.8620112242 | G64: 1.741262673 | H64: 2.13 | I64: 1.82 | J64: 1.65 | K64: 1.52 | L64: 1.4 | M64: 1.243 | N64: 1.11 | O64: 1.02 | P64: 0.7655 | Q64: 0.46545
A65: 07FB009 | B65: Mar | C65: Flatbed | D65: 486 | E65: 0.68 | F65: 0.9486767203 | G65: 0.6451001698 | H65: 0.8026 | I65: 0.6899 | J65: 0.5834 | K65: 0.5 | L65: 0.4668 | M65: 0.408 | N65: 0.38 | O65: 0.355 | P65: 0.278 | Q65: 0.22085
A66: 07FB011 | B66: Mar | C66: Windrem | D66: 22.9 | E66: 0.02 | G66: 0.062
A67: 07FC001 | B67: Mar | C67: Beatton | D67: 15523 | E67: 4.76 | F67: =G67/E67 -> 0.5305515045 | G67: 2.525425161 | H67: 2.262 | I67: 1.58 | J67: 1.26 | K67: 1.04 | L67: 0.9036 | M67: 0.717 | N67: 0.6585 | O67: 0.605 | P67: 0.38 | Q67: 0.26845
A68: 07FC002 | B68: Mar | C68: St John | D68: 213 | E68: 0.05 | F68: 4.924435484 | G68: 0.2462217742 | H68: 0.037 | I68: 0.019 | J68: 0.008 | K68: 0.008 | L68: 0.003 | M68: 0.002 | N68: 0 | O68: 0 | P68: 0 | Q68: 0
A69: 07FC003 | B69: Mar | C69: Blueberry | D69: 1774 | E69: 0.5 | F69: 0.390343318 | G69: 0.195171659 | H69: 0.164 | I69: 0.135 | J69: 0.11 | K69: 0.093 | L69: 0.08 | M69: 0.066 | N69: 0.052 | O69: 0.036 | P69: 0.013 | Q69: 0.002
A70: 07FD001 | B70: Mar | C70: Kiskatinaw | D70: 3597 | E70: 1.38 | F70: 1.086663896 | G70: 1.499596177 | H70: 1.9 | I70: 1.52 | J70: 1.2 | K70: 0.9115 | L70: 0.7706 | M70: 0.63 | N70: 0.555 | O70: 0.4806 | P70: 0.2863 | Q70: 0.161
A71: 07FD002 | B71: Mar | C71: Peace | D71: 100853 | E71: 1305 | F71: 0.8964783781 | G71: 1169.904283 | H71: 1590 | I71: 1510 | J71: 1410 | K71: 1290 | L71: 1130 | M71: 974 | N71: 878.5 | O71: 715 | P71: 323 | Q71: 249.5
A72: 07FD004 | B72: Mar | C72: Alces | D72: 339 | E72: 0.06 | F72: 1.31533185 | G72: 0.07891991101 | H72: 0.0644 | I72: 0.04 | J72: 0.026 | K72: 0.02 | L72: 0.017 | M72: 0.011 | N72: 0.006 | O72: 0.004 | P72: 0.002 | Q72: 0
A73: 07FD007 | B73: Mar | C73: Pouce Coupe | D73: 2860 | E73: 0.77 | F73: 1.683173038 | G73: 1.29604324 | H73: 1 | I73: 0.538 | J73: 0.3842 | K73: 0.265 | L73: 0.1908 | M73: 0.108 | N73: 0.087 | O73: 0.061 | P73: 0.04 | Q73: 0.019
A74: 07FD009 | B74: Mar | C74: Clear | D74: 2880 | G74: 0.4326253602 | H74: 0.1406 | I74: 0.071 | J74: 0.0492 | K74: 0.01 | L74: 0 | M74: 0 | N74: 0 | O74: 0 | P74: 0 | Q74: 0
A75: 07FD011 | B75: Mar | C75: Hines | D75: 374 | G75: 0.0197541502 | H75: 0.005 | I75: 0.002 | J75: 0 | K75: 0 | L75: 0 | M75: 0 | N75: 0 | O75: 0 | P75: 0 | Q75: 0
A76: 07FD015 | B76: Mar | C76: Dawson | D76: 116 | E76: 0.04
A77: 10CA001 | B77: Mar | C77: Fontas | D77: 7400 | E77: 1.76 | F77: =G77/E77 -> 1.09079912 | G77: 1.919806452 | H77: 1.49 | I77: 1.34 | J77: 1.228 | K77: 1.15 | L77: 1.06 | M77: 0.952 | N77: 0.9 | O77: 0.77 | P77: 0.51 | Q77: 0.3765
A78: 10CB001 | B78: Mar | C78: Sikanni Chief | D78: 2196 | E78: 4.5 | F78: 1.025010893 | G78: 4.61254902 | H78: 5.25 | I78: 4.95 | J78: 4.58 | K78: 4.39 | L78: 4.2 | M78: 4.05 | N78: 4 | O78: 3.95 | P78: 3.72 | Q78: 3.48
A79: 10CD003 | B79: Mar | C79: Raspberry | D79: 288 | E79: 0.03 | F79: 0.1575516693 | G79: 0.004726550079 | H79: 0.003 | I79: 0.001 | J79: 0 | K79: 0 | L79: 0 | M79: 0 | N79: 0 | O79: 0 | P79: 0 | Q79: 0
A80: 10CD004 | B80: Mar | C80: Bougie | D80: 338 | E80: 0.16 | F80: 0.1447580645 | G80: 0.02316129032 | H80: 0.009 | I80: 0.004 | J80: 0.002 | K80: 0.001 | L80: 0 | M80: 0 | N80: 0 | O80: 0 | P80: 0 | Q80: 0
A81: 10CD005 | B81: Mar | C81: Adsett | D81: 112 | E81: 0.04 | F81: 0.2972319093 | G81: 0.01188927637 | H81: 0.01 | I81: 0.006 | J81: 0.004 | K81: 0.002 | L81: 0.001 | M81: 0 | N81: 0 | O81: 0 | P81: 0 | Q81: 0
A82: 10CD006 | B82: Mar | C82: Prophet | D82: 7320 | E82: 8.51 | F82: 0.7383506528 | G82: 6.283364055 | H82: 8.28 | I82: 7.604 | J82: 7.11 | K82: 4.95 | L82: 4.68 | M82: 4.42 | N82: 4.23 | O82: 3.9 | P82: 3.38 | Q82: 2.46
A83: 07FA001 | B83: Apr | C83: Halfway (FA001) | D83: 9400 | E83: 34.05 | F83: 1.056202643 | G83: 35.9637 | H83: 45.3 | I83: 31.1 | J83: 22.7 | K83: 17.2 | L83: 13.76 | M83: 11.8 | N83: 10.8 | O83: 10.2 | P83: 8.92 | Q83: 8.2955
A84: 07FA003 | B84: Apr | C84: Halfway | D84: 3764 | E84: 15.16 | F84: 0.9435771524 | G84: 14.30462963 | H84: 18.8 | I84: 15 | J84: 12.9 | K84: 10.4 | L84: 8.6 | M84: 7.461 | N84: 6.8 | O84: 6.09 | P84: 5.1 | Q84: 4.6235
A85: 07FA005 | B85: Apr | C85: Graham | D85: 2142 | E85: 11.29 | F85: 0.6661181297 | G85: 7.520473684 | H85: 10.1 | I85: 8.343 | J85: 6.95 | K85: 6.25 | L85: 5.546 | M85: 5.02 | N85: 4.74 | O85: 4.508 | P85: 3.759 | Q85: 3.128
A86: 07FA006 | B86: Apr | C86: Halfway (FA006) | D86: 9340 | E86: 34.05 | F86: 0.9145128388 | G86: 31.13916216 | H86: 42.66 | I86: 31.5 | J86: 25.04 | K86: 20.2 | L86: 16 | M86: 13.1 | N86: 12.4 | O86: 11.8 | P86: 10.3 | Q86: 9.47
A87: 07FB001 | B87: Apr | C87: Pine | D87: 12147 | E87: 94.43 | F87: 1.142092117 | G87: 107.8477586 | H87: 155 | I87: 111.3 | J87: 83.82 | K87: 68 | L87: 54 | M87: 42.94 | N87: 39.075 | O87: 35.4 | P87: 28.19 | Q87: 23.7
A88: 07FB003 | B88: Apr | C88: Sukunka | D88: 2590 | E88: 28.43 | F88: 1.310025688 | G88: 37.2440303 | H88: 61.52 | I88: 41.9 | J88: 27.08 | K88: 19.05 | L88: 13.76 | M88: 11.2 | N88: 9.8 | O88: 8.9 | P88: 6.8 | Q88: 5.769
A89: 07FB004 | B89: Apr | C89: Dickebusch | D89: 82.4 | E89: 0.35 | F89: 1.697880952 | G89: 0.5942583333 | H89: 0.9114 | I89: 0.5293 | J89: 0.3428 | K89: 0.22 | L89: 0.128 | M89: 0.0807 | N89: 0.065 | O89: 0.05 | P89: 0.024 | Q89: 0.014
A90: 07FB005 | B90: Apr | C90: Quality | D90: 29.5 | E90: 0.13 | F90: 2.416332219 | G90: 0.3141231884 | H90: 0.5282 | I90: 0.3224 | J90: 0.2 | K90: 0.12 | L90: 0.06 | M90: 0.04 | N90: 0.034 | O90: 0.03 | P90: 0.018 | Q90: 0.009
A91: 07FB008 | B91: Apr | C91: Moberly | D91: 1520 | E91: 6.69 | F91: 0.9750173203 | G91: 6.522865873 | H91: 10.32 | I91: 6.512 | J91: 4.268 | K91: 3.345 | L91: 2.72 | M91: 2.36 | N91: 2.0475 | O91: 1.85 | P91: 1.47 | Q91: 1.2095
A92: 07FB009 | B92: Apr | C92: Flatbed | D92: 486 | E92: 2.48 | F92: 1.912452957 | G92: 4.742883333 | H92: 7.672 | I92: 4.876 | J92: 3.19 | K92: 2.08 | L92: 1.4 | M92: 0.9646 | N92: 0.8 | O92: 0.689 | P92: 0.44 | Q92: 0.30195
A93: 07FB011 | B93: Apr | C93: Windrem | D93: 22.9 | E93: 0.07 | F93: 2.113518696 | G93: 0.1479463087 | H93: 0.157 | I93: 0.127 | J93: 0.107 | K93: 0.066 | L93: 0.046 | M93: 0.042 | N93: 0.04 | O93: 0.0258 | P93: 0.01 | Q93: 0.0034
A94: 07FC001 | B94: Apr | C94: Beatton | D94: 15523 | E94: 26.99 | F94: 2.961985995 | G94: 79.944002 | H94: 123.2 | I94: 71.93 | J94: 45.2 | K94: 26.75 | L94: 13.8 | M94: 6.679 | N94: 4.415 | O94: 3.074 | P94: 1.387 | Q94: 0.956
A95: 07FC002 | B95: Apr | C95: St John | D95: 213 | E95: 0.3 | F95: 11.9292716 | G95: 3.578781481 | H95: 6.206 | I95: 4.232 | J95: 2.748 | K95: 1.73 | L95: 0.9968 | M95: 0.6084 | N95: 0.501 | O95: 0.4038 | P95: 0.0197 | Q95: 0.008
A96: 07FC003 | B96: Apr | C96: Blueberry | D96: 1774 | E96: 3.05 | F96: 3.576500195 | G96: 10.9083256 | H96: 17.52 | I96: 9.2 | J96: 5.054 | K96: 3.01 | L96: 1.412 | M96: 0.6341 | N96: 0.428 | O96: 0.2978 | P96: 0.147 | Q96: 0.082
A97: 07FD001 | B97: Apr | C97: Kiskatinaw | D97: 3597 | E97: 6.38 | F97: 3.390402202 | G97: 21.63076605 | H97: 32.52 | I97: 19.33 | J97: 13.9 | K97: 8.96 | L97: 5.296 | M97: 2.95 | N97: 2.295 | O97: 1.73 | P97: 1.029 | Q97: 0.6986
A98: 07FD002 | B98: Apr | C98: Peace | D98: 100853 | E98: 1302 | F98: 0.9248319106 | G98: 1204.131148 | H98: 1570 | I98: 1470 | J98: 1360 | K98: 1240 | L98: 1120 | M98: 989.7 | N98: 900.75 | O98: 801 | P98: 531.5 | Q98: 356.7
A99: 07FD004 | B99: Apr | C99: Alces | D99: 339 | E99: 0.35 | F99: 4.443497537 | G99: 1.555224138 | H99: 2.632 | I99: 1.44 | J99: 0.9546 | K99: 0.5955 | L99: 0.33 | M99: 0.1474 | N99: 0.09725 | O99: 0.059 | P99: 0.0229 | Q99: 0.006
A100: 07FD007 | B100: Apr | C100: Pouce Coupe | D100: 2860 | E100: 3.97 | F100: 5.901538017 | G100: 23.42910593 | H100: 37.34 | I100: 20 | J100: 11.7 | K100: 6.435 | L100: 3.26 | M100: 1.95 | N100: 1.36 | O100: 0.9068 | P100: 0.3198 | Q100: 0.11045
A101: 07FD009 | B101: Apr | C101: Clear | D101: 2880 | G101: 18.32726237 | H101: 26.24 | I101: 17.61 | J101: 10.9 | K101: 7.385 | L101: 3.964 | M101: 1.7 | N101: 0.878 | O101: 0.4902 | P101: 0.1 | Q101: 0.014
A102: 07FD011 | B102: Apr | C102: Hines | D102: 374 | G102: 0.9122780488 | H102: 1.04 | I102: 0.6093 | J102: 0.3828 | K102: 0.2345 | L102: 0.1236 | M102: 0.033 | N102: 0.015 | O102: 0.006 | P102: 0 | Q102: 0
A103: 07FD015 | B103: Apr | C103: Dawson | D103: 116 | E103: 0.19 | G103: 1.301857143 | H103: 1.88 | I103: 1.4 | J103: 0.983 | K103: 0.493 | L103: 0.244 | M103: 0.173 | N103: 0.1345 | O103: 0.084 | P103: 0.029 | Q103: 0.0155
A104: 10CA001 | B104: Apr | C104: Fontas | D104: 7400 | E104: 12.65 | F104: =G104/E104 -> 2.019753033 | G104: 25.54987586 | H104: 38.26 | I104: 17 | J104: 9.204 | K104: 5.305 | L104: 3.126 | M104: 1.6 | N104: 1.4325 | O104: 1.34 | P104: 1.09 | Q104: 0.89
A105: 10CB001 | B105: Apr | C105: Sikanni Chief | D105: 2196 | E105: 9.43 | F105: 0.9286451944 | G105: 8.757124183 | H105: 10.3 | I105: 8.4 | J105: 7 | K105: 5.95 | L105: 5.35 | M105: 4.9 | N105: 4.65 | O105: 4.478 | P105: 4.12 | Q105: 3.93
A106: 10CD003 | B106: Apr | C106: Raspberry | D106: 288 | E106: 0.57 | F106: 1.741628655 | G106: 0.9927283333 | H106: 1.092 | I106: 0.3356 | J106: 0.1694 | K106: 0.0575 | L106: 0.025 | M106: 0.007 | N106: 0.003 | O106: 0.002 | P106: 0 | Q106: 0
A107: 10CD004 | B107: Apr | C107: Bougie | D107: 338 | E107: 1.31 | F107: 1.114081961 | G107: 1.459447368 | H107: 1.5 | I107: 0.7665 | J107: 0.3282 | K107: 0.12 | L107: 0.0286 | M107: 0.01 | N107: 0.007 | O107: 0.004 | P107: 0.001 | Q107: 0
A108: 10CD005 | B108: Apr | C108: Adsett | D108: 112 | E108: 0.4 | F108: 1.116513514 | G108: 0.4466054054 | H108: 0.6 | I108: 0.34 | J108: 0.183 | K108: 0.063 | L108: 0.0216 | M108: 0.009 | N108: 0.00425 | O108: 0.003 | P108: 0.001 | Q108: 0
A109: 10CD006 | B109: Apr | C109: Prophet | D109: 7320 | E109: 25.34 | F109: 1.187426241 | G109: 30.08938095 | H109: 45.6 | I109: 30.57 | J109: 18.88 | K109: 15 | L109: 12.7 | M109: 10.47 | N109: 9.425 | O109: 7.1 | P109: 5 | Q109: 4.1945
A110: 07FA001 | B110: May | C110: Halfway (FA001) | D110: 9400 | E110: 137.19 | F110: 1.187728815 | G110: 162.9445161 | H110: 239.2 | I110: 185 | J110: 155.4 | K110: 135 | L110: 116 | M110: 97.22 | N110: 89.35 | O110: 82.04 | P110: 48.05 | Q110: 36.485
A111: 07FA003 | B111: May | C111: Halfway | D111: 3764 | E111: 58.46 | F111: 1.184140654 | G111: 69.2248626 | H111: 91 | I111: 79.12 | J111: 65.36 | K111: 57.4 | L111: 48.06 | M111: 39.18 | N111: 34.6 | O111: 28.6 | P111: 19.6 | Q111: 13.18
A112: 07FA005 | B112: May | C112: Graham | D112: 2142 | E112: 32.36 | F112: 1.454102142 | G112: 47.05474533 | H112: 77.62 | I112: 61.7 | J112: 48.5 | K112: 36 | L112: 27.46 | M112: 19.61 | N112: 17.6 | O112: 14.6 | P112: 10.27 | Q112: 8.8085
A113: 07FA006 | B113: May | C113: Halfway (FA006) | D113: 9340 | E113: 137.19 | F113: 1.067481426 | G113: 146.4477768 | H113: 205 | I113: 174 | J113: 146 | K113: 126 | L113: 106 | M113: 87 | N113: 78.85 | O113: 67.72 | P113: 47 | Q113: 35.66
A114: 07FB001 | B114: May | C114: Pine | D114: 12147 | E114: 403 | F114: 1.417615504 | G114: 571.2990481 | H114: 823 | I114: 697 | J114: 602 | K114: 504 | L114: 429 | M114: 355 | N114: 321.5 | O114: 289 | P114: 210 | Q114: 164.5
A115: 07FB003 | B115: May | C115: Sukunka | D115: 2590 | E115: 121.26 | F115: 1.630550892 | G115: 197.7206012 | H115: 287 | I115: 241.1 | J115: 206.8 | K115: 173 | L115: 146 | M115: 116 | N115: 103 | O115: 92.4 | P115: 71.66 | Q115: 56.7
A116: 07FB004 | B116: May | C116: Dickebusch | D116: 82.4 | E116: 1.97 | F116: 1.086862691 | G116: 2.141119501 | H116: 3.084 | I116: 2.44 | J116: 1.93 | K116: 1.59 | L116: 1.202 | M116: 0.9179 | N116: 0.82625 | O116: 0.7376 | P116: 0.4446 | Q116: 0.325
A117: 07FB005 | B117: May | C117: Quality | D117: 29.5 | E117: 0.81 | F117: 0.6793118972 | G117: 0.5502426367 | H117: 0.81 | I117: 0.6052 | J117: 0.4862 | K117: 0.366 | L117: 0.276 | M117: 0.213 | N117: 0.188 | O117: 0.1602 | P117: 0.0944 | Q117: 0.058
A118: 07FB008 | B118: May | C118: Moberly | D118: 1520 | E118: 28.08 | F118: 1.233314077 | G118: 34.63145929 | H118: 50.5 | I118: 41.7 | J118: 35.4 | K118: 30 | L118: 25.9 | M118: 21.13 | N118: 19.025 | O118: 16.7 | P118: 8.514 | Q118: 5.436
A119: 07FB009 | B119: May | C119: Flatbed | D119: 486 | E119: 14.27 | F119: 1.131714583 | G119: 16.1495671 | H119: 22.9 | I119: 18.8 | J119: 16.3 | K119: 14 | L119: 12.1 | M119: 10.1 | N119: 9.075 | O119: 7.748 | P119: 5.414 | Q119: 4.414
A120: 07FB011 | B120: May | C120: Windrem | D120: 22.9 | E120: 0.41 | F120: 0.6467934003 | G120: 0.2651852941 | H120: 0.3938 | I120: 0.3093 | J120: 0.2168 | K120: 0.175 | L120: 0.1472 | M120: 0.1234 | N120: 0.106 | O120: 0.0948 | P120: 0.0648 | Q120: 0.0468
A121: 07FC001 | B121: May | C121: Beatton | D121: 15523 | E121: 181.69 | F121: 1.060424102 | G121: 192.6684551 | H121: 300 | I121: 219 | J121: 171 | K121: 136 | L121: 111.4 | M121: 83.18 | N121: 69.5 | O121: 57.56 | P121: 35 | Q121: 23.3
A122: 07FC002 | B122: May | C122: St John | D122: 213 | E122: 1.97 | F122: 1.041714608 | G122: 2.052177778 | H122: 2.438 | I122: 1.305 | J122: 0.8764 | K122: 0.596 | L122: 0.4348 | M122: 0.2851 | N122: 0.2305 | O122: 0.195 | P122: 0.144 | Q122: 0.1047
A123: 07FC003 | B123: May | C123: Blueberry | D123: 1774 | E123: 19.19 | F123: 1.126233992 | G123: 21.6124303 | H123: 32.4 | I123: 22.7 | J123: 15.4 | K123: 11.5 | L123: 9.27 | M123: 7.17 | N123: 6.1275 | O123: 4.96 | P123: 2.675 | Q123: 1.835
A124: 07FD001 | B124: May | C124: Kiskatinaw | D124: 3597 | E124: 37.62 | F124: 0.9168178357 | G124: 34.49068698 | H124: 52.44 | I124: 39.52 | J124: 31.7 | K124: 24.9 | L124: 19.6 | M124: 14.69 | N124: 12.4 | O124: 10.6 | P124: 7.003 | Q124: 5.1995
A125: 07FD002 | B125: May | C125: Peace | D125: 100853 | E125: 1480 | F125: 1.210400347 | G125: 1791.392513 | H125: 2120 | I125: 1930 | J125: 1770 | K125: 1630 | L125: 1496 | M125: 1370 | N125: 1300 | O125: 1210 | P125: 1010 | Q125: 831.35
A126: 07FD004 | B126: May | C126: Alces | D126: 339 | E126: 2.36 | F126: 0.9616087084 | G126: 2.269396552 | H126: 3.36 | I126: 2.406 | J126: 1.83 | K126: 1.405 | L126: 0.9646 | M126: 0.6361 | N126: 0.5385 | O126: 0.4312 | P126: 0.2314 | Q126: 0.1039
A127: 07FD007 | B127: May | C127: Pouce Coupe | D127: 2860 | E127: 24.63 | F127: 0.9497728799 | G127: 23.39290603 | H127: 38.7 | I127: 26.25 | J127: 16.7 | K127: 11.9 | L127: 7.62 | M127: 5.37 | N127: 4.48 | O127: 3.37 | P127: 1.48 | Q127: 0.876
A128: 07FD009 | B128: May | C128: Clear | D128: 2880 | G128: 17.32557911 | H128: 23.6 | I128: 19 | J128: 15 | K128: 11.6 | L128: 8.59 | M128: 6.29 | N128: 5.23 | O128: 4.19 | P128: 2.93 | Q128: 1.97
A129: 07FD011 | B129: May | C129: Hines | D129: 374 | G129: 2.214210569 | H129: 3.41 | I129: 2.326 | J129: 1.624 | K129: 1.11 | L129: 0.7242 | M129: 0.4554 | N129: 0.34975 | O129: 0.218 | P129: 0.032 | Q129: 0.00745
A130: 07FD015 | B130: May | C130: Dawson | D130: 116 | E130: 1.16 | F130: =G130/E130 -> 0.1790613941 | G130: 0.2077112172 | H130: 0.2164 | I130: 0.109 | J130: 0.0718 | K130: 0.035 | L130: 0.0202 | M130: 0.011 | N130: 0.0075 | O130: 0.004 | P130: 0.001 | Q130: 0.001
A131: 10CA001 | B131: May | C131: Fontas | D131: 7400 | E131: 118.62 | F131: 0.8027083409 | G131: 95.2172634 | H131: 146 | I131: 118 | J131: 92.48 | K131: 73 | L131: 59.04 | M131: 48.9 | N131: 43 | O131: 35.94 | P131: 23.9 | Q131: 14.86
A132: 10CB001 | B132: May | C132: Sikanni Chief | D132: 2196 | E132: 30.82 | F132: 1.301495575 | G132: 40.11209361 | H132: 58.8 | I132: 49.2 | J132: 39.6 | K132: 31.6 | L132: 25.9 | M132: 21.3 | N132: 19 | O132: 15.9 | P132: 11.9 | Q132: 9.45
A133: 10CD003 | B133: May | C133: Raspberry | D133: 288 | E133: 5.3 | F133: 1.156345821 | G133: 6.12863285 | H133: 9.004 | I133: 6.64 | J133: 4.846 | K133: 3.565 | L133: 2.658 | M133: 1.943 | N133: 1.6725 | O133: 1.412 | P133: 0.9453 | Q133: 0.6924
A134: 10CD004 | B134: May | C134: Bougie | D134: 338 | E134: 9.61 | F134: 0.793002832 | G134: 7.620757216 | H134: 10.36 | I134: 7.81 | J134: 6.184 | K134: 4.975 | L134: 3.82 | M134: 3.04 | N134: 2.6925 | O134: 2.28 | P134: 1.44 | Q134: 0.71685
A135: 10CD005 | B135: May | C135: Adsett | D135: 112 | E135: 3.12 | F135: 0.7213030649 | G135: 2.250465562 | H135: 2.9 | I135: 2.32 | J135: 1.85 | K135: 1.47 | L135: 1.19 | M135: 0.9558 | N135: 0.85 | O135: 0.77 | P135: 0.5276 | Q135: 0.3673
A136: 10CD006 | B136: May | C136: Prophet | D136: 7320 | E136: 132.4 | F136: 1.060729252 | G136: 140.440553 | H136: 187.8 | I136: 155 | J136: 132 | K136: 117 | L136: 98.66 | M136: 85.24 | N136: 80.2 | O136: 74.96 | P136: 53.04 | Q136: 46.1
A137: 07FA001 | B137: Jun | C137: Halfway (FA001) | D137: 9400 | E137: 252.15 | F137: 0.9357840036 | G137: 235.9579365 | H137: 299 | I137: 257.3 | J137: 226.4 | K137: 200 | L137: 176 | M137: 155 | N137: 144 | O137: 135 | P137: 114 | Q137: 106
A138: 07FA003 | B138: Jun | C138: Halfway | D138: 3764 | E138: 123.45 | F138: 0.918692141 | G138: 113.4125448 | H138: 143 | I138: 118.2 | J138: 100 | K138: 88.9 | L138: 78.26 | M138: 69.5 | N138: 65.5 | O138: 61.22 | P138: 54.16 | Q138: 46.68
A139: 07FA005 | B139: Jun | C139: Graham | D139: 2142 | E139: 90.53 | F139: 0.9620194845 | G139: 87.09162393 | H139: 116 | I139: 98.53 | J139: 87 | K139: 76 | L139: 68.1 | M139: 59.6 | N139: 55.325 | O139: 51.9 | P139: 43.78 | Q139: 38.3
A140: 07FA006 | B140: Jun | C140: Halfway (FA006) | D140: 9340 | E140: 252.15 | F140: 0.9995283803 | G140: 252.0310811 | H140: 320 | I140: 258 | J140: 219.4 | K140: 194 | L140: 171 | M140: 148.7 | N140: 140 | O140: 130 | P140: 106 | Q140: 88.925
A141: 07FB001 | B141: Jun | C141: Pine | D141: 12147 | E141: 573 | F141: 1.152808057 | G141: 660.5590164 | H141: 872.6 | I141: 765 | J141: 682 | K141: 599 | L141: 528 | M141: 457 | N141: 420 | O141: 378.8 | P141: 300 | Q141: 250
A142: 07FB003 | B142: Jun | C142: Sukunka | D142: 2590 | E142: 171.47 | F142: 1.093387217 | G142: 187.4831061 | H142: 261 | I142: 216.3 | J142: 188 | K142: 162 | L142: 145 | M142: 122 | N142: 114 | O142: 103 | P142: 81.97 | Q142: 64.09
A143: 07FB004 | B143: Jun | C143: Dickebusch | D143: 82.4 | E143: 1.75 | F143: 0.9748690568 | G143: 1.706020849 | H143: 2.142 | I143: 1.658 | J143: 1.29 | K143: 0.967 | L143: 0.755 | M143: 0.5714 | N143: 0.492 | O143: 0.4218 | P143: 0.2874 | Q143: 0.2167
A144: 07FB005 | B144: Jun | C144: Quality | D144: 29.5 | E144: 0.57 | F144: 0.775190211 | G144: 0.4418584203 | H144: 0.612 | I144: 0.395 | J144: 0.273 | K144: 0.204 | L144: 0.158 | M144: 0.127 | N144: 0.1135 | O144: 0.097 | P144: 0.065 | Q144: 0.044
A145: 07FB008 | B145: Jun | C145: Moberly | D145: 1520 | E145: 38.58 | F145: 1.162687715 | G145: 44.85649206 | H145: 60.8 | I145: 50.93 | J145: 45.2 | K145: 41 | L145: 35.5 | M145: 31.44 | N145: 29.3 | O145: 26.98 | P145: 21.6 | Q145: 18.095
A146: 07FB009 | B146: Jun | C146: Flatbed | D146: 486 | E146: 11.77 | F146: 0.9671190488 | G146: 11.3829912 | H146: 15.3 | I146: 12.62 | J146: 10.6 | K146: 9.09 | L146: 7.462 | M146: 5.95 | N146: 5.26 | O146: 4.82 | P146: 3.256 | Q146: 2.138
A147: 07FB011 | B147: Jun | C147: Windrem | D147: 22.9 | E147: 0.36 | F147: 0.5716161616 | G147: 0.2057818182 | H147: 0.322 | I147: 0.194 | J147: 0.123 | K147: 0.083 | L147: 0.059 | M147: 0.038 | N147: 0.02825 | O147: 0.023 | P147: 0.013 | Q147: 0.0089
A148: 07FC001 | B148: Jun | C148: Beatton | D148: 15523 | E148: 151.73 | F148: 0.8823669208 | G148: 133.8815329 | H148: 179.2 | I148: 127 | J148: 96.68 | K148: 80.65 | L148: 64.9 | M148: 50.81 | N148: 43.7 | O148: 37.16 | P148: 25.3 | Q148: 16.3
A149: 07FC002 | B149: Jun | C149: St John | D149: 213 | E149: 1.52 | F149: 0.2775073099 | G149: 0.4218111111 | H149: 0.3292 | I149: 0.2446 | J149: 0.153 | K149: 0.1235 | L149: 0.088 | M149: 0.062 | N149: 0.045 | O149: 0.0278 | P149: 0.005 | Q149: 0.002
A150: 07FC003 | B150: Jun | C150: Blueberry | D150: 1774 | E150: 15.88 | F150: 0.8207707809 | G150: 13.03384 | H150: 13.2 | I150: 8.49 | J150: 6.158 | K150: 4.67 | L150: 3.56 | M150: 2.74 | N150: 2.3025 | O150: 1.868 | P150: 1.1 | Q150: 0.715
A151: 07FD001 | B151: Jun | C151: Kiskatinaw | D151: 3597 | E151: 29.78 | F151: 0.8554369839 | G151: 25.47491338 | H151: 30.74 | I151: 20.8 | J151: 16.2 | K151: 12.1 | L151: 9.422 | M151: 7.298 | N151: 6.2075 | O151: 5.31 | P151: 3.293 | Q151: 2.2665
A152: 07FD002 | B152: Jun | C152: Peace | D152: 100853 | E152: 1664 | F152: 1.333039864 | G152: 2218.178333 | H152: 2662 | I152: 2210 | J152: 1930 | K152: 1680 | L152: 1500 | M152: 1320 | N152: 1240 | O152: 1140 | P152: 945.9 | Q152: 827.9
A153: 07FD004 | B153: Jun | C153: Alces | D153: 339 | E153: 1.91 | F153: 0.6941289041 | G153: 1.325786207 | H153: 1.66 | I153: 1.15 | J153: 0.8504 | K153: 0.669 | L153: 0.5052 | M153: 0.375 | N153: 0.30225 | O153: 0.2396 | P153: 0.1085 | Q153: 0.023
A154: 07FD007 | B154: Jun | C154: Pouce Coupe | D154: 2860 | E154: 18.47 | F154: 0.8258199986 | G154: 15.25289537 | H154: 15.2 | I154: 8.684 | J154: 5.544 | K154: 3.89 | L154: 2.79 | M154: 1.85 | N154: 1.51 | O154: 1.228 | P154: 0.564 | Q154: 0.299
A155: 07FD009 | B155: Jun | C155: Clear | D155: 2880 | G155: 6.683736563 | H155: 9.87 | I155: 6.29 | J155: 4.73 | K155: 3.4 | L155: 2.48 | M155: 1.89 | N155: 1.56 | O155: 1.3 | P155: 0.794 | Q155: 0.535
A156: 07FD011 | B156: Jun | C156: Hines | D156: 374 | G156: 0.9211772358 | H156: 1.422 | I156: 0.83 | J156: 0.5748 | K156: 0.38 | L156: 0.2506 | M156: 0.1237 | N156: 0.074 | O156: 0.0418 | P156: 0.014 | Q156: 0.002
A157: 07FD015 | B157: Jun | C157: Dawson | D157: 116 | E157: 0.88 | F157: =G157/E157 -> 0.4573426573 | G157: 0.4024615385 | H157: 0.0948 | I157: 0.0212 | J157: 0.007 | K157: 0.003 | L157: 0.001 | M157: 0.001 | N157: 0 | O157: 0 | P157: 0 | Q157: 0
A158: 10CA001 | B158: Jun | C158: Fontas | D158: 7400 | E158: 78.09 | F158: 0.9200984517 | G158: 71.8504881 | H158: 104 | I158: 78.39 | J158: 59.94 | K158: 47.15 | L158: 37.66 | M158: 31.5 | N158: 28.675 | O158: 22.2 | P158: 13.48 | Q158: 9.019
A159: 10CB001 | B159: Jun | C159: Sikanni Chief | D159: 2196 | E159: 91.07 | F159: 0.9096991305 | G159: 82.84629981 | H159: 108 | I159: 92.2 | J159: 80.4 | K159: 71.2 | L159: 63.4 | M159: 56 | N159: 52.1 | O159: 48.9 | P159: 42.2 | Q159: 37
A160: 10CD003 | B160: Jun | C160: Raspberry | D160: 288 | E160: 2.77 | F160: 1.024204849 | G160: 2.837047431 | H160: 3.786 | I160: 2.688 | J160: 1.834 | K160: 1.36 | L160: 1.04 | M160: 0.8192 | N160: 0.715 | O160: 0.6118 | P160: 0.4 | Q160: 0.2882
A161: 10CD004 | B161: Jun | C161: Bougie | D161: 338 | E161: 6.93 | F161: 1.12547265 | G161: 7.799525467 | H161: 9.912 | I161: 7.01 | J161: 5.164 | K161: 3.87 | L161: 2.94 | M161: 2.16 | N161: 1.8425 | O161: 1.53 | P161: 0.9609 | Q161: 0.603
A162: 10CD005 | B162: Jun | C162: Adsett | D162: 112 | E162: 2.13 | F162: 1.098157676 | G162: 2.33907585 | H162: 2.75 | I162: 2.06 | J162: 1.606 | K162: 1.26 | L162: 0.9832 | M162: 0.771 | N162: 0.675 | O162: 0.5666 | P162: 0.3862 | Q162: 0.2732
A163: 10CD006 | B163: Jun | C163: Prophet | D163: 7320 | E163: 201.71 | F163: 1.152496158 | G163: 232.47 | H163: 309.4 | I163: 246.2 | J163: 215 | K163: 186 | L163: 159 | M163: 145 | N163: 136.25 | O163: 127.8 | P163: 105.9 | Q163: 93.485
A164: 07FA001 | B164: Jul | C164: Halfway (FA001) | D164: 9400 | E164: 172.76 | F164: 1.044238315 | G164: 180.4026114 | H164: 222 | I164: 183 | J164: 161 | K164: 140 | L164: 127 | M164: 110 | N164: 102 | O164: 95.4 | P164: 69.7 | Q164: 53.95
A165: 07FA003 | B165: Jul | C165: Halfway | D165: 3764 | E165: 80.7 | F165: 1.028250419 | G165: 82.97980884 | H165: 107 | I165: 88.92 | J165: 76.08 | K165: 65.4 | L165: 55 | M165: 47.44 | N165: 42.4 | O165: 38.24 | P165: 27.1 | Q165: 22.78
A166: 07FA005 | B166: Jul | C166: Graham | D166: 2142 | E166: 65.36 | F166: 0.7708257078 | G166: 50.38116827 | H166: 67.5 | I166: 57.1 | J166: 50.1 | K166: 42.5 | L166: 37.7 | M166: 32.78 | N166: 30.35 | O166: 27.4 | P166: 21.2 | Q166: 16.93
A167: 07FA006 | B167: Jul | C167: Halfway (FA006) | D167: 9340 | E167: 172.76 | F167: 0.9847033434 | G167: 170.1173496 | H167: 210 | I167: 172.2 | J167: 146 | K167: 126 | L167: 109 | M167: 90.08 | N167: 81.65 | O167: 74.3 | P167: 55.12 | Q167: 45.42
A168: 07FB001 | B168: Jul | C168: Pine | D168: 12147 | E168: 388 | F168: 0.7925376308 | G168: 307.5046007 | H168: 405 | I168: 338 | J168: 289 | K168: 249 | L168: 211 | M168: 176 | N168: 161 | O168: 148 | P168: 121 | Q168: 101
A169: 07FB003 | B169: Jul | C169: Sukunka | D169: 2590 | E169: 109.07 | F169: 0.7035575636 | G169: 76.73702346 | H169: 102 | I169: 83.21 | J169: 69.36 | K169: 58.95 | L169: 50.02 | M169: 42.7 | N169: 39 | O169: 35.32 | P169: 26.53 | Q169: 22.2
A170: 07FB004 | B170: Jul | C170: Dickebusch | D170: 82.4 | E170: 1.1 | F170: 1.265701425 | G170: 1.392271568 | H170: 1.376 | I170: 0.9024 | J170: 0.6554 | K170: 0.468 | L170: 0.314 | M170: 0.225 | N170: 0.183 | O170: 0.1444 | P170: 0.089 | Q170: 0.0586
A171: 07FB005 | B171: Jul | C171: Quality | D171: 29.5 | E171: 0.32 | F171: 1.197881589 | G171: 0.3833221083 | H171: 0.5202 | I171: 0.342 | J171: 0.22 | K171: 0.151 | L171: 0.109 | M171: 0.0816 | N171: 0.07 | O171: 0.057 | P171: 0.032 | Q171: 0.022
A172: 07FB008 | B172: Jul | C172: Moberly | D172: 1520 | E172: 22.96 | F172: 0.9947400675 | G172: 22.83923195 | H172: 30.7 | I172: 25 | J172: 21 | K172: 17.8 | L172: 14.7 | M172: 11.7 | N172: 10.5 | O172: 9.402 | P172: 6.651 | Q172: 5.071
A173: 07FB009 | B173: Jul | C173: Flatbed | D173: 486 | E173: 7.27 | F173: 1.007092314 | G173: 7.321561121 | H173: 8.49 | I173: 5.729 | J173: 4.382 | K173: 3.285 | L173: 2.588 | M173: 1.9 | N173: 1.67 | O173: 1.424 | P173: 0.848 | Q173: 0.56285
A174: 07FB011 | B174: Jul | C174: Windrem | D174: 22.9 | E174: 0.24 | F174: 0.5741080156 | G174: 0.1377859238 | H174: 0.229 | I174: 0.131 | J174: 0.089 | K174: 0.053 | L174: 0.028 | M174: 0.018 | N174: 0.014 | O174: 0.012 | P174: 0 | Q174: 0
A175: 07FC001 | B175: Jul | C175: Beatton | D175: 15523 | E175: 113.4 | F175: 0.9068830673 | G175: 102.8405398 | H175: 144 | I175: 102.6 | J175: 79.46 | K175: 64.5 | L175: 46.4 | M175: 33.4 | N175: 28.6 | O175: 23.76 | P175: 16 | Q175: 10.89
A176: 07FC002 | B176: Jul | C176: St John | D176: 213 | E176: 1.11 | F176: 0.4582227389 | G176: 0.5086272401 | H176: 0.5824 | I176: 0.3612 | J176: 0.1348 | K176: 0.088 | L176: 0.051 | M176: 0.028 | N176: 0.023 | O176: 0.0166 | P176: 0.0038 | Q176: 0
A177: 07FC003 | B177: Jul | C177: Blueberry | D177: 1774 | E177: 10.85 | F177: 0.7706475127 | G177: 8.361525513 | H177: 9.012 | I177: 5.248 | J177: 3.728 | K177: 2.82 | L177: 1.98 | M177: 1.38 | N177: 1.17 | O177: 0.9328 | P177: 0.5248 | Q177: 0.2602
A178: 07FD001 | B178: Jul | C178: Kiskatinaw | D178: 3597 | E178: 21.24 | F178: 1.01726805 | G178: 21.60677338 | H178: 24.2 | I178: 15.99 | J178: 10.8 | K178: 7.45 | L178: 5.338 | M178: 3.91 | N178: 3.1075 | O178: 2.4 | P178: 1.35 | Q178: 0.84915
A179: 07FD002 | B179: Jul | C179: Peace | D179: 100853 | E179: 1618 | F179: 1.061030317 | G179: 1716.747053 | H179: 2290 | I179: 1830 | J179: 1600 | K179: 1390 | L179: 1180 | M179: 988 | N179: 912 | O179: 836 | P179: 723 | Q179: 651.25
A180: 07FD004 | B180: Jul | C180: Alces | D180: 339 | E180: 1.31 | F180: 0.6821965033 | G180: 0.8936774194 | H180: 1.334 | I180: 0.8706 | J180: 0.627 | K180: 0.44 | L180: 0.316 | M180: 0.214 | N180: 0.15 | O180: 0.0752 | P180: 0.01 | Q180: 0.002
A181: 07FD007 | B181: Jul | C181: Pouce Coupe | D181: 2860 | E181: 14.34 | F181: 1.016370073 | G181: 14.57474684 | H181: 10.3 | I181: 5.375 | J181: 3.11 | K181: 2.005 | L181: 1.14 | M181: 0.6675 | N181: 0.4455 | O181: 0.335 | P181: 0.113 | Q181: 0.02825
A182: 07FD009 | B182: Jul | C182: Clear | D182: 2880 | G182: 5.557229437 | H182: 8.14 | I182: 4.84 | J182: 2.79 | K182: 1.765 | L182: 1.06 | M182: 0.688 | N182: 0.54025 | O182: 0.413 | P182: 0.198 | Q182: 0.1145
A183: 07FD011 | B183: Jul | C183: Hines | D183: 374 | G183: 0.8148646735 | H183: 1.04 | I183: 0.546 | J183: 0.265 | K183: 0.096 | L183: 0.054 | M183: 0.024 | N183: 0.015 | O183: 0.007 | P183: 0 | Q183: 0
A184: 07FD015 | B184: Jul | C184: Dawson | D184: 116 | E184: 0.73 | F184: =G184/E184 -> 0.3729374574 | G184: 0.2722443439 | H184: 0.057 | I184: 0.02 | J184: 0.005 | K184: 0.003 | L184: 0.002 | M184: 0.001 | N184: 0.001 | O184: 0.001 | P184: 0 | Q184: 0
A185: 10CA001 | B185: Jul | C185: Fontas | D185: 7400 | E185: 62.29 | F185: 1.095851451 | G185: 68.26058688 | H185: 102 | I185: 66.5 | J185: 50 | K185: 38.8 | L185: 28.92 | M185: 21.7 | N185: 19.3 | O185: 16.4 | P185: 12.4 | Q185: 9.528
A186: 10CB001 | B186: Jul | C186: Sikanni Chief | D186: 2196 | E186: 61.14 | F186: 1.024717589 | G186: 62.6512334 | H186: 80.9 | I186: 70.4 | J186: 61.4 | K186: 54.1 | L186: 47.9 | M186: 41.7 | N186: 39 | O186: 36 | P186: 28.9 | Q186: 24.6
A187: 10CD003 | B187: Jul | C187: Raspberry | D187: 288 | E187: 2.77 | F187: 0.6563906126 | G187: 1.818201997 | H187: 2.718 | I187: 1.777 | J187: 1.22 | K187: 0.91 | L187: 0.6794 | M187: 0.4283 | N187: 0.335 | O187: 0.2734 | P187: 0.1561 | Q187: 0.09205
A188: 10CD004 | B188: Jul | C188: Bougie | D188: 338 | E188: 6.11 | F188: 1.138046936 | G188: 6.95346678 | H188: 8.68 | I188: 5.663 | J188: 4.1 | K188: 3.03 | L188: 2.372 | M188: 1.728 | N188: 1.43 | O188: 1.176 | P188: 0.6806 | Q188: 0.37025
A189: 10CD005 | B189: Jul | C189: Adsett | D189: 112 | E189: 2 | F189: 1.222761988 | G189: 2.445523976 | H189: 2.3 | I189: 1.642 | J189: 1.262 | K189: 0.98 | L189: 0.7834 | M189: 0.576 | N189: 0.502 | O189: 0.406 | P189: 0.2492 | Q189: 0.1576
A190: 10CD006 | B190: Jul | C190: Prophet | D190: 7320 | E190: 177.1 | F190: 1.212723161 | G190: 214.7732719 | H190: 287.6 | I190: 212 | J190: 185 | K190: 166 | L190: 148 | M190: 132.8 | N190: 120 | O190: 111.4 | P190: 96.94 | Q190: 76.22
A191: 07FA001 | B191: Aug | C191: Halfway (FA001) | D191: 9400 | E191: 97.17 | F191: 1.123221895 | G191: 109.1434716 | H191: 111 | I191: 88.9 | J191: 77.6 | K191: 70.5 | L191: 61.4 | M191: 51.9 | N191: 47.5 | O191: 44.2 | P191: 39.4 | Q191: 36.2
A192: 07FA003 | B192: Aug | C192: Halfway | D192: 3764 | E192: 46.38 | F192: 0.9850760148 | G192: 45.68782557 | H192: 59.5 | I192: 44.02 | J192: 36.56 | K192: 30.8 | L192: 26.5 | M192: 22.98 | N192: 21.3 | O192: 19.8 | P192: 15.06 | Q192: 11.68
A193: 07FA005 | B193: Aug | C193: Graham | D193: 2142 | E193: 37.37 | F193: 0.6966655136 | G193: 26.03439024 | H193: 33.2 | I193: 28.89 | J193: 25.3 | K193: 22.05 | L193: 19.3 | M193: 17 | N193: 16 | O193: 14.8 | P193: 11.7 | Q193: 9.32
A194: 07FA006 | B194: Aug | C194: Halfway (FA006) | D194: 9340 | E194: 97.17 | F194: 0.8658451797 | G194: 84.13417611 | H194: 110.8 | I194: 89.5 | J194: 74.46 | K194: 62.8 | L194: 51.84 | M194: 45.26 | N194: 41.35 | O194: 37.8 | P194: 28.56 | Q194: 23.1
A195: 07FB001 | B195: Aug | C195: Pine | D195: 12147 | E195: 188 | F195: 0.7238284371 | G195: 136.0797462 | H195: 163 | I195: 138 | J195: 121 | K195: 109 | L195: 98.5 | M195: 88.9 | N195: 84 | O195: 77.8 | P195: 61.5 | Q195: 53.2
A196: 07FB003 | B196: Aug | C196: Sukunka | D196: 2590 | E196: 53.67 | F196: 0.5243128488 | G196: 28.1398706 | H196: 37.4 | I196: 31.2 | J196: 26.5 | K196: 22.6 | L196: 19.7 | M196: 16.9 | N196: 15.6 | O196: 14.2 | P196: 11 | Q196: 9.36
A197: 07FB004 | B197: Aug | C197: Dickebusch | D197: 82.4 | E197: 0.53 | F197: 1.024622424 | G197: 0.5430498849 | H197: 0.5346 | I197: 0.4104 | J197: 0.2892 | K197: 0.204 | L197: 0.159 | M197: 0.121 | N197: 0.11 | O197: 0.088 | P197: 0.0512 | Q197: 0.033
A198: 07FB005 | B198: Aug | C198: Quality | D198: 29.5 | E198: 0.13 | F198: 1.420473207 | G198: 0.1846615169 | H198: 0.2308 | I198: 0.148 | J198: 0.102 | K198: 0.074 | L198: 0.0544 | M198: 0.0383 | N198: 0.032 | O198: 0.026 | P198: 0.014 | Q198: 0.008
A199: 07FB008 | B199: Aug | C199: Moberly | D199: 1520 | E199: 12.41 | F199: 0.7319023235 | G199: 9.082907834 | H199: 11.9 | I199: 8.848 | J199: 7.59 | K199: 6.245 | L199: 4.884 | M199: 3.883 | N199: 3.6025 | O199: 3.102 | P199: 2.083 | Q199: 1.51
A200: 07FB009 | B200: Aug | C200: Flatbed | D200: 486 | E200: 3.19 | F200: 0.9666567318 | G200: 3.083634975 | H200: 3.58 | I200: 2.539 | J200: 1.952 | K200: 1.495 | L200: 1.218 | M200: 0.928 | N200: 0.794 | O200: 0.6876 | P200: 0.528 | Q200: 0.434
... 125 more rows

Sheet WSC
A1: WSC Gauge | B1: Name_short | C1: Name | D1: Area (km2) | E1: Type | F1: Record | H1: Gauges (realtime) for dropdown list
A2: 07FA001 | B2: Halfway (Farrell), Lower | C2: Halfway River near Farrell Creek (Lower) | D2: 9400 | E2: discontinued | F2: 1961-1983 | H2: 07FA003
A3: 07FA003 | B3: Halfway (Graham) | C3: Halfway River above Graham River | D3: 3764 | E3: real-time | F3: 1977-2021 | H3: 07FA005
A4: 07FA005 | B4: Graham | C4: Graham River above Colt Creek | D4: 2142 | E4: real-time | F4: 1981-2021 | H4: 07FA006
A5: 07FA006 | B5: Halfway (Farrell) | C5: Halfway River above Farrell Creek | D5: 9340 | E5: real-time | F5: 1984-2021 | H5: 07FB001
A6: 07FB001 | B6: Pine | C6: Pine River at East Pine | D6: 12147 | E6: real-time | F6: 1962-2021 | H6: 07FB003
A7: 07FB003 | B7: Sukunka | C7: Sukunka R near the mouth | D7: 2590 | E7: real-time | F7: 1977-2021 | H7: 07FB004
A8: 07FB004 | B8: Dickebusch | C8: Dickebusch Cr near the mouth | D8: 82.4 | E8: real-time | F8: 1978-2021 | H8: 07FB008
A9: 07FB005 | B9: Quality | C9: Quality Cr neear the mouth | D9: 29.5 | E9: discontinued | F9: 1978-2001 | H9: 07FB009
A10: 07FB008 | B10: Moberly | C10: Moberly River near Fort St John | D10: 1520 | E10: real-time | F10: 1980-2021 | H10: 07FC001
A11: 07FB009 | B11: Flatbed | C11: Flatbed Cr at km 110 | D11: 486 | E11: real-time | F11: 1982-2020 | H11: 07FC003
A12: 07FB011 | B12: Windren | C12: Windren Cr near Chetwynd | D12: 23 | E12: discontinued | F12: 1986-1998 | H12: 07FD001
A13: 07FC001 | B13: Beatton (FSJ) | C13: Beatton River near Fort St. John | D13: 15523 | E13: real-time | F13: 1961-2021 | H13: 07FD002
A14: 07FC002 | B14: St John | C14: St John Creek near Montney | D14: 213 | E14: discontinued | F14: 1962-1974 | H14: 07FD007
A15: 07FC003 | B15: Blueberry | C15: Blueberry River below Aitken Creek | D15: 1774 | E15: real-time | F15: 1964-2021 | H15: 07FD009
A16: 07FD001 | B16: Kiskatinaw | C16: Kiskatinaw River near Farmington | D16: 3597 | E16: real-time | F16: 1944-2021 | H16: 07FD011
A17: 07FD002 | B17: Peace | C17: Peace River near taylor | D17: 100759 | E17: real-time | F17: 1950-2020 | H17: 10CA001
A18: 07FD004 | B18: Alces | C18: Alces River At 22nd Base Line | D18: 229 | E18: discontinued | F18: 1963-2017 | H18: 10CB001
A19: 07FD007 | B19: Pouce Coupe | C19: Pouce Coupe below Henderson | D19: 2860 | E19: real-time | F19: 1971-2020 | H19: 10CD003
A20: 07FD009 | B20: Clear | C20: Clear River near Bear Canyon | D20: 2880 | E20: real-time | F20: 1971-2021 | H20: 10CD004
A21: 07FD011 | B21: Hines | C21: Hines Creek above Gerry Lake | D21: 374 | E21: real-time | F21: 1974-2020 | H21: 10CD005
A22: 07FD015 | B22: Dawson | C22: Dawson Cr above S Dawson Cr | D22: 116 | E22: discontinued | F22: 1971-1995
A23: 10CA001 | B23: Fontas | C23: Fontas River near the mouth | D23: 7400 | E23: real-time | F23: 1988-2021
A24: 10CB001 | B24: Sikanni Chief | C24: Sikanni Chief River near Fort Nelson | D24: 2196 | E24: real-time | F24: 1944-2021
A25: 10CD003 | B25: Raspberry | C25: Raspberry Creek near the Mouth | D25: 288 | E25: real-time | F25: 1979-2021
A26: 10CD004 | B26: Bougie | C26: Bougie Creek at Km 368 Alaska Highway | D26: 338 | E26: real-time | F26: 1981-2021
A27: 10CD005 | B27: Adsett | C27: Adsett Creek at Km 386 Alaska Highway | D27: 112 | E27: real-time | F27: 1983-2021
A28: 10CD006 | B28: Prophet | C28: Prophet River above Cheves Cr | D28: 7320 | E28: discontinued | F28: 1988-1995
A29: Beatton | B29: Beatton (Tommy Lks) | C29: Beatton at Tommy Lakes Rd | D29: 1852 | E29: industry | F29: 2013-2022

Sheet thresholds
A1: Watershed Size Class | B1: Mean Annual Discharge (MAD) | C1: Maximum Cumulative Withdrawal, % of Natural or Naturalized Weekly or Monthly Flow
B3: m3/s | C3: >Q80 | D3: ≤Q80 - >Q95 | E3: ≤Q95
A4: 3 | B4: ≥10 | C4: 0.15 | D4: 0.05 | E4: 0.05
A5: 2 | B5: ≥2 - ≤10 | C5: 0.15 | D5: 0.05 | E5: 0
A6: 1 | B6: <2 | C6: 0.1 | D6: 0 | E6: 0

Sheet Output
A1: Location (USER): | E1: Date: | F1: =TODAY() -> 2023-03-22 | G1: Enter WSA Application Amount:
A2: Location (NEWT): | C2: =annual!$A$1 -> 0
A3: Coordinates: | G3: m3/s, or
A4: Wastershed Area (km2): | C4: =annual!$A3 -> 0 | G4: m3/day, or
A5: Mean Annual Discharge (MAD) (m3/s): | C5: =annual!B3 -> 0 | G5: m3/year
A6: Watershed Size Class: | C6: =IF($C5<2,1,IF($C5>=10,3,2)) -> 1 | D6: =IF($C5<2,"MAD < 2.0 m3/s",IF($C5>=10,"MAD >= 10.0 m3/s","MAD >= 2.0 and < 10.0 m3/s")) -> MAD < 2.0 m3/s | G6: m3/s, used in further calculations | H6: =IF(H$3>0,H$3,IF(H$4>0,H$4/(60*60*24),IF(H$5>0,H$5/(365*60*60*24),0))) -> 0
A8: Maximum Water Allocation (MWA) rates, based on EBF threshold | F8: WSC Reference Gauge: | G8: Default | H8: User Selected
A9: When discharge is > 20% Ecosystem Base Flow (EBF) threshold: | E9: =VLOOKUP($C$6,thresholds!$A$4:$E$6,3,0) -> 0.1 | G9: =IF(H9="",variability!J3,H9) -> 0
A10: When discharge is > 5% and ≤ 20% Ecosystem Base Flow (EBF) threshold: | E10: =VLOOKUP($C$6,thresholds!$A$4:$E$6,4,0) -> 0 | F10: =VLOOKUP($G$9,WSC!$A$2:$F$27,3,0) -> 
A11: When discharge is ≤ 5% Ecosystem Base Flow (EBF) threshold: | E11: =VLOOKUP($C$6,thresholds!$A$4:$E$6,5,0) -> 0 | J11: Maximum Water Diversion (m3/sec, m3/day), when discharge is: | AH11: Ecosystem Base Flow (EBF) (m3/s) at Point of Diversion (POD) | AJ11: Ecosystem Base Flow (EBF) (m3/s) at WSC Reference Gauge
B13: Mean Monthly Discharge (NEWT) | C13: Corrected Mean Monthly Discharge | E13: Existing WSA authorizations | G13: Existing WSA Authorizations with Application | J13: <= 80% and > 70% Frequency | M13: <= 70% and > 60% Frequency | P13: <= 60% and > 50% Frequency | S13: <= 50% > 40% Frequency | V13: <= 40% and > 30% Frequency | Y13: <= 30% and > 20% Frequency | AB13: <= 20% and > 5% Frequency | AE13: <= 5% Frequency | AH13: (Percent Exceedance) | AJ13: (Percent Exceedance)
A14: Month | B14: m³/s | C14: m3/s | D14: m3 | E14: m3/s | F14: m3 | G14: m3/s | H14: m3 | J14: m3/day, before application | K14: m3/day, with application | L14: m3/sec, with application | M14: m3/day, before application | N14: m3/day, with application | O14: m3/sec, with application | P14: m3/day, before application | Q14: m3/day, with application | R14: m3/sec, with application | S14: m3/day, before application | T14: m3/day, with application | U14: m3/sec, with application | V14: m3/day, before application | W14: m3/day, with application | X14: m3/sec, with application | Y14: m3/day, before application | Z14: m3/day, with application | AA14: m3/sec, with application | AB14: m3/day, before application | AC14: m3/day, with application | AD14: m3/sec, with application | AE14: m3/day, before application | AF14: m3/day, with application | AG14: m3/sec, with application | AH14: 0.2 | AI14: 0.05 | AJ14: 0.2 | AK14: 0.05
A15: Jan | B15: =monthly!B7 -> 0 | C15: =B15*VLOOKUP($G$9,lookup!A2:Q28,6,0) ->  | D15: =C15*60*60*24*31 ->  | E15: =monthly!B$11+'WSA-adjust'!B10 -> 0 | F15: =E15*60*60*24*31 -> 0 | G15: =H15/(60*60*24*31) -> 0 | H15: =IF(H$3>0,H$3*60*60*24*31,IF(H$4>0,H$4*31,IF(H$5>0,H$5/365*31)))+F15 -> 0 | J15: =IF(((('EBF Calculation'!$B22*$E$9)-$E15)*86400)<0,0,'EBF Calculation'!$B22*$E$9-$E15)*86400 ->  | K15: =L15*60*60*24 ->  | L15: =('EBF Calculation'!$B22*$E$9)-$G15 ->  | M15: =IF(((('EBF Calculation'!$C22*$E$9)-$E15)*86400)<0,0,'EBF Calculation'!$C22*$E$9-$E15)*86400 ->  | N15: =O15*60*60*24 ->  | O15: =('EBF Calculation'!$C22*$E$9)-$G15 ->  | P15: =IF(((('EBF Calculation'!D22*$E$9)-$E15)*86400)<0,0,'EBF Calculation'!D22*$E$9-$E15)*86400 ->  | Q15: =R15*60*60*24 ->  | R15: =('EBF Calculation'!$D22*$E$9)-$G15 ->  | S15: =IF(((('EBF Calculation'!E22*$E$9)-$E15)*86400)<0,0,'EBF Calculation'!E22*$E$9-$E15)*86400 ->  | T15: =U15*60*60*24 ->  | U15: =('EBF Calculation'!$E22*$E$9)-$G15 ->  | V15: =IF(((('EBF Calculation'!F22*$E$9)-$E15)*86400)<0,0,'EBF Calculation'!F22*$E$9-$E15)*86400 ->  | W15: =X15*60*60*24 ->  | X15: =('EBF Calculation'!$F22*$E$9)-$G15 ->  | Y15: =IF(((('EBF Calculation'!G22*$E$9)-$E15)*86400)<0,0,'EBF Calculation'!G22*$E$9-$E15)*86400 ->  | Z15: =AA15*60*60*24 ->  | AA15: =('EBF Calculation'!$G22*$E$9)-$G15 ->  | AB15: =IF(((('EBF Calculation'!H22*$E$10)-$E15)*86400)<0,0,'EBF Calculation'!H22*$E$10-$E15)*86400 ->  | AC15: =AD15*60*60*24 -> 0 | AD15: =IF($E$10=0,0,('EBF Calculation'!$H22*$E$10)-$G15) -> 0 | AE15: =IF(((('EBF Calculation'!I22*$E$11)-$E15)*86400)<0,0,'EBF Calculation'!I22*$E$11-$E15)*86400 ->  | AF15: =AG15*60*60*24 -> 0 | AG15: =IF($E$11=0,0,('EBF Calculation'!$I22*$E$11)-$G15) -> 0 | AH15: =($C$4/VLOOKUP($G$9,lookup!A2:Q28,4,0))*AJ15 ->  | AI15: =($C$4/VLOOKUP($G$9,lookup!A2:Q28,4,0))*AK15 ->  | AJ15: =VLOOKUP($G$9,lookup!A2:Q28,15,0) ->  | AK15: =VLOOKUP($G$9,lookup!A2:Q28,17,0) -> 
A16: Feb | B16: =monthly!$C7 -> 0 | C16: =B16*VLOOKUP($G$9,lookup!A29:Q55,6,0) ->  | D16: =C16*60*60*24*28 ->  | E16: =monthly!$C$11+'WSA-adjust'!B11 -> 0 | F16: =E16*60*60*24*28 -> 0 | G16: =H16/(60*60*24*28) -> 0 | H16: =IF(H$3>0,H$3*60*60*24*28,IF(H$4>0,H$4*28,IF(H$5>0,H$5/365*28)))+F16 -> 0 | J16: =IF(((('EBF Calculation'!$B23*$E$9)-$E16)*86400)<0,0,'EBF Calculation'!$B23*$E$9-$E16)*86400 ->  | K16: =L16*60*60*24 ->  | L16: =('EBF Calculation'!$B23*$E$9)-$G16 ->  | M16: =IF(((('EBF Calculation'!$C23*$E$9)-$E16)*86400)<0,0,'EBF Calculation'!$C23*$E$9-$E16)*86400 ->  | N16: =O16*60*60*24 ->  | O16: =('EBF Calculation'!$C23*$E$9)-$G16 ->  | P16: =IF(((('EBF Calculation'!D23*$E$9)-$E16)*86400)<0,0,'EBF Calculation'!D23*$E$9-$E16)*86400 ->  | Q16: =R16*60*60*24 ->  | R16: =('EBF Calculation'!$D23*$E$9)-$G16 ->  | S16: =IF(((('EBF Calculation'!E23*$E$9)-$E16)*86400)<0,0,'EBF Calculation'!E23*$E$9-$E16)*86400 ->  | T16: =U16*60*60*24 ->  | U16: =('EBF Calculation'!$E23*$E$9)-$G16 ->  | V16: =IF(((('EBF Calculation'!F23*$E$9)-$E16)*86400)<0,0,'EBF Calculation'!F23*$E$9-$E16)*86400 ->  | W16: =X16*60*60*24 ->  | X16: =('EBF Calculation'!$F23*$E$9)-$G16 ->  | Y16: =IF(((('EBF Calculation'!G23*$E$9)-$E16)*86400)<0,0,'EBF Calculation'!G23*$E$9-$E16)*86400 ->  | Z16: =AA16*60*60*24 ->  | AA16: =('EBF Calculation'!$G23*$E$9)-$G16 ->  | AB16: =IF(((('EBF Calculation'!H23*$E$10)-$E16)*86400)<0,0,'EBF Calculation'!H23*$E$10-$E16)*86400 ->  | AC16: =AD16*60*60*24 -> 0 | AD16: =IF($E$10=0,0,('EBF Calculation'!$H23*$E$10)-$G16) -> 0 | AE16: =IF(((('EBF Calculation'!I23*$E$11)-$E16)*86400)<0,0,'EBF Calculation'!I23*$E$11-$E16)*86400 ->  | AF16: =AG16*60*60*24 -> 0 | AG16: =IF($E$11=0,0,('EBF Calculation'!$I23*$E$11)-$G16) -> 0 | AH16: =($C$4/VLOOKUP($G$9,lookup!$A$29:$Q$55,4,0))*AJ16 ->  | AI16: =($C$4/VLOOKUP($G$9,lookup!$A$29:$Q$55,4,0))*AK16 ->  | AJ16: =VLOOKUP($G$9,lookup!$A$29:$Q$55,15,0) ->  | AK16: =VLOOKUP($G$9,lookup!$A$29:$Q$55,17,0) -> 
A17: Mar | B17: =monthly!D7 -> 0 | C17: =B17*VLOOKUP($G$9,lookup!A56:Q82,6,0) ->  | D17: =C17*60*60*24*31 ->  | E17: =monthly!D$11+'WSA-adjust'!B12 -> 0 | F17: 0 | G17: =H17/(60*60*24*31) -> 0 | H17: =IF(H$3>0,H$3*60*60*24*31,IF(H$4>0,H$4*31,IF(H$5>0,H$5/365*31)))+F17 -> 0 | J17: =IF(((('EBF Calculation'!$B24*$E$9)-$E17)*86400)<0,0,'EBF Calculation'!$B24*$E$9-$E17)*86400 ->  | L17: =('EBF Calculation'!$B24*$E$9)-$G17 ->  | M17: =IF(((('EBF Calculation'!$C24*$E$9)-$E17)*86400)<0,0,'EBF Calculation'!$C24*$E$9-$E17)*86400 ->  | O17: =('EBF Calculation'!$C24*$E$9)-$G17 ->  | P17: =IF(((('EBF Calculation'!D24*$E$9)-$E17)*86400)<0,0,'EBF Calculation'!D24*$E$9-$E17)*86400 ->  | R17: =('EBF Calculation'!$D24*$E$9)-$G17 ->  | S17: =IF(((('EBF Calculation'!E24*$E$9)-$E17)*86400)<0,0,'EBF Calculation'!E24*$E$9-$E17)*86400 ->  | T17: =U17*60*60*24 ->  | U17: =('EBF Calculation'!$E24*$E$9)-$G17 ->  | V17: =IF(((('EBF Calculation'!F24*$E$9)-$E17)*86400)<0,0,'EBF Calculation'!F24*$E$9-$E17)*86400 ->  | W17: =X17*60*60*24 ->  | X17: =('EBF Calculation'!$F24*$E$9)-$G17 ->  | Y17: =IF(((('EBF Calculation'!G24*$E$9)-$E17)*86400)<0,0,'EBF Calculation'!G24*$E$9-$E17)*86400 ->  | Z17: =AA17*60*60*24 ->  | AA17: =('EBF Calculation'!$G24*$E$9)-$G17 ->  | AB17: =IF(((('EBF Calculation'!H24*$E$10)-$E17)*86400)<0,0,'EBF Calculation'!H24*$E$10-$E17)*86400 ->  | AC17: 0 | AD17: =IF($E$10=0,0,('EBF Calculation'!$H24*$E$10)-$G17) -> 0 | AE17: =IF(((('EBF Calculation'!I24*$E$11)-$E17)*86400)<0,0,'EBF Calculation'!I24*$E$11-$E17)*86400 ->  | AF17: 0 | AG17: =IF($E$11=0,0,('EBF Calculation'!$I24*$E$11)-$G17) -> 0 | AH17: =($C$4/VLOOKUP($G$9,lookup!$A$56:$Q$82,4,0))*AJ17 ->  | AI17: =($C$4/VLOOKUP($G$9,lookup!$A$56:$Q$82,4,0))*AK17 ->  | AJ17: =VLOOKUP($G$9,lookup!$A$56:$Q$82,15,0) ->  | AK17: =VLOOKUP($G$9,lookup!$A$56:$Q$82,17,0) -> 
A18: Apr | B18: =monthly!E7 -> 0 | C18: =B18*VLOOKUP($G$9,lookup!A83:Q109,6,0) ->  | D18: =C18*60*60*24*30 ->  | E18: =monthly!E$11+'WSA-adjust'!B13 -> 0 | F18: =E18*60*60*24*30 -> 0 | G18: =H18/(60*60*24*30) -> 0 | H18: =IF(H$3>0,H$3*60*60*24*30,IF(H$4>0,H$4*30,IF(H$5>0,H$5/365*30)))+F18 -> 0 | J18: =IF(((('EBF Calculation'!$B25*$E$9)-$E18)*86400)<0,0,'EBF Calculation'!$B25*$E$9-$E18)*86400 ->  | L18: =('EBF Calculation'!$B25*$E$9)-$G18 ->  | M18: =IF(((('EBF Calculation'!$C25*$E$9)-$E18)*86400)<0,0,'EBF Calculation'!$C25*$E$9-$E18)*86400 ->  | O18: =('EBF Calculation'!$C25*$E$9)-$G18 ->  | P18: =IF(((('EBF Calculation'!D25*$E$9)-$E18)*86400)<0,0,'EBF Calculation'!D25*$E$9-$E18)*86400 ->  | R18: =('EBF Calculation'!$D25*$E$9)-$G18 ->  | S18: =IF(((('EBF Calculation'!E25*$E$9)-$E18)*86400)<0,0,'EBF Calculation'!E25*$E$9-$E18)*86400 ->  | T18: =U18*60*60*24 ->  | U18: =('EBF Calculation'!$E25*$E$9)-$G18 ->  | V18: =IF(((('EBF Calculation'!F25*$E$9)-$E18)*86400)<0,0,'EBF Calculation'!F25*$E$9-$E18)*86400 ->  | W18: =X18*60*60*24 ->  | X18: =('EBF Calculation'!$F25*$E$9)-$G18 ->  | Y18: =IF(((('EBF Calculation'!G25*$E$9)-$E18)*86400)<0,0,'EBF Calculation'!G25*$E$9-$E18)*86400 ->  | AA18: =('EBF Calculation'!$G25*$E$9)-$G18 ->  | AB18: =IF(((('EBF Calculation'!H25*$E$10)-$E18)*86400)<0,0,'EBF Calculation'!H25*$E$10-$E18)*86400 ->  | AC18: 0 | AD18: =IF($E$10=0,0,('EBF Calculation'!$H25*$E$10)-$G18) -> 0 | AE18: =IF(((('EBF Calculation'!I25*$E$11)-$E18)*86400)<0,0,'EBF Calculation'!I25*$E$11-$E18)*86400 ->  | AF18: 0 | AG18: =IF($E$11=0,0,('EBF Calculation'!$I25*$E$11)-$G18) -> 0 | AH18: =($C$4/VLOOKUP($G$9,lookup!$A$83:$Q$109,4,0))*AJ18 ->  | AI18: =($C$4/VLOOKUP($G$9,lookup!$A$83:$Q$109,4,0))*AK18 ->  | AJ18: =VLOOKUP($G$9,lookup!$A$83:$Q$109,15,0) ->  | AK18: =VLOOKUP($G$9,lookup!$A$83:$Q$109,17,0) -> 
A19: May | B19: =monthly!F7 -> 0 | C19: =B19*VLOOKUP($G$9,lookup!A110:Q136,6,0) ->  | E19: =monthly!F$11+'WSA-adjust'!B14 -> 0 | F19: 0 | G19: 0 | H19: =IF(H$3>0,H$3*60*60*24*31,IF(H$4>0,H$4*31,IF(H$5>0,H$5/365*31)))+F19 -> 0 | J19: =IF(((('EBF Calculation'!$B26*$E$9)-$E19)*86400)<0,0,'EBF Calculation'!$B26*$E$9-$E19)*86400 ->  | L19: =('EBF Calculation'!$B26*$E$9)-$G19 ->  | M19: =IF(((('EBF Calculation'!$C26*$E$9)-$E19)*86400)<0,0,'EBF Calculation'!$C26*$E$9-$E19)*86400 ->  | O19: =('EBF Calculation'!$C26*$E$9)-$G19 ->  | P19: =IF(((('EBF Calculation'!D26*$E$9)-$E19)*86400)<0,0,'EBF Calculation'!D26*$E$9-$E19)*86400 ->  | R19: =('EBF Calculation'!$D26*$E$9)-$G19 ->  | S19: =IF(((('EBF Calculation'!E26*$E$9)-$E19)*86400)<0,0,'EBF Calculation'!E26*$E$9-$E19)*86400 ->  | T19: =U19*60*60*24 ->  | U19: =('EBF Calculation'!$E26*$E$9)-$G19 ->  | V19: =IF(((('EBF Calculation'!F26*$E$9)-$E19)*86400)<0,0,'EBF Calculation'!F26*$E$9-$E19)*86400 ->  | W19: =X19*60*60*24 ->  | X19: =('EBF Calculation'!$F26*$E$9)-$G19 ->  | Y19: =IF(((('EBF Calculation'!G26*$E$9)-$E19)*86400)<0,0,'EBF Calculation'!G26*$E$9-$E19)*86400 ->  | AA19: =('EBF Calculation'!$G26*$E$9)-$G19 ->  | AB19: =IF(((('EBF Calculation'!H26*$E$10)-$E19)*86400)<0,0,'EBF Calculation'!H26*$E$10-$E19)*86400 ->  | AC19: 0 | AD19: =IF($E$10=0,0,('EBF Calculation'!$H26*$E$10)-$G19) -> 0 | AE19: =IF(((('EBF Calculation'!I26*$E$11)-$E19)*86400)<0,0,'EBF Calculation'!I26*$E$11-$E19)*86400 ->  | AF19: 0 | AG19: =IF($E$11=0,0,('EBF Calculation'!$I26*$E$11)-$G19) -> 0 | AH19: =($C$4/VLOOKUP($G$9,lookup!$A$110:$Q$136,4,0))*AJ19 ->  | AI19: =($C$4/VLOOKUP($G$9,lookup!$A$110:$Q$136,4,0))*AK19 ->  | AJ19: =VLOOKUP($G$9,lookup!$A$110:$Q$136,15,0) ->  | AK19: =VLOOKUP($G$9,lookup!$A$110:$Q$136,17,0) -> 
A20: Jun | B20: =monthly!G7 -> 0 | C20: =B20*VLOOKUP($G$9,lookup!A137:Q163,6,0) ->  | D20: =C20*60*60*24*30 ->  | E20: =monthly!G$11+'WSA-adjust'!B15 -> 0 | F20: =E20*60*60*24*30 -> 0 | G20: =H20/(60*60*24*30) -> 0 | H20: =IF(H$3>0,H$3*60*60*24*30,IF(H$4>0,H$4*30,IF(H$5>0,H$5/365*30)))+F20 -> 0 | J20: =IF(((('EBF Calculation'!$B27*$E$9)-$E20)*86400)<0,0,'EBF Calculation'!$B27*$E$9-$E20)*86400 ->  | L20: =('EBF Calculation'!$B27*$E$9)-$G20 ->  | M20: =IF(((('EBF Calculation'!$C27*$E$9)-$E20)*86400)<0,0,'EBF Calculation'!$C27*$E$9-$E20)*86400 ->  | O20: =('EBF Calculation'!$C27*$E$9)-$G20 ->  | P20: =IF(((('EBF Calculation'!D27*$E$9)-$E20)*86400)<0,0,'EBF Calculation'!D27*$E$9-$E20)*86400 ->  | R20: =('EBF Calculation'!$D27*$E$9)-$G20 ->  | S20: =IF(((('EBF Calculation'!E27*$E$9)-$E20)*86400)<0,0,'EBF Calculation'!E27*$E$9-$E20)*86400 ->  | T20: =U20*60*60*24 ->  | U20: =('EBF Calculation'!$E27*$E$9)-$G20 ->  | V20: =IF(((('EBF Calculation'!F27*$E$9)-$E20)*86400)<0,0,'EBF Calculation'!F27*$E$9-$E20)*86400 ->  | W20: =X20*60*60*24 ->  | X20: =('EBF Calculation'!$F27*$E$9)-$G20 ->  | Y20: =IF(((('EBF Calculation'!G27*$E$9)-$E20)*86400)<0,0,'EBF Calculation'!G27*$E$9-$E20)*86400 ->  | AA20: =('EBF Calculation'!$G27*$E$9)-$G20 ->  | AB20: =IF(((('EBF Calculation'!H27*$E$10)-$E20)*86400)<0,0,'EBF Calculation'!H27*$E$10-$E20)*86400 ->  | AC20: 0 | AD20: =IF($E$10=0,0,('EBF Calculation'!$H27*$E$10)-$G20) -> 0 | AE20: =IF(((('EBF Calculation'!I27*$E$11)-$E20)*86400)<0,0,'EBF Calculation'!I27*$E$11-$E20)*86400 ->  | AF20: 0 | AG20: =IF($E$11=0,0,('EBF Calculation'!$I27*$E$11)-$G20) -> 0 | AH20: =($C$4/VLOOKUP($G$9,lookup!$A$137:$Q$163,4,0))*AJ20 ->  | AI20: =($C$4/VLOOKUP($G$9,lookup!$A$137:$Q$163,4,0))*AK20 ->  | AJ20: =VLOOKUP($G$9,lookup!$A$137:$Q$163,15,0) ->  | AK20: =VLOOKUP($G$9,lookup!$A$137:$Q$163,17,0) -> 
A21: Jul | B21: =monthly!H7 -> 0 | C21: =B21*VLOOKUP($G$9,lookup!A164:Q190,6,0) ->  | E21: =monthly!H$11+'WSA-adjust'!B16 -> 0 | F21: 0 | G21: 0 | H21: =IF(H$3>0,H$3*60*60*24*31,IF(H$4>0,H$4*31,IF(H$5>0,H$5/365*31)))+F21 -> 0 | J21: =IF(((('EBF Calculation'!$B28*$E$9)-$E21)*86400)<0,0,'EBF Calculation'!$B28*$E$9-$E21)*86400 ->  | L21: =('EBF Calculation'!$B28*$E$9)-$G21 ->  | M21: =IF(((('EBF Calculation'!$C28*$E$9)-$E21)*86400)<0,0,'EBF Calculation'!$C28*$E$9-$E21)*86400 ->  | O21: =('EBF Calculation'!$C28*$E$9)-$G21 ->  | P21: =IF(((('EBF Calculation'!D28*$E$9)-$E21)*86400)<0,0,'EBF Calculation'!D28*$E$9-$E21)*86400 ->  | R21: =('EBF Calculation'!$D28*$E$9)-$G21 ->  | S21: =IF(((('EBF Calculation'!E28*$E$9)-$E21)*86400)<0,0,'EBF Calculation'!E28*$E$9-$E21)*86400 ->  | T21: =U21*60*60*24 ->  | U21: =('EBF Calculation'!$E28*$E$9)-$G21 ->  | V21: =IF(((('EBF Calculation'!F28*$E$9)-$E21)*86400)<0,0,'EBF Calculation'!F28*$E$9-$E21)*86400 ->  | W21: =X21*60*60*24 ->  | X21: =('EBF Calculation'!$F28*$E$9)-$G21 ->  | Y21: =IF(((('EBF Calculation'!G28*$E$9)-$E21)*86400)<0,0,'EBF Calculation'!G28*$E$9-$E21)*86400 ->  | AA21: =('EBF Calculation'!$G28*$E$9)-$G21 ->  | AB21: =IF(((('EBF Calculation'!H28*$E$10)-$E21)*86400)<0,0,'EBF Calculation'!H28*$E$10-$E21)*86400 ->  | AC21: 0 | AD21: =IF($E$10=0,0,('EBF Calculation'!$H28*$E$10)-$G21) -> 0 | AE21: =IF(((('EBF Calculation'!I28*$E$11)-$E21)*86400)<0,0,'EBF Calculation'!I28*$E$11-$E21)*86400 ->  | AF21: 0 | AG21: =IF($E$11=0,0,('EBF Calculation'!$I28*$E$11)-$G21) -> 0 | AH21: =($C$4/VLOOKUP($G$9,lookup!$A$164:$Q$190,4,0))*AJ21 ->  | AI21: =($C$4/VLOOKUP($G$9,lookup!$A$164:$Q$190,4,0))*AK21 ->  | AJ21: =VLOOKUP($G$9,lookup!$A$164:$Q$190,15,0) ->  | AK21: =VLOOKUP($G$9,lookup!$A$164:$Q$190,17,0) -> 
A22: Aug | B22: =monthly!I7 -> 0 | C22: =B22*VLOOKUP($G$9,lookup!A191:Q217,6,0) ->  | E22: =monthly!I$11+'WSA-adjust'!B17 -> 0 | F22: 0 | G22: 0 | H22: =IF(H$3>0,H$3*60*60*24*31,IF(H$4>0,H$4*31,IF(H$5>0,H$5/365*31)))+F22 -> 0 | J22: =IF(((('EBF Calculation'!$B29*$E$9)-$E22)*86400)<0,0,'EBF Calculation'!$B29*$E$9-$E22)*86400 ->  | L22: =('EBF Calculation'!$B29*$E$9)-$G22 ->  | M22: =IF(((('EBF Calculation'!$C29*$E$9)-$E22)*86400)<0,0,'EBF Calculation'!$C29*$E$9-$E22)*86400 ->  | O22: =('EBF Calculation'!$C29*$E$9)-$G22 ->  | P22: =IF(((('EBF Calculation'!D29*$E$9)-$E22)*86400)<0,0,'EBF Calculation'!D29*$E$9-$E22)*86400 ->  | R22: =('EBF Calculation'!$D29*$E$9)-$G22 ->  | S22: =IF(((('EBF Calculation'!E29*$E$9)-$E22)*86400)<0,0,'EBF Calculation'!E29*$E$9-$E22)*86400 ->  | T22: =U22*60*60*24 ->  | U22: =('EBF Calculation'!$E29*$E$9)-$G22 ->  | V22: =IF(((('EBF Calculation'!F29*$E$9)-$E22)*86400)<0,0,'EBF Calculation'!F29*$E$9-$E22)*86400 ->  | W22: =X22*60*60*24 ->  | X22: =('EBF Calculation'!$F29*$E$9)-$G22 ->  | Y22: =IF(((('EBF Calculation'!G29*$E$9)-$E22)*86400)<0,0,'EBF Calculation'!G29*$E$9-$E22)*86400 ->  | AA22: =('EBF Calculation'!$G29*$E$9)-$G22 ->  | AB22: =IF(((('EBF Calculation'!H29*$E$10)-$E22)*86400)<0,0,'EBF Calculation'!H29*$E$10-$E22)*86400 ->  | AC22: 0 | AD22: =IF($E$10=0,0,('EBF Calculation'!$H29*$E$10)-$G22) -> 0 | AE22: =IF(((('EBF Calculation'!I29*$E$11)-$E22)*86400)<0,0,'EBF Calculation'!I29*$E$11-$E22)*86400 ->  | AF22: 0 | AG22: =IF($E$11=0,0,('EBF Calculation'!$I29*$E$11)-$G22) -> 0 | AH22: =($C$4/VLOOKUP($G$9,lookup!$A$191:$Q$217,4,0))*AJ22 ->  | AI22: =($C$4/VLOOKUP($G$9,lookup!$A$191:$Q$217,4,0))*AK22 ->  | AJ22: =VLOOKUP($G$9,lookup!$A$191:$Q$217,15,0) ->  | AK22: =VLOOKUP($G$9,lookup!$A$191:$Q$217,17,0) -> 
A23: Sep | B23: =monthly!J7 -> 0 | C23: =B23*VLOOKUP($G$9,lookup!A218:Q244,6,0) ->  | D23: =C23*60*60*24*30 ->  | E23: =monthly!J$11+'WSA-adjust'!B18 -> 0 | F23: =E23*60*60*24*30 -> 0 | G23: =H23/(60*60*24*30) -> 0 | H23: =IF(H$3>0,H$3*60*60*24*30,IF(H$4>0,H$4*30,IF(H$5>0,H$5/365*30)))+F23 -> 0 | J23: =IF(((('EBF Calculation'!$B30*$E$9)-$E23)*86400)<0,0,'EBF Calculation'!$B30*$E$9-$E23)*86400 ->  | L23: =('EBF Calculation'!$B30*$E$9)-$G23 ->  | M23: =IF(((('EBF Calculation'!$C30*$E$9)-$E23)*86400)<0,0,'EBF Calculation'!$C30*$E$9-$E23)*86400 ->  | O23: =('EBF Calculation'!$C30*$E$9)-$G23 ->  | P23: =IF(((('EBF Calculation'!D30*$E$9)-$E23)*86400)<0,0,'EBF Calculation'!D30*$E$9-$E23)*86400 ->  | R23: =('EBF Calculation'!$D30*$E$9)-$G23 ->  | S23: =IF(((('EBF Calculation'!E30*$E$9)-$E23)*86400)<0,0,'EBF Calculation'!E30*$E$9-$E23)*86400 ->  | T23: =U23*60*60*24 ->  | U23: =('EBF Calculation'!$E30*$E$9)-$G23 ->  | V23: =IF(((('EBF Calculation'!F30*$E$9)-$E23)*86400)<0,0,'EBF Calculation'!F30*$E$9-$E23)*86400 ->  | W23: =X23*60*60*24 ->  | X23: =('EBF Calculation'!$F30*$E$9)-$G23 ->  | Y23: =IF(((('EBF Calculation'!G30*$E$9)-$E23)*86400)<0,0,'EBF Calculation'!G30*$E$9-$E23)*86400 ->  | AA23: =('EBF Calculation'!$G30*$E$9)-$G23 ->  | AB23: =IF(((('EBF Calculation'!H30*$E$10)-$E23)*86400)<0,0,'EBF Calculation'!H30*$E$10-$E23)*86400 ->  | AC23: 0 | AD23: =IF($E$10=0,0,('EBF Calculation'!$H30*$E$10)-$G23) -> 0 | AE23: =IF(((('EBF Calculation'!I30*$E$11)-$E23)*86400)<0,0,'EBF Calculation'!I30*$E$11-$E23)*86400 ->  | AF23: 0 | AG23: =IF($E$11=0,0,('EBF Calculation'!$I30*$E$11)-$G23) -> 0 | AH23: =($C$4/VLOOKUP($G$9,lookup!$A$218:$Q$244,4,0))*AJ23 ->  | AI23: =($C$4/VLOOKUP($G$9,lookup!$A$218:$Q$244,4,0))*AK23 ->  | AJ23: =VLOOKUP($G$9,lookup!$A$218:$Q$244,15,0) ->  | AK23: =VLOOKUP($G$9,lookup!$A$218:$Q$244,17,0) -> 
A24: Oct | B24: =monthly!K7 -> 0 | C24: =B24*VLOOKUP($G$9,lookup!A245:Q271,6,0) ->  | E24: =monthly!K$11+'WSA-adjust'!B19 -> 0 | F24: 0 | G24: 0 | H24: =IF(H$3>0,H$3*60*60*24*31,IF(H$4>0,H$4*31,IF(H$5>0,H$5/365*31)))+F24 -> 0 | J24: =IF(((('EBF Calculation'!$B31*$E$9)-$E24)*86400)<0,0,'EBF Calculation'!$B31*$E$9-$E24)*86400 ->  | L24: =('EBF Calculation'!$B31*$E$9)-$G24 ->  | M24: =IF(((('EBF Calculation'!$C31*$E$9)-$E24)*86400)<0,0,'EBF Calculation'!$C31*$E$9-$E24)*86400 ->  | O24: =('EBF Calculation'!$C31*$E$9)-$G24 ->  | P24: =IF(((('EBF Calculation'!D31*$E$9)-$E24)*86400)<0,0,'EBF Calculation'!D31*$E$9-$E24)*86400 ->  | R24: =('EBF Calculation'!$D31*$E$9)-$G24 ->  | S24: =IF(((('EBF Calculation'!E31*$E$9)-$E24)*86400)<0,0,'EBF Calculation'!E31*$E$9-$E24)*86400 ->  | T24: =U24*60*60*24 ->  | U24: =('EBF Calculation'!$E31*$E$9)-$G24 ->  | V24: =IF(((('EBF Calculation'!F31*$E$9)-$E24)*86400)<0,0,'EBF Calculation'!F31*$E$9-$E24)*86400 ->  | W24: =X24*60*60*24 ->  | X24: =('EBF Calculation'!$F31*$E$9)-$G24 ->  | Y24: =IF(((('EBF Calculation'!G31*$E$9)-$E24)*86400)<0,0,'EBF Calculation'!G31*$E$9-$E24)*86400 ->  | AA24: =('EBF Calculation'!$G31*$E$9)-$G24 ->  | AB24: =IF(((('EBF Calculation'!H31*$E$10)-$E24)*86400)<0,0,'EBF Calculation'!H31*$E$10-$E24)*86400 ->  | AC24: 0 | AD24: =IF($E$10=0,0,('EBF Calculation'!$H31*$E$10)-$G24) -> 0 | AE24: =IF(((('EBF Calculation'!I31*$E$11)-$E24)*86400)<0,0,'EBF Calculation'!I31*$E$11-$E24)*86400 ->  | AF24: 0 | AG24: =IF($E$11=0,0,('EBF Calculation'!$I31*$E$11)-$G24) -> 0 | AH24: =($C$4/VLOOKUP($G$9,lookup!$A$245:$Q$271,4,0))*AJ24 ->  | AI24: =($C$4/VLOOKUP($G$9,lookup!$A$245:$Q$271,4,0))*AK24 ->  | AJ24: =VLOOKUP($G$9,lookup!$A$245:$Q$271,15,0) ->  | AK24: =VLOOKUP($G$9,lookup!$A$245:$Q$271,17,0) -> 
A25: Nov | B25: =monthly!L7 -> 0 | C25: =B25*VLOOKUP($G$9,lookup!A272:Q298,6,0) ->  | D25: =C25*60*60*24*30 ->  | E25: =monthly!L$11+'WSA-adjust'!B20 -> 0 | F25: =E25*60*60*24*30 -> 0 | G25: =H25/(60*60*24*30) -> 0 | H25: =IF(H$3>0,H$3*60*60*24*30,IF(H$4>0,H$4*30,IF(H$5>0,H$5/365*30)))+F25 -> 0 | J25: =IF(((('EBF Calculation'!$B32*$E$9)-$E25)*86400)<0,0,'EBF Calculation'!$B32*$E$9-$E25)*86400 ->  | L25: =('EBF Calculation'!$B32*$E$9)-$G25 ->  | M25: =IF(((('EBF Calculation'!$C32*$E$9)-$E25)*86400)<0,0,'EBF Calculation'!$C32*$E$9-$E25)*86400 ->  | O25: =('EBF Calculation'!$C32*$E$9)-$G25 ->  | P25: =IF(((('EBF Calculation'!D32*$E$9)-$E25)*86400)<0,0,'EBF Calculation'!D32*$E$9-$E25)*86400 ->  | R25: =('EBF Calculation'!$D32*$E$9)-$G25 ->  | S25: =IF(((('EBF Calculation'!E32*$E$9)-$E25)*86400)<0,0,'EBF Calculation'!E32*$E$9-$E25)*86400 ->  | T25: =U25*60*60*24 ->  | U25: =('EBF Calculation'!$E32*$E$9)-$G25 ->  | V25: =IF(((('EBF Calculation'!F32*$E$9)-$E25)*86400)<0,0,'EBF Calculation'!F32*$E$9-$E25)*86400 ->  | W25: =X25*60*60*24 ->  | X25: =('EBF Calculation'!$F32*$E$9)-$G25 ->  | Y25: =IF(((('EBF Calculation'!G32*$E$9)-$E25)*86400)<0,0,'EBF Calculation'!G32*$E$9-$E25)*86400 ->  | AA25: =('EBF Calculation'!$G32*$E$9)-$G25 ->  | AB25: =IF(((('EBF Calculation'!H32*$E$10)-$E25)*86400)<0,0,'EBF Calculation'!H32*$E$10-$E25)*86400 ->  | AC25: 0 | AD25: =IF($E$10=0,0,('EBF Calculation'!$H32*$E$10)-$G25) -> 0 | AE25: =IF(((('EBF Calculation'!I32*$E$11)-$E25)*86400)<0,0,'EBF Calculation'!I32*$E$11-$E25)*86400 ->  | AF25: 0 | AG25: =IF($E$11=0,0,('EBF Calculation'!$I32*$E$11)-$G25) -> 0 | AH25: =($C$4/VLOOKUP($G$9,lookup!$A$272:$Q$298,4,0))*AJ25 ->  | AI25: =($C$4/VLOOKUP($G$9,lookup!$A$272:$Q$298,4,0))*AK25 ->  | AJ25: =VLOOKUP($G$9,lookup!$A$272:$Q$298,15,0) ->  | AK25: =VLOOKUP($G$9,lookup!$A$272:$Q$298,17,0) -> 
A26: Dec | B26: =monthly!M7 -> 0 | C26: =B26*VLOOKUP($G$9,lookup!A299:Q325,6,0) ->  | E26: =monthly!M$11+'WSA-adjust'!B21 -> 0 | F26: 0 | G26: 0 | H26: =IF(H$3>0,H$3*60*60*24*31,IF(H$4>0,H$4*31,IF(H$5>0,H$5/365*31)))+F26 -> 0 | J26: =IF(((('EBF Calculation'!$B33*$E$9)-$E26)*86400)<0,0,'EBF Calculation'!$B33*$E$9-$E26)*86400 ->  | L26: =('EBF Calculation'!$B33*$E$9)-$G26 ->  | M26: =IF(((('EBF Calculation'!$C33*$E$9)-$E26)*86400)<0,0,'EBF Calculation'!$C33*$E$9-$E26)*86400 ->  | O26: =('EBF Calculation'!$C33*$E$9)-$G26 ->  | P26: =IF(((('EBF Calculation'!D33*$E$9)-$E26)*86400)<0,0,'EBF Calculation'!D33*$E$9-$E26)*86400 ->  | R26: =('EBF Calculation'!$D33*$E$9)-$G26 ->  | S26: =IF(((('EBF Calculation'!E33*$E$9)-$E26)*86400)<0,0,'EBF Calculation'!E33*$E$9-$E26)*86400 ->  | T26: =U26*60*60*24 ->  | U26: =('EBF Calculation'!$E33*$E$9)-$G26 ->  | V26: =IF(((('EBF Calculation'!F33*$E$9)-$E26)*86400)<0,0,'EBF Calculation'!F33*$E$9-$E26)*86400 ->  | W26: =X26*60*60*24 ->  | X26: =('EBF Calculation'!$F33*$E$9)-$G26 ->  | Y26: =IF(((('EBF Calculation'!G33*$E$9)-$E26)*86400)<0,0,'EBF Calculation'!G33*$E$9-$E26)*86400 ->  | AA26: =('EBF Calculation'!$G33*$E$9)-$G26 ->  | AB26: =IF(((('EBF Calculation'!H33*$E$10)-$E26)*86400)<0,0,'EBF Calculation'!H33*$E$10-$E26)*86400 ->  | AC26: 0 | AD26: =IF($E$10=0,0,('EBF Calculation'!$H33*$E$10)-$G26) -> 0 | AE26: =IF(((('EBF Calculation'!I33*$E$11)-$E26)*86400)<0,0,'EBF Calculation'!I33*$E$11-$E26)*86400 ->  | AF26: 0 | AG26: =IF($E$11=0,0,('EBF Calculation'!$I33*$E$11)-$G26) -> 0 | AH26: =($C$4/VLOOKUP($G$9,lookup!$A$299:$Q$325,4,0))*AJ26 ->  | AI26: =($C$4/VLOOKUP($G$9,lookup!$A$299:$Q$325,4,0))*AK26 ->  | AJ26: =VLOOKUP($G$9,lookup!$A$299:$Q$325,15,0) ->  | AK26: =VLOOKUP($G$9,lookup!$A$299:$Q$325,17,0) -> 
A28: Annual | B28: =((B15*31)+(B16*28)+(B17*31)+(B18*30)+(B19*31)+(B20*30)+(B21*31)+(B22*31)+(B23*30)+(B24*31)+(B25*30)+(B26*31))/365 -> 0 | C28: =((C15*31)+(C16*28)+(C17*31)+(C18*30)+(C19*31)+(C20*30)+(C21*31)+(C22*31)+(C23*30)+(C24*31)+(C25*30)+(C26*31))/365 ->  | D28: =C28*60*60*24*365 -> 

Sheet Diversion Schedule
A1: Schedule 1. Diversion Table
A3: POD Location: | B3: =Output!C1 -> 0 | D3: Location (NEWT): | F3: =Output!C2 -> 0
A4: POD Coordinates: | B4: =Output!C3 -> 0 | D4: Wastershed Area (km2): | F4: =Output!C4 -> 0
A5: Authorization Holder: | D5: Mean Annual Discharge (MAD) (m3/s): | F5: =Output!C5 -> 0
A6: Authorization Number: | D6: Reference Gauge: | F6: =Output!G9 -> 0
A7: Date: | B7: =TODAY() -> 2023-03-22 | D7: =Output!F10 -> 
A9: Maximum approved diversion rate: | B9: =Output!H6 -> 0 | C9: m3/s
B10: =B9*(60*60*24) -> 0 | C10: m3/day
A13: Column | B13: [B] | C13: [C] | D13: [D] | E13: [E] | F13: [F] | G13: [G] | H13: [H] | I13: [I] | J13: [J] | K13: [K] | L13: [L] | M13: [M] | N13: [N] | O13: [O] | P13: [P] | Q13: [Q] | R13: [R] | S13: [S] | T13: [T] | U13: [U] | V13: [V] | W13: [W]
A14: Discharge Percentile | B14: 0.8 | E14: 0.7 | H14: 0.6 | K14: 0.5 | N14: 0.4 | Q14: 0.3 | T14: 0.2 | W14: 0.05
A15: Description | B15: 80% Frequency Cutback Threshold at Reference Gauge | C15: Diversion Limit at POD when Discharge at Reference Gauge is ≤ 80% Frequency | E15: 70% Frequency Cutback Threshold at Reference Gauge | F15: Diversion Limit at POD when Discharge at Reference Gauge is ≤< 70% Frequency | H15: 60% Frequency Cutback Threshold at Reference Gauge | I15: Diversion Limit at POD when Discharge at Reference Gauge is ≤ 60% Frequency | K15: 50% Frequency Cutback Threshold at Reference Gauge | L15: Diversion Limit at POD when Discharge at Reference Gauge is ≤ 50% Frequency | N15: 40% Frequency Cutback Threshold at Reference Gauge | O15: Diversion Limit at POD when Discharge at Reference Gauge is ≤ 40% Frequency | Q15: 30% Frequency Cutback Threshold at Reference Gauge | R15: Diversion Limit at POD when Discharge at Reference Gauge is ≤ 30% Frequency | T15: 20% Frequency Cutback Threshold at Reference Gauge | U15: Diversion Limit at POD when Discharge at Reference Gauge is ≤ 20% Frequency | W15: "No Diversion" Cutoff Threshold at Reference Gauge
A16: Month | B16: m3/s | C16: m3/day | D16: m3/s | E16: m3/s | F16: m3/day | G16: m3/s | H16: m3/s | I16: m3/day | J16: m3/s | K16: m3/s | L16: m3/day | M16: m3/s | N16: m3/s | O16: m3/day | P16: m3/s | Q16: m3/s | R16: m3/day | S16: m3/s | T16: m3/s | U16: m3/day | V16: m3/s | W16: m3/s
A17: Jan | B17: =VLOOKUP(Output!$G$9,lookup!$A$2:$Q$28,8,0) ->  | C17: =D17*60*60*24 ->  | D17: =IF(Output!L15>0,Output!$H$6,IF(Output!L15<-Output!$H$6,0,Output!$H$6+Output!L15)) ->  | E17: =VLOOKUP(Output!$G$9,lookup!$A$2:$Q$28,9,0) ->  | F17: =G17*60*60*24 ->  | G17: =IF(Output!O15>0,Output!$H$6,IF(Output!O15<-Output!$H$6,0,Output!$H$6+Output!O15)) ->  | H17: =VLOOKUP(Output!$G$9,lookup!$A$2:$Q$28,10,0) ->  | I17: =J17*60*60*24 ->  | J17: =IF(Output!R15>0,Output!$H$6,IF(Output!R15<-Output!$H$6,0,Output!$H$6+Output!R15)) ->  | K17: =VLOOKUP(Output!$G$9,lookup!$A$2:$Q$28,11,0) ->  | L17: =M17*60*60*24 ->  | M17: =IF(Output!U15>0,Output!$H$6,IF(Output!U15<-Output!$H$6,0,Output!$H$6+Output!U15)) ->  | N17: =VLOOKUP(Output!$G$9,lookup!$A$2:$Q$28,12,0) ->  | O17: =P17*60*60*24 ->  | P17: =IF(Output!X15>0,Output!$H$6,IF(Output!X15<-Output!$H$6,0,Output!$H$6+Output!X15)) ->  | Q17: =VLOOKUP(Output!$G$9,lookup!$A$2:$Q$28,13,0) ->  | R17: =S17*60*60*24 ->  | S17: =IF(Output!AA15>0,Output!$H$6,IF(Output!AA15<-Output!$H$6,0,Output!$H$6+Output!AA15)) ->  | T17: =VLOOKUP(Output!$G$9,lookup!$A$2:$Q$28,15,0) ->  | U17: =V17*60*60*24 -> 0 | V17: =IF(Output!$E$10=0,0,IF(Output!AD15>0,Output!$H$6,IF(Output!AD15<-Output!$H$6,0,Output!$H$6+Output!AD15))) -> 0 | W17: =IF(Output!$E$11>0,0,VLOOKUP(Output!$G$9,lookup!$A$2:$Q$28,17,0)) -> 
A18: Feb | B18: =VLOOKUP(Output!$G$9,lookup!$A$29:$Q$55,8,0) ->  | C18: =D18*60*60*24 ->  | D18: =IF(Output!L16>0,Output!$H$6,IF(Output!L16<-Output!$H$6,0,Output!$H$6+Output!L16)) ->  | E18: =VLOOKUP(Output!$G$9,lookup!$A$29:$Q$55,9,0) ->  | F18: =G18*60*60*24 ->  | G18: =IF(Output!O16>0,Output!$H$6,IF(Output!O16<-Output!$H$6,0,Output!$H$6+Output!O16)) ->  | H18: =VLOOKUP(Output!$G$9,lookup!$A$29:$Q$55,10,0) ->  | I18: =J18*60*60*24 ->  | J18: =IF(Output!R16>0,Output!$H$6,IF(Output!R16<-Output!$H$6,0,Output!$H$6+Output!R16)) ->  | K18: =VLOOKUP(Output!$G$9,lookup!$A$29:$Q$55,11,0) ->  | L18: =M18*60*60*24 ->  | M18: =IF(Output!U16>0,Output!$H$6,IF(Output!U16<-Output!$H$6,0,Output!$H$6+Output!U16)) ->  | N18: =VLOOKUP(Output!$G$9,lookup!$A$29:$Q$55,12,0) ->  | O18: =P18*60*60*24 ->  | P18: =IF(Output!X16>0,Output!$H$6,IF(Output!X16<-Output!$H$6,0,Output!$H$6+Output!X16)) ->  | Q18: =VLOOKUP(Output!$G$9,lookup!$A$29:$Q$55,13,0) ->  | R18: =S18*60*60*24 ->  | S18: =IF(Output!AA16>0,Output!$H$6,IF(Output!AA16<-Output!$H$6,0,Output!$H$6+Output!AA16)) ->  | T18: =VLOOKUP(Output!$G$9,lookup!$A$29:$Q$55,15,0) ->  | U18: =V18*60*60*24 -> 0 | V18: =IF(Output!$E$10=0,0,IF(Output!AD16>0,Output!$H$6,IF(Output!AD16<-Output!$H$6,0,Output!$H$6+Output!AD16))) -> 0 | W18: =IF(Output!$E$11>0,0,VLOOKUP(Output!$G$9,lookup!$A$29:$Q$55,17,0)) -> 
A19: Mar | B19: =VLOOKUP(Output!$G$9,lookup!$A$56:$Q$82,8,0) ->  | D19: =IF(Output!L17>0,Output!$H$6,IF(Output!L17<-Output!$H$6,0,Output!$H$6+Output!L17)) ->  | E19: =VLOOKUP(Output!$G$9,lookup!$A$56:$Q$82,9,0) ->  | G19: =IF(Output!O17>0,Output!$H$6,IF(Output!O17<-Output!$H$6,0,Output!$H$6+Output!O17)) ->  | H19: =VLOOKUP(Output!$G$9,lookup!$A$56:$Q$82,10,0) ->  | J19: =IF(Output!R17>0,Output!$H$6,IF(Output!R17<-Output!$H$6,0,Output!$H$6+Output!R17)) ->  | K19: =VLOOKUP(Output!$G$9,lookup!$A$56:$Q$82,11,0) ->  | M19: =IF(Output!U17>0,Output!$H$6,IF(Output!U17<-Output!$H$6,0,Output!$H$6+Output!U17)) ->  | N19: =VLOOKUP(Output!$G$9,lookup!$A$56:$Q$82,12,0) ->  | P19: =IF(Output!X17>0,Output!$H$6,IF(Output!X17<-Output!$H$6,0,Output!$H$6+Output!X17)) ->  | Q19: =VLOOKUP(Output!$G$9,lookup!$A$56:$Q$82,13,0) ->  | S19: =IF(Output!AA17>0,Output!$H$6,IF(Output!AA17<-Output!$H$6,0,Output!$H$6+Output!AA17)) ->  | T19: =VLOOKUP(Output!$G$9,lookup!$A$56:$Q$82,15,0) ->  | U19: 0 | V19: =IF(Output!$E$10=0,0,IF(Output!AD17>0,Output!$H$6,IF(Output!AD17<-Output!$H$6,0,Output!$H$6+Output!AD17))) -> 0 | W19: =IF(Output!$E$11>0,0,VLOOKUP(Output!$G$9,lookup!$A$56:$Q$82,17,0)) -> 
A20: Apr | B20: =VLOOKUP(Output!$G$9,lookup!$A$83:$Q$109,8,0) ->  | D20: =IF(Output!L18>0,Output!$H$6,IF(Output!L18<-Output!$H$6,0,Output!$H$6+Output!L18)) ->  | E20: =VLOOKUP(Output!$G$9,lookup!$A$83:$Q$109,9,0) ->  | G20: =IF(Output!O18>0,Output!$H$6,IF(Output!O18<-Output!$H$6,0,Output!$H$6+Output!O18)) ->  | H20: =VLOOKUP(Output!$G$9,lookup!$A$83:$Q$109,10,0) ->  | J20: =IF(Output!R18>0,Output!$H$6,IF(Output!R18<-Output!$H$6,0,Output!$H$6+Output!R18)) ->  | K20: =VLOOKUP(Output!$G$9,lookup!$A$83:$Q$109,11,0) ->  | M20: =IF(Output!U18>0,Output!$H$6,IF(Output!U18<-Output!$H$6,0,Output!$H$6+Output!U18)) ->  | N20: =VLOOKUP(Output!$G$9,lookup!$A$83:$Q$109,12,0) ->  | P20: =IF(Output!X18>0,Output!$H$6,IF(Output!X18<-Output!$H$6,0,Output!$H$6+Output!X18)) ->  | Q20: =VLOOKUP(Output!$G$9,lookup!$A$83:$Q$109,13,0) ->  | S20: =IF(Output!AA18>0,Output!$H$6,IF(Output!AA18<-Output!$H$6,0,Output!$H$6+Output!AA18)) ->  | T20: =VLOOKUP(Output!$G$9,lookup!$A$83:$Q$109,15,0) ->  | U20: 0 | V20: =IF(Output!$E$10=0,0,IF(Output!AD18>0,Output!$H$6,IF(Output!AD18<-Output!$H$6,0,Output!$H$6+Output!AD18))) -> 0 | W20: =IF(Output!$E$11>0,0,VLOOKUP(Output!$G$9,lookup!$A$83:$Q$109,17,0)) -> 
A21: May | B21: =VLOOKUP(Output!$G$9,lookup!$A$110:$Q$136,8,0) ->  | D21: =IF(Output!L19>0,Output!$H$6,IF(Output!L19<-Output!$H$6,0,Output!$H$6+Output!L19)) ->  | E21: =VLOOKUP(Output!$G$9,lookup!$A$110:$Q$136,9,0) ->  | G21: =IF(Output!O19>0,Output!$H$6,IF(Output!O19<-Output!$H$6,0,Output!$H$6+Output!O19)) ->  | H21: =VLOOKUP(Output!$G$9,lookup!$A$110:$Q$136,10,0) ->  | J21: =IF(Output!R19>0,Output!$H$6,IF(Output!R19<-Output!$H$6,0,Output!$H$6+Output!R19)) ->  | K21: =VLOOKUP(Output!$G$9,lookup!$A$110:$Q$136,11,0) ->  | M21: =IF(Output!U19>0,Output!$H$6,IF(Output!U19<-Output!$H$6,0,Output!$H$6+Output!U19)) ->  | N21: =VLOOKUP(Output!$G$9,lookup!$A$110:$Q$136,12,0) ->  | P21: =IF(Output!X19>0,Output!$H$6,IF(Output!X19<-Output!$H$6,0,Output!$H$6+Output!X19)) ->  | Q21: =VLOOKUP(Output!$G$9,lookup!$A$110:$Q$136,13,0) ->  | S21: =IF(Output!AA19>0,Output!$H$6,IF(Output!AA19<-Output!$H$6,0,Output!$H$6+Output!AA19)) ->  | T21: =VLOOKUP(Output!$G$9,lookup!$A$110:$Q$136,15,0) ->  | U21: 0 | V21: =IF(Output!$E$10=0,0,IF(Output!AD19>0,Output!$H$6,IF(Output!AD19<-Output!$H$6,0,Output!$H$6+Output!AD19))) -> 0 | W21: =IF(Output!$E$11>0,0,VLOOKUP(Output!$G$9,lookup!$A$110:$Q$136,17,0)) -> 
A22: Jun | B22: =VLOOKUP(Output!$G$9,lookup!$A$137:$Q$163,8,0) ->  | D22: =IF(Output!L20>0,Output!$H$6,IF(Output!L20<-Output!$H$6,0,Output!$H$6+Output!L20)) ->  | E22: =VLOOKUP(Output!$G$9,lookup!$A$137:$Q$163,9,0) ->  | G22: =IF(Output!O20>0,Output!$H$6,IF(Output!O20<-Output!$H$6,0,Output!$H$6+Output!O20)) ->  | H22: =VLOOKUP(Output!$G$9,lookup!$A$137:$Q$163,10,0) ->  | J22: =IF(Output!R20>0,Output!$H$6,IF(Output!R20<-Output!$H$6,0,Output!$H$6+Output!R20)) ->  | K22: =VLOOKUP(Output!$G$9,lookup!$A$137:$Q$163,11,0) ->  | M22: =IF(Output!U20>0,Output!$H$6,IF(Output!U20<-Output!$H$6,0,Output!$H$6+Output!U20)) ->  | N22: =VLOOKUP(Output!$G$9,lookup!$A$137:$Q$163,12,0) ->  | P22: =IF(Output!X20>0,Output!$H$6,IF(Output!X20<-Output!$H$6,0,Output!$H$6+Output!X20)) ->  | Q22: =VLOOKUP(Output!$G$9,lookup!$A$137:$Q$163,13,0) ->  | S22: =IF(Output!AA20>0,Output!$H$6,IF(Output!AA20<-Output!$H$6,0,Output!$H$6+Output!AA20)) ->  | T22: =VLOOKUP(Output!$G$9,lookup!$A$137:$Q$163,15,0) ->  | U22: 0 | V22: =IF(Output!$E$10=0,0,IF(Output!AD20>0,Output!$H$6,IF(Output!AD20<-Output!$H$6,0,Output!$H$6+Output!AD20))) -> 0 | W22: =IF(Output!$E$11>0,0,VLOOKUP(Output!$G$9,lookup!$A$137:$Q$163,17,0)) -> 
A23: Jul | B23: =VLOOKUP(Output!$G$9,lookup!$A$164:$Q$190,8,0) ->  | D23: =IF(Output!L21>0,Output!$H$6,IF(Output!L21<-Output!$H$6,0,Output!$H$6+Output!L21)) ->  | E23: =VLOOKUP(Output!$G$9,lookup!$A$164:$Q$190,9,0) ->  | G23: =IF(Output!O21>0,Output!$H$6,IF(Output!O21<-Output!$H$6,0,Output!$H$6+Output!O21)) ->  | H23: =VLOOKUP(Output!$G$9,lookup!$A$164:$Q$190,10,0) ->  | J23: =IF(Output!R21>0,Output!$H$6,IF(Output!R21<-Output!$H$6,0,Output!$H$6+Output!R21)) ->  | K23: =VLOOKUP(Output!$G$9,lookup!$A$164:$Q$190,11,0) ->  | M23: =IF(Output!U21>0,Output!$H$6,IF(Output!U21<-Output!$H$6,0,Output!$H$6+Output!U21)) ->  | N23: =VLOOKUP(Output!$G$9,lookup!$A$164:$Q$190,12,0) ->  | P23: =IF(Output!X21>0,Output!$H$6,IF(Output!X21<-Output!$H$6,0,Output!$H$6+Output!X21)) ->  | Q23: =VLOOKUP(Output!$G$9,lookup!$A$164:$Q$190,13,0) ->  | S23: =IF(Output!AA21>0,Output!$H$6,IF(Output!AA21<-Output!$H$6,0,Output!$H$6+Output!AA21)) ->  | T23: =VLOOKUP(Output!$G$9,lookup!$A$164:$Q$190,15,0) ->  | U23: 0 | V23: =IF(Output!$E$10=0,0,IF(Output!AD21>0,Output!$H$6,IF(Output!AD21<-Output!$H$6,0,Output!$H$6+Output!AD21))) -> 0 | W23: =IF(Output!$E$11>0,0,VLOOKUP(Output!$G$9,lookup!$A$164:$Q$190,17,0)) -> 
A24: Aug | B24: =VLOOKUP(Output!$G$9,lookup!$A$191:$Q$217,8,0) ->  | D24: =IF(Output!L22>0,Output!$H$6,IF(Output!L22<-Output!$H$6,0,Output!$H$6+Output!L22)) ->  | E24: =VLOOKUP(Output!$G$9,lookup!$A$191:$Q$217,9,0) ->  | G24: =IF(Output!O22>0,Output!$H$6,IF(Output!O22<-Output!$H$6,0,Output!$H$6+Output!O22)) ->  | H24: =VLOOKUP(Output!$G$9,lookup!$A$191:$Q$217,10,0) ->  | J24: =IF(Output!R22>0,Output!$H$6,IF(Output!R22<-Output!$H$6,0,Output!$H$6+Output!R22)) ->  | K24: =VLOOKUP(Output!$G$9,lookup!$A$191:$Q$217,11,0) ->  | M24: =IF(Output!U22>0,Output!$H$6,IF(Output!U22<-Output!$H$6,0,Output!$H$6+Output!U22)) ->  | N24: =VLOOKUP(Output!$G$9,lookup!$A$191:$Q$217,12,0) ->  | P24: =IF(Output!X22>0,Output!$H$6,IF(Output!X22<-Output!$H$6,0,Output!$H$6+Output!X22)) ->  | Q24: =VLOOKUP(Output!$G$9,lookup!$A$191:$Q$217,13,0) ->  | S24: =IF(Output!AA22>0,Output!$H$6,IF(Output!AA22<-Output!$H$6,0,Output!$H$6+Output!AA22)) ->  | T24: =VLOOKUP(Output!$G$9,lookup!$A$191:$Q$217,15,0) ->  | U24: 0 | V24: =IF(Output!$E$10=0,0,IF(Output!AD22>0,Output!$H$6,IF(Output!AD22<-Output!$H$6,0,Output!$H$6+Output!AD22))) -> 0 | W24: =IF(Output!$E$11>0,0,VLOOKUP(Output!$G$9,lookup!$A$191:$Q$217,17,0)) -> 
A25: Sep | B25: =VLOOKUP(Output!$G$9,lookup!$A$218:$Q$244,8,0) ->  | D25: =IF(Output!L23>0,Output!$H$6,IF(Output!L23<-Output!$H$6,0,Output!$H$6+Output!L23)) ->  | E25: =VLOOKUP(Output!$G$9,lookup!$A$218:$Q$244,9,0) ->  | G25: =IF(Output!O23>0,Output!$H$6,IF(Output!O23<-Output!$H$6,0,Output!$H$6+Output!O23)) ->  | H25: =VLOOKUP(Output!$G$9,lookup!$A$218:$Q$244,10,0) ->  | J25: =IF(Output!R23>0,Output!$H$6,IF(Output!R23<-Output!$H$6,0,Output!$H$6+Output!R23)) ->  | K25: =VLOOKUP(Output!$G$9,lookup!$A$218:$Q$244,11,0) ->  | M25: =IF(Output!U23>0,Output!$H$6,IF(Output!U23<-Output!$H$6,0,Output!$H$6+Output!U23)) ->  | N25: =VLOOKUP(Output!$G$9,lookup!$A$218:$Q$244,12,0) ->  | P25: =IF(Output!X23>0,Output!$H$6,IF(Output!X23<-Output!$H$6,0,Output!$H$6+Output!X23)) ->  | Q25: =VLOOKUP(Output!$G$9,lookup!$A$218:$Q$244,13,0) ->  | S25: =IF(Output!AA23>0,Output!$H$6,IF(Output!AA23<-Output!$H$6,0,Output!$H$6+Output!AA23)) ->  | T25: =VLOOKUP(Output!$G$9,lookup!$A$218:$Q$244,15,0) ->  | U25: 0 | V25: =IF(Output!$E$10=0,0,IF(Output!AD23>0,Output!$H$6,IF(Output!AD23<-Output!$H$6,0,Output!$H$6+Output!AD23))) -> 0 | W25: =IF(Output!$E$11>0,0,VLOOKUP(Output!$G$9,lookup!$A$218:$Q$244,17,0)) -> 
A26: Oct | B26: =VLOOKUP(Output!$G$9,lookup!$A$245:$Q$271,8,0) ->  | D26: =IF(Output!L24>0,Output!$H$6,IF(Output!L24<-Output!$H$6,0,Output!$H$6+Output!L24)) ->  | E26: =VLOOKUP(Output!$G$9,lookup!$A$245:$Q$271,9,0) ->  | G26: =IF(Output!O24>0,Output!$H$6,IF(Output!O24<-Output!$H$6,0,Output!$H$6+Output!O24)) ->  | H26: =VLOOKUP(Output!$G$9,lookup!$A$245:$Q$271,10,0) ->  | J26: =IF(Output!R24>0,Output!$H$6,IF(Output!R24<-Output!$H$6,0,Output!$H$6+Output!R24)) ->  | K26: =VLOOKUP(Output!$G$9,lookup!$A$245:$Q$271,11,0) ->  | M26: =IF(Output!U24>0,Output!$H$6,IF(Output!U24<-Output!$H$6,0,Output!$H$6+Output!U24)) ->  | N26: =VLOOKUP(Output!$G$9,lookup!$A$245:$Q$271,12,0) ->  | P26: =IF(Output!X24>0,Output!$H$6,IF(Output!X24<-Output!$H$6,0,Output!$H$6+Output!X24)) ->  | Q26: =VLOOKUP(Output!$G$9,lookup!$A$245:$Q$271,13,0) ->  | S26: =IF(Output!AA24>0,Output!$H$6,IF(Output!AA24<-Output!$H$6,0,Output!$H$6+Output!AA24)) ->  | T26: =VLOOKUP(Output!$G$9,lookup!$A$245:$Q$271,15,0) ->  | U26: 0 | V26: =IF(Output!$E$10=0,0,IF(Output!AD24>0,Output!$H$6,IF(Output!AD24<-Output!$H$6,0,Output!$H$6+Output!AD24))) -> 0 | W26: =IF(Output!$E$11>0,0,VLOOKUP(Output!$G$9,lookup!$A$245:$Q$271,17,0)) -> 
A27: Nov | B27: =VLOOKUP(Output!$G$9,lookup!$A$272:$Q$298,8,0) ->  | D27: =IF(Output!L25>0,Output!$H$6,IF(Output!L25<-Output!$H$6,0,Output!$H$6+Output!L25)) ->  | E27: =VLOOKUP(Output!$G$9,lookup!$A$272:$Q$298,9,0) ->  | G27: =IF(Output!O25>0,Output!$H$6,IF(Output!O25<-Output!$H$6,0,Output!$H$6+Output!O25)) ->  | H27: =VLOOKUP(Output!$G$9,lookup!$A$272:$Q$298,10,0) ->  | J27: =IF(Output!R25>0,Output!$H$6,IF(Output!R25<-Output!$H$6,0,Output!$H$6+Output!R25)) ->  | K27: =VLOOKUP(Output!$G$9,lookup!$A$272:$Q$298,11,0) ->  | M27: =IF(Output!U25>0,Output!$H$6,IF(Output!U25<-Output!$H$6,0,Output!$H$6+Output!U25)) ->  | N27: =VLOOKUP(Output!$G$9,lookup!$A$272:$Q$298,12,0) ->  | P27: =IF(Output!X25>0,Output!$H$6,IF(Output!X25<-Output!$H$6,0,Output!$H$6+Output!X25)) ->  | Q27: =VLOOKUP(Output!$G$9,lookup!$A$272:$Q$298,13,0) ->  | S27: =IF(Output!AA25>0,Output!$H$6,IF(Output!AA25<-Output!$H$6,0,Output!$H$6+Output!AA25)) ->  | T27: =VLOOKUP(Output!$G$9,lookup!$A$272:$Q$298,15,0) ->  | U27: 0 | V27: =IF(Output!$E$10=0,0,IF(Output!AD25>0,Output!$H$6,IF(Output!AD25<-Output!$H$6,0,Output!$H$6+Output!AD25))) -> 0 | W27: =IF(Output!$E$11>0,0,VLOOKUP(Output!$G$9,lookup!$A$272:$Q$298,17,0)) -> 
A28: Dec | B28: =VLOOKUP(Output!$G$9,lookup!$A$299:$Q$325,8,0) ->  | D28: =IF(Output!L26>0,Output!$H$6,IF(Output!L26<-Output!$H$6,0,Output!$H$6+Output!L26)) ->  | E28: =VLOOKUP(Output!$G$9,lookup!$A$299:$Q$325,9,0) ->  | G28: =IF(Output!O26>0,Output!$H$6,IF(Output!O26<-Output!$H$6,0,Output!$H$6+Output!O26)) ->  | H28: =VLOOKUP(Output!$G$9,lookup!$A$299:$Q$325,10,0) ->  | J28: =IF(Output!R26>0,Output!$H$6,IF(Output!R26<-Output!$H$6,0,Output!$H$6+Output!R26)) ->  | K28: =VLOOKUP(Output!$G$9,lookup!$A$299:$Q$325,11,0) ->  | M28: =IF(Output!U26>0,Output!$H$6,IF(Output!U26<-Output!$H$6,0,Output!$H$6+Output!U26)) ->  | N28: =VLOOKUP(Output!$G$9,lookup!$A$299:$Q$325,12,0) ->  | P28: =IF(Output!X26>0,Output!$H$6,IF(Output!X26<-Output!$H$6,0,Output!$H$6+Output!X26)) ->  | Q28: =VLOOKUP(Output!$G$9,lookup!$A$299:$Q$325,13,0) ->  | S28: =IF(Output!AA26>0,Output!$H$6,IF(Output!AA26<-Output!$H$6,0,Output!$H$6+Output!AA26)) ->  | T28: =VLOOKUP(Output!$G$9,lookup!$A$299:$Q$325,15,0) ->  | U28: 0 | V28: =IF(Output!$E$10=0,0,IF(Output!AD26>0,Output!$H$6,IF(Output!AD26<-Output!$H$6,0,Output!$H$6+Output!AD26))) -> 0 | W28: =IF(Output!$E$11>0,0,VLOOKUP(Output!$G$9,lookup!$A$299:$Q$325,17,0)) -> 
